Workbook

Sheet Instructions
A1: Commercial Battery-Powered Electric Lawn and Garden Equipment Calculator
A2: Calculator last updated: | B2: 2023-09-12
A3: Background
A4: Statewide contract FAC116: Lawns & Grounds, Equipment, Parts and Services includes environmentally prefererable products under Category 8: Commercial Grade Battery-Electric Lawn Equipment. As Massachusetts advances the use of clean, renewable sources for electricity generation, converting from gas to electric power for landscaping can provide numerous benefits, including those outlined below: Environmental benefits: • Helping the Commonwealth meet its environmental goals in greenhouse gas emissions reduction, clean air, and toxics use reduction • Reduction in toxic exposure and criteria air pollutants (particulate matter, sulfur dioxide, carbon monoxide) • Reduction in hazardous waste and potential spills • Reduction in noise pollution and nuisance complaints • Reduction in wildlife and habitat exposure to toxic emissions, excessive noise, and ground-sourced particulates Health benefits: • Reduction in worker exposures to toxic emissions, excessive noise, excessive vibrations, and ground-sourced particulates • Reduction in public exposure to toxic emissions, excessive noise, and ground-sourced particulates Cost benefits: • Avoided fuel costs • Lower maintenance costs • The possibility for extended work hour options and holiday operation due to lower noise levels This calculator provides economic and environmental models for users to better understand the total cost of ownership of battery-powered landscaping equipment compared to gas alternatives, as well as the estimated greenhouse gas emissions savings associated with converting from gas to electric.
A23: Calculator Instructions
A24: Tab | B24: Description
A25: Inputs | B25: To use this calculator, click the "Inputs" tab and follow the steps outlined on that tab and listed below. Step 1: Select the type of equipment you are comparing. Step 2: Input data for your battery-powered equipment wherever you see red text. Default values are provided in Column D. If inputting your own values, select "No" In Column E and input your value in Column F. Step 3: Input data for your gas-powered equipment wherever you see red text. Default values are provided in Column N. If inputting your own values, select "No" in Column O and input your value in Column G.
A26: Results Table | B26: The Results Table tab shows a simple table of upfront costs of gas vs electric equipment, annual and lifetime costs, and annual and lfietime GHG emissions. (Note: Lifetime is based on length of warranty period on Input tab)
A27: Results Graphics | B27: The Results Graphics tab shows several graphs based on the Results Table. These are formatted in such a way to allow for easy printing, exporting to PDF, or copying/pasting into presentations.
A28: This tool is provided to generate estimates only, the Commonwealth makes no guarantees about equipment savings or years of equipment performance.
A29: A Note on Default Values
A30: Please note that the Leading by Example program determined default values based on high-level market research. LBE is always looking to refine this calculator with the latest product costs and specifications. Please contact Ryan.Kingston@mass.gov or Julia.Wolfe@mass.gov if you have any feedback, suggestions, or questions on this tool.
A31: More Information & Links
A32: FAC116 Contract User Guide | F32: https://www.mass.gov/service-details/facilities-maintenance-repair-and-services
A33: Environmentally Preferable Products Program Website | F33: http://www.mass.gov/epp
A34: Leading by Example Sustainable Landscaping Webpage | F34: https://www.mass.gov/info-details/sustainable-landscaping-at-state-facilities
A35: Contact Julia Wolfe, Director of Environmental Purchasing (OSD) for more information on statewide contracts and OSD's Environmentally Preferable Products Program: | F35: Julia.Wolfe@mass.gov
A36: Contact Ryan Kingston, LBE Sustainability Project Coordinator, for more information on sustainable landscaping efforts and practices for state facilities: | F36: Ryan.Kingston@mass.gov
A37: This calculator was developed in collaboration between Leading by Example, the Operational Services Division, and Quiet Communities. Thank you to Morgan Bowler, 2023 LBE Summer Intern, for conducting research to provide default values for this tool.

Sheet Inputs
B1: Economic and Environmental Calculator Inputs
B2: This tool is provided to generate estimates only, the Commonwealth makes no guarantees about equipment savings or years of equipment performance
H3: Step 1 | I3: Select Equipment | J3: Riding Zero-Turn Mower 42"
C5: Step 2 | D5: Select "Yes" for each area to use default values for battery-powered equipment option. Select "No" to input your own values in Column F. | M5: Step 3 | N5: Select "Yes" for each area to use default values for commercial gasoline equipment option. Select "No" to input your own values in Column P.
C7: Commercial Battery-Powered | M7: ICE
D8: Default Data | E8: Use Default Data? | F8: Input (if Default not used) | N8: Default Data | O8: Use Default Data? | P8: Input (if Default not used)
C9: Price of Equipment | D9: =IFERROR(VLOOKUP(J3,'Appendix - Default Values'!A:AB,2,FALSE),"") -> 5899 | E9: Yes | I9: NOTE: Default values are based on average costs of equipment on and off statewide contracts. Agencies are encouraged to use actual values wherever possible. | M9: Price of equipment | N9: =IFERROR(VLOOKUP(J3,'Appendix - Default Values'!A:AB,13,FALSE),"") -> 3900 | O9: Yes
C10: Mass Save Rebate* | D10: =IFERROR(VLOOKUP(J3,'Appendix - Default Values'!A:AB,4,FALSE),"") -> 75 | E10: Yes
C11: Prompt Pay Discount | D11: use drop down ---> | F11: 0 | M11: Prompt pay discount (PPD) | N11: use drop down ---> | P11: 0
C12: Add-ons | D12: Include total cost of any additional features, such as extra chargers, lights, solar canopy, etc | M12: Add-ons | N12: Include total cost of any additional features, such as extra lights, extra tanks, etc
C13: Additional Number of Batteries to be Purchased | D13: use drop down ---> | F13: 0
C14: Cost per Additional Battery | D14: =IFERROR(VLOOKUP(J3,'Appendix - Default Values'!A:AB,3,FALSE),"") -> 0 | E14: Yes
C15: Equipment Specifications | M15: Equipment Specifications | R15: Don't know your equipment's horsepower but know its engine size, often show as "CC"? To calculate average horsepower, divide the engine size (CC) by 15.5.
C16: Battery size (kWh) | D16: =IFERROR(VLOOKUP(J3,'Appendix - Default Values'!A:AB,7,FALSE),"") -> 3.36 | E16: Yes | H16: Don't know kWh but know amp hours (Ah) and Volts (V)? Multiply Ah by V and divide by 1000 to estimate kWh. | M16: Horsepower | N16: =IFERROR(VLOOKUP(J3,'Appendix - Default Values'!A:AB,14,FALSE),"") -> 23 | O16: Yes
M17: Gallons of gasoline per hour | N17: =IFERROR(VLOOKUP(J3,'Appendix - Default Values'!A:AB,15,FALSE),"") -> 2 | O17: Yes
C18: Electricity Information | M18: Fuel Information
C19: Electricity cost ($/per kWh) | D19: ='Appendix - Default Values'!B96 -> 0.1603 | E19: Yes | M19: Price per gallon of gas | N19: ='Appendix - Default Values'!B99 -> 3.38 | O19: Yes
C20: Hours of Operation | M20: Hours of Operation
C21: Hours per day | D21: use drop down ---> | F21: 8 | M21: Hours per day | N21: =F21 -> 8 | O21: Yes
C22: Days per month | D22: use drop down ---> | F22: 15 | M22: Days per month | N22: =F22 -> 15 | O22: Yes
C23: Months per year | D23: use drop down ---> | F23: 6 | M23: Months per year | N23: =F23 -> 6 | O23: Yes
C24: Warranty | M24: Warranty
C25: Length of warranty (years) | D25: use drop down ---> | F25: 3 | M25: Length of warranty (years) | N25: use drop down ---> | P25: 3
C28: *Mass Save offers rebates based on equipment type and battery size. See Mass Save website for information and requirements.

Sheet Input Summary
B2: BPLE | E2: ICE
B3: Price of Equipment | C3: =IF(Inputs!E9="Yes",Inputs!D9,Inputs!F9) -> 5899 | E3: Price of equipment | F3: =IF(Inputs!O9="Yes",Inputs!N9,Inputs!P9) -> 3900
B4: Total Battery Cost | C4: =(IF(Inputs!E14="Yes",Inputs!D14,Inputs!F14))*Inputs!F13 -> 0
B5: Sub total | C5: =C3+C4 -> 5899 | E5: Sub total | F5: =F3 -> 3900
B6: Prompt Pay Discount | C6: =Inputs!F11 -> 0 | E6: Prompt pay discount (PPD) | F6: =Inputs!P11 -> 0
B7: Rebate | C7: =IF(Inputs!E10="Yes",Inputs!D10,Inputs!F10) -> 75
B8: Total Cost with PPD and Rebate | C8: =C5-(C5*C6)-C7 -> 5824 | E8: Total Cost with PPD | F8: =F5-(F5*F6) -> 3900
B9: Equipment Specifications | E9: Equipment Specifications
B10: Battery size (kWh) | C10: =IF(Inputs!E16="Yes",Inputs!D16,Inputs!F16) -> 3.36 | E10: Horsepower | F10: =IF(Inputs!O16="Yes",Inputs!N16,Inputs!P16) -> 23
B11: Efficiency/Charging loss | C11: 0.1 | E11: Gallons of gasoline per hour | F11: =IF(Inputs!O17="Yes",Inputs!N17,Inputs!P17) -> 2
B12: kWh used per hour | C12: =C10+(C10*C11) -> 3.696
B13: Electricity Information | E13: Fuel Information
B14: Electricity cost ($/per kWh) | C14: =IF(Inputs!E19="Yes",Inputs!D19,Inputs!F19) -> 0.1603 | E14: Price per gallon of gas | F14: =IF(Inputs!O19="Yes",Inputs!N19,Inputs!P19) -> 3.38
B15: Hours of Operation | E15: Hours of Operation
B16: Hours per day | C16: =Inputs!F21 -> 8 | E16: Hours per day | F16: =IF(Inputs!O21="Yes",Inputs!N21,Inputs!P21) -> 8
B17: Days per month | C17: =Inputs!F22 -> 15 | E17: Days per month | F17: =IF(Inputs!O22="Yes",Inputs!N22,Inputs!P22) -> 15
B18: Months per year | C18: =Inputs!F23 -> 6 | E18: Months per year | F18: =IF(Inputs!O23="Yes",Inputs!N23,Inputs!P23) -> 6
B19: Hours per Year | C19: =C16*C17*C18 -> 720 | E19: Hours per Year | F19: =F16*F17*F18 -> 720
B20: Warranty | E20: Warranty
B21: Length of warranty (years) | C21: =Inputs!F25 -> 3 | E21: Length of warranty (years) | F21: =Inputs!P25 -> 3

Sheet Results Table
B1: Results Table
B4: ICE Equipment Costs | F4: BPLE Costs | J4: Savings by Converting to BPLE
B5: Initial Equipment Cost (Including any discounts and rebates included in Input) | D5: =IFERROR('Input Summary'!F8,"-") -> 3900 | F5: Initial Equipment Cost (Including any discounts and rebates included in Input) | H5: =IFERROR('Input Summary'!C8,"-") -> 5824 | J5: Upfront Equipment Cost Savings | K5: =IFERROR(D5-H5,"-") -> -1924
B6: Hourly Cost | C6: Hourly Fuel Cost | D6: =IFERROR('Input Summary'!F11*'Input Summary'!F14,"-") -> 6.76 | F6: Hourly Costs | G6: Hourly Fuel Cost | H6: =IFERROR('Input Summary'!C12*'Input Summary'!C14,"-") -> 0.5924688 | J6: Hourly Cost Savings | K6: =IFERROR(D8-H8,"-") -> 7.29885113
C7: Hourly Maintenance Cost* | D7: =IFERROR('Appendix - Economic Model Data'!I18,"-") -> 1.737089161 | G7: Hourly Maintenance Cost* | H7: =IFERROR('Appendix - Economic Model Data'!B18,"-") -> 0.6057692308
C8: Total Hourly Cost | D8: =IFERROR(+D6+D7,"-") -> 8.497089161 | G8: Total Hourly Cost | H8: =IFERROR((+H6+H7),"-") -> 1.198238031
B9: Annual Cost | C9: Annual operating costs | D9: =IFERROR(+D8*'Input Summary'!F19,"-") -> 6117.904196 | F9: Annual Cost | G9: Annual operating costs | H9: =IFERROR(+H8*'Input Summary'!C19,"-") -> 862.7313822 | J9: Annual Cost Savings | K9: =IFERROR(D9-H9,"-") -> 5255.172814
B10: Lifetime | C10: Total operating costs over warranty period | D10: =IFERROR(D9*'Input Summary'!F21,"-") -> 18353.71259 | F10: Lifetime | G10: Total operating costs over warranty period | H10: =IFERROR(H9*'Input Summary'!C21,"-") -> 2588.194146 | J10: Total Operating Cost Savings over Warranty Period | K10: =IFERROR(D10-H10,"-") -> 15765.51844
J11: Percent Annual Cost Reduction | K11: =IFERROR(1-(H9/D9),"-") -> 0.8589825282
J12: Payback of Initial Equipment Cost | K12: =IFERROR(IF(SIGN(Year1Cost)=1,"Year 1",IF(SIGN(Year2Cost)=1,"Year 2",IF(SIGN(Year3Cost)=1,"Year 3",IF(SIGN(Year4Cost)=1,"Year 4",IF(SIGN(Year5Cost)=1,"Year 5",IF(SIGN(Year6Cost)=1,"Year 6", IF(SIGN(Year7Cost)=1,"Year 7", IF(SIGN(Year8Cost)=1,"Year 8","After Year 8")))))))),"-") -> Year 1
B13: ENVIRONMENTAL RESULTS | F13: ENVIRONMENTAL RESULTS | J13: ENVIRONMENTAL RESULTS
B14: Annual | C14: Annual Carbon Dioxide (CO2) Emissions (lbs) | D14: =IFERROR('Appendix - Economic Model Data'!E124,"-") -> 38424.3409 | F14: Annual | G14: Annual Carbon Dioxide (CO2) Emissions (lbs) | H14: =IFERROR('Appendix - Economic Model Data'!E127,"-") -> 1493.341277 | J14: Annual CO2 Reduction (lbs) | K14: =IFERROR(D14-H14,"-") -> 36930.99962
B15: Lifetime** | C15: CO2 Emissions over warranty period (lbs) | D15: =IFERROR(D14*Inputs!P25,"-") -> 115273.0227 | F15: Lifetime** | G15: CO2 Emissions over warranty period (lbs) | H15: =IFERROR(H14*Inputs!F25,"-") -> 4480.02383 | J15: CO2 Reduction over warranty period (lbs) | K15: =IFERROR(D15-H15,"-") -> 110792.9989
B17: *Maintenance includes blade sharpening and replacement oil changes, parts, filters, belts, labor. For BPLE, this only includes blade sharpening and replacement.
B18: **For the purposes of analysis, the warranty period is considered the 'lifetime.' However, equipment is likely to be used for a much longer period.

Sheet Results Graphics
B1: Results Graphics
B3: ICE to BPLE: Cost Savings
B6: Estimated Battery-Powered Electric Equipment Cummulative Cost Benefit
B10: ='Appendix - Economic Model Data'!B43 -> Year 1 | C10: ='Appendix - Economic Model Data'!C43 -> 3331.172814
B11: ='Appendix - Economic Model Data'!B44 -> Year 2 | C11: ='Appendix - Economic Model Data'!C44 -> 8586.345627
B12: ='Appendix - Economic Model Data'!B45 -> Year 3 | C12: ='Appendix - Economic Model Data'!C45 -> 13841.51844
B13: ='Appendix - Economic Model Data'!B46 -> Year 4 | C13: ='Appendix - Economic Model Data'!C46 -> 19096.69125
B14: ='Appendix - Economic Model Data'!B47 -> Year 5 | C14: ='Appendix - Economic Model Data'!C47 -> 24351.86407
B15: ='Appendix - Economic Model Data'!B48 -> Year 6 | C15: ='Appendix - Economic Model Data'!C48 -> 29607.03688
B16: ='Appendix - Economic Model Data'!B49 -> Year 7 | C16: ='Appendix - Economic Model Data'!C49 -> 34862.2097
B17: ='Appendix - Economic Model Data'!B50 -> Year 8 | C17: ='Appendix - Economic Model Data'!C50 -> 40117.38251
B18: ='Appendix - Economic Model Data'!B51 -> Year 9 | C18: ='Appendix - Economic Model Data'!C51 -> 45372.55532
B19: ='Appendix - Economic Model Data'!B52 -> Year 10 | C19: ='Appendix - Economic Model Data'!C52 -> 50627.72814
B21: Cumulative Costs: Commercial Gas vs BPLE
C22: Capital Cost | D22: Year 1 | E22: Year 2 | F22: Year 3 | G22: Year 4 | H22: Year 5 | I22: Year 6 | J22: Year 7 | K22: Year 8
B23: ICE | C23: ='Results Table'!D5 -> 3900 | D23: =IFERROR($C$23+'Results Table'!D9,"-") -> 10017.9042 | E23: =IFERROR($C$23+('Results Table'!D9*2),"-") -> 16135.80839 | F23: =IFERROR($C$23+('Results Table'!D9*3),"-") -> 22253.71259 | G23: =IFERROR($C$23+('Results Table'!D9*4),"-") -> 28371.61678 | H23: =IFERROR($C$23+('Results Table'!D9*5),"-") -> 34489.52098 | I23: =IFERROR($C$23+('Results Table'!D9*6),"-") -> 40607.42517 | J23: =IFERROR($C$23+('Results Table'!D9*7),"-") -> 46725.32937 | K23: =IFERROR($C$23+('Results Table'!D9*8),"-") -> 52843.23357
B24: BPLE | C24: ='Results Table'!H5 -> 5824 | D24: =IFERROR($C$24+'Results Table'!H9,"-") -> 6686.731382 | E24: =IFERROR($C$24+('Results Table'!H9*2),"-") -> 7549.462764 | F24: =IFERROR($C$24+('Results Table'!H9*3),"-") -> 8412.194146 | G24: =IFERROR($C$24+('Results Table'!H9*4),"-") -> 9274.925529 | H24: =IFERROR($C$24+('Results Table'!H9*5),"-") -> 10137.65691 | I24: =IFERROR($C$24+('Results Table'!H9*6),"-") -> 11000.38829 | J24: =IFERROR($C$24+('Results Table'!H9*7),"-") -> 11863.11968 | K24: =IFERROR($C$24+('Results Table'!H9*8),"-") -> 12725.85106
B25: Net Savings | C25: =C23-C24 -> -1924 | D25: =D23-D24 -> 3331.172814 | E25: =E23-E24 -> 8586.345627 | F25: =F23-F24 -> 13841.51844 | G25: =G23-G24 -> 19096.69125 | H25: =H23-H24 -> 24351.86407 | I25: =I23-I24 -> 29607.03688 | J25: =J23-J24 -> 34862.2097 | K25: =K23-K24 -> 40117.38251
B42: ICE to BPLE: GHG Reductions
B45: Estimated Annual GHG (CO2) Reduction % | D45: ='Results Table'!K14/'Results Table'!D14 -> 0.9611355396
B46: Estimated Annual GHG Emissions (CO2) Reduction (lbs) | D46: ='Results Table'!K14 -> 36930.99962
B48: Equivalent Numbers of Cars Removed from the Road (comparing CO2 emissions) | D48: =D46/'Appendix - Economic Model Data'!B77 -> 7774.947288
B57: Cumulative GHG Emissions (lbs): Commercial Gas vs BPLE
D58: Year 1 | E58: Year 2 | F58: Year 3 | G58: Year 4 | H58: Year 5 | I58: Year 6 | J58: Year 7 | K58: Year 8
B59: ICE | D59: ='Results Table'!D14 -> 38424.3409 | E59: =$D$59+D59 -> 76848.68179 | F59: 115273.0227 | G59: 153697.3636 | H59: 192121.7045 | I59: 230546.0454 | J59: 268970.3863 | K59: 307394.7272
B60: BPLE | D60: ='Results Table'!H14 -> 1493.341277 | E60: =$D$60+D60 -> 2986.682553 | F60: 4480.02383 | G60: 5973.365106 | H60: 7466.706383 | I60: 8960.04766 | J60: 10453.38894 | K60: 11946.73021
B61: Net Savings | D61: =D59-D60 -> 36930.99962 | E61: =E59-E60 -> 73861.99924 | F61: =F59-F60 -> 110792.9989 | G61: =G59-G60 -> 147723.9985 | H61: =H59-H60 -> 184654.9981 | I61: =I59-I60 -> 221585.9977 | J61: =J59-J60 -> 258516.9973 | K61: =K59-K60 -> 295447.9969

Sheet Appendix - Default Values
A1: Equipment | B1: Price of BPLE | C1: Battery cost | D1: Mass Save Rebate | E1: Optional add-ons & extra costs | F1: Prompt pay discount (PPD) | G1: Battery size (kWh) Total Machine Battery | H1: Number of batteries | I1: Efficiency/charging loss | K1: Length of warranty (years) | L1: Estimated battery lifetime hours* | M1: Price of Gas Equipment | N1: Gas Equipment Horsepower | O1: Gallons of Gas Per Hour | P1: Gas Equip Warranty | U1: BPLE Example Source | V1: ICE Example Source
A2: Riding Zero-Turn Mower 42" | B2: 5899 | D2: 75 | E2: 0 | G2: 3.36 | H2: 2 | I2: 0.1 | K2: 3 | M2: 3900 | N2: 23 | O2: 2 | P2: 3 | U2: https://www.cubcadet.com/en_US/electric-riding-mowers/zt1-42e/34CBA2CS710.html | V2: https://www.stihlusa.com/products/lawn-mowers/zero-turn-mowers/rz142/
A3: Riding Zero-Turn Mower 48" | B3: 27000 | D3: 3500 | G3: 24 | H3: 1 | I3: 0.1 | K3: 5 | M3: 10719 | N3: 23.5 | O3: 2 | P3: 4 | U3: https://commercial.greenworkstools.com/collections/optimus/products/cz48r24x-optimusz-48-24kwh-ride-on-zero-turn-mower | V3: https://www.deere.com/en/mowers/zero-turn-mowers/z700-series/z740r-ztrak-mower/
A4: Riding Zero-Turn Mower 52" | B4: 27000 | D4: 3500 | G4: 24 | H4: 1 | I4: 0.1 | K4: 4 | M4: 11999 | N4: 25.5 | O4: 2 | P4: 5 | U4: https://commercial.greenworkstools.com/collections/optimus/products/cz52r24x-optimusz-52-24kwh-ride-on-zero-turn-mower | V4: https://www.toro.com/en/product/74050
A5: Riding Zero-Turn Mower 60" | B5: 32959 | D5: 3500 | G5: 16 | H5: 4 | I5: 0.1 | K5: 5 | M5: 14409 | N5: 25.5 | O5: 2 | P5: 5 | U5: https://www.gravely.com/en-us/power-equipment/electric/pro-turn-ev/pro-turn-ev60-rd-w-4-batteries | V5: https://www.deere.com/en/mowers/commercial-mowers/commercial-zero-turn/z900-series/z930m-mower/
A6: Riding Zero-Turn Mower 72-74" | B6: 49940 | D6: 3500 | G6: 22 | H6: 1 | I6: 0.1 | K6: 5 | M6: 17999 | N6: 26.5 | O6: 2 | P6: 5 | U6: https://meangreenproducts.com/evo-74-ztr/ | V6: https://www.toro.com/en/product/72922
A7: Stand-on Mower 48" | B7: 32667 | D7: 3500 | G7: 16 | H7: 4 | I7: 0.1 | K7: 5 | M7: 12199 | N7: 22 | O7: 2 | P7: 5 | U7: https://www.gravely.com/en-us/power-equipment/electric/pro-stance-ev/prostance-ev-48sd-w-4batteries | V7: https://www.toro.com/en/product/71504
A8: Stand-on Mower 52" | B8: 32893 | D8: 3500 | G8: 16 | H8: 4 | I8: 0.1 | K8: 5 | M8: 12959 | N8: 23.5 | O8: 2 | P8: 2 | U8: https://www.gravely.com/en-us/power-equipment/electric/pro-stance-ev/prostance-ev-52sd-w-4batteries | V8: https://www.deere.com/en/mowers/commercial-mowers/quiktrak-mowers/652r-mower/?cid=PPC_MDS_00331_01373&gad=1&gclid=Cj0KCQjwzdOlBhCNARIsAPMwjbzFcobF_BobkqBqHZYWQdkmdcgyBgLfoN-lJYJdm5zS-AO15SGWiGcaApvLEALw_wcB&gclsrc=aw.ds
A9: Stand-on Mower 60" | B9: 26000 | D9: 3500 | G9: 24 | H9: 1 | I9: 0.1 | K9: 5 | M9: 14399 | N9: 26.5 | O9: 2 | P9: 5 | U9: https://commercial.greenworkstools.com/collections/optimus/products/cz60s24x-optimusz-60-24kwh-stand-on-zero-turn-mower | V9: https://www.toro.com/en/product/72523
A10: Push-Mower 30-32" | B10: 2999 | C10: 494 | D10: 75 | G10: 1.344 | H10: 3 | I10: 0.1 | K10: 2 | M10: 3599 | N10: 14.5 | O10: 0.75 | P10: 1 | U10: https://commercial.greenworkstools.com/products/82v-30-self-propelled-lawn-mower-with-3-8ah-batteries-and-dual-port-charger-82lm30s-83dp_ | V10: https://www.toro.com/en/product/30672
A11: Handheld Blower 350-400 cfm | B11: 200 | C11: 140 | D11: 30 | G11: 0.144 | H11: 1 | I11: 0.1 | K11: 2 | M11: 300 | N11: 1.07 | O11: 0.43 | P11: 2 | U11: https://rockyseastlongmeadow.stihldealer.net/products/blowers-and-shredder-vacs/battery-blowers/bga57/ | V11: https://www.stihlusa.com/products/blowers-and-shredder-vacs/professional-blowers/bg86ce/
A12: Backpack Blower 600-650 cfm | B12: 462 | D12: 30 | G12: 0.42 | H12: 1 | I12: 0.1 | K12: 2 | M12: 500 | N12: 3.81 | O12: 0.43 | P12: 2 | U12: https://egopowerplus.com/blower-600cfm/ | V12: https://www.husqvarna.com/us/leaf-blowers/560bts/
A13: Backpack Blower 650-700 cfm | B13: 899.99 | C13: 330 | D13: 100 | G13: 0.82 | H13: 2 | I13: 0.1 | K13: 2 | M13: 550 | N13: 3.8 | O13: 0.43 | P13: 2 | U13: https://commercial.greenworkstools.com/collections/leaf-blowers/products/82ba26-52dp-82-volt-dual-port-backpack-blower-with-two-5ah-batteries-and-one-8a-charger | V13: https://www.stihlusa.com/products/blowers-and-shredder-vacs/professional-blowers/br600/
A14: Backpack Blower 750-800 cfm | B14: 1299 | C14: 499 | D14: 100 | G14: 1.12 | H14: 2 | I14: 0.1 | K14: 2 | M14: 590 | N14: 4 | O14: 0.43 | P14: 2 | U14: https://egopowerplus.com/commercial-800cfm-backpack-blower-lbpx8000/ | V14: https://www.husqvarna.com/us/leaf-blowers/570bfs/
A15: String Trimmer 16.5" | B15: 1060 | D15: 30 | G15: 0.3384 | H15: 1 | I15: 0.1 | K15: 2 | M15: 490 | N15: 1.9 | O15: 0.66043013 | P15: 2 | U15: https://www.stihlusa.com/products/trimmers-and-brushcutters/battery-trimmers/fsa135/ | V15: https://www.stihlusa.com/products/trimmers-and-brushcutters/professional-trimmers/fs131r/
A16: Hedge Trimmer 24" | B16: 840 | C16: 300 | G16: 0.2591 | H16: 1 | I16: 0.1 | K16: 2 | M16: 540 | N16: 1.2 | O16: 0.1328125 | P16: 2 | U16: https://www.stihlusa.com/products/hedge-trimmers/battery-hedge-trimmers/hla135k0/ | V16: https://www.stihlusa.com/products/hedge-trimmers/professional-hedge-trimmers/hl94k145/
A17: Pole Saw 10" | B17: 880 | C17: 300 | G17: 0.2592 | H17: 1 | I17: 0.1 | K17: 2 | M17: 400 | N17: 1.07 | O17: 0.15625 | P17: 2 | U17: https://www.stihlusa.com/products/pole-pruners/battery-pole-pruners/hta66/ | V17: https://www.stihlusa.com/products/pole-pruners/homeowner-pole-pruners/ht56ce/
A18: Chainsaw 12" | B18: 743 | C18: 286 | D18: 30 | G18: 0.28 | H18: 1 | I18: 0.1 | K18: 2 | M18: 620 | N18: 1.21 | O18: 0.15850323 | P18: 2 | U18: https://egopowerplus.com/commercial-top-handle-chainsaw-csx3000/ | V18: https://www.stihlusa.com/products/chain-saws/in-tree-saws/ms151tce/
A19: Chainsaw 14" | B19: 690 | C19: 240 | D19: 30 | G19: 0.216 | H19: 1 | I19: 0.1 | K19: 2 | M19: 630 | N19: 2.4 | O19: 0.15850323 | P19: 2 | U19: https://www.stihlusa.com/products/chain-saws/battery-saws/msa160cbq/ | V19: https://www.husqvarna.com/us/chainsaws/t540xp-ii/
A20: Chainsaw 16" | B20: 500 | C20: 300 | D20: 30 | G20: 0.328 | H20: 1 | I20: 0.1 | K20: 3 | M20: 640 | N20: 2.4 | O20: 0.22454624 | P20: 2 | U20: https://commercial.greenworkstools.com/collections/chainsaws/products/82cs24-4dp-82v-16-2-4kw-chainsaw-with-4ah-battery-and-8a-dual-port-charger | V20: https://www.husqvarna.com/us/chainsaws/t540xp-ii/?article=970484016
A21: Chainsaw 18" | B21: 402 | C21: 286 | D21: 30 | G21: 0.28 | H21: 1 | I21: 0.1 | K21: 2 | M21: 820 | N21: 4.7 | O21: 0.29058926 | P21: 2 | U21: https://egopowerplus.com/18-inch-chain-saw/ | V21: https://www.husqvarna.com/us/chainsaws/562xp/
A22: Chainsaw 20" | B22: 600 | C22: 300 | D22: 30 | G22: 0.328 | H22: 1 | I22: 0.1 | K22: 3 | M22: 1130 | N22: 5.5 | O22: 0.29058926 | P22: 2 | U22: https://commercial.greenworkstools.com/collections/chainsaws/products/82cs34-4dp-82v-20-3-4kw-chainsaw-with-1-4-ah-battery-dp-charger | V22: https://www.husqvarna.com/us/chainsaws/372xp-x-torq/
A24: *Battery lifetime hours is conservative. These are based off hours running nonstop, before capacity decreases to the point where a replacement would be recommended, but batteries could theoretically last longer, albeit with decreased capacity.
A26: Backpack Leaf Blower gas per hour | B26: https://www.quietcleanpdx.org/wp-content/uploads/2019/11/Gas-Powered-Leaf-Blower-Emissions-Factsheet-11.12.pdf
A27: Push/Commercial Mower gas per hour | B27: https://obsessedlawn.com/how-much-gas-does-a-lawn-mower-use/
A28: Chainsaw gas per hour | B28: https://www.chainsawspecialists.org/how-much-fuel-per-hour-for-a-chainsaw/#:~:text=The%20amount%20of%20fuel%20your%20chainsaw%20uses%20per,0.6%20to%201.1%20liters%20of%20fuel%20per%20hour.
A29: Polesaw gas per hours | B29: https://howpowertool.com/what-kind-of-gas-do-you-put-in-a-gas-pole-saw/#:~:text=Typically%2C%20a%20small%20gas%20pole%20saw%20can%20use,up%20to%2020-30%20ounces%20of%20fuel%20per%20hour.
A30: String Trimmer gas per hour | B30: https://homeclasp.com/how-much-gas-does-a-weed-eater-use-per-hour/
A32: Use Default Data?
A33: Yes
A34: No
A36: PPD
A37: 0
A38: 0.005
A39: 0.01
A40: 0.015
A41: 0.02
A42: 0.025
A43: 0.03
A44: 0.035
A45: 0.04
A46: 0.045
A47: 0.05
A48: 0.055
A49: 0.06
A50: 0.065
A51: 0.07
A52: 0.075
A53: 0.08
A54: 0.085
A55: 0.09
A56: 0.095
A57: 0.1
A58: Numbers for Dropdowns
A59: 0
A60: 1
A61: 2
A62: 3
A63: 4
A64: 5
A65: 6
A66: 7
A67: 8
A68: 9
A69: 10
A70: 11
A71: 12
A72: 13
A73: 14
A74: 15
A75: 16
A76: 17
A77: 18
A78: 19
A79: 20
A80: 21
A81: 22
A82: 23
A83: 24
A84: 25
A85: 26
A86: 27
A87: 28
A88: 29
A89: 30
A90: 31
A96: Cost of electricity (per kWh) | B96: 0.1603
A97: cost of electricity in 2020: https://www.eia.gov/electricity/sales_revenue_price/pdf/table5_b.pdf
A99: Gallon of Gas cost | B99: 3.38
A100: https://www.mass.gov/info-details/massachusetts-auto-fuel-prices#retail-gasoline-&-diesel-fuel-prices-
A104: The "Price of BPLE" can vary…what prices should we use as a 'default'?
A105: Look into push mowers - average cost; one battery or multiple?
A109: Category 8 Vendors
A110: Able Tool and Equipment
A111: Ariens Company
A112: Bacher Corporation
A113: Bobcat of Connecticut, Inc
A114: The Boston Lawnmower Company
A115: C & J Equipment
A116: Cason's Equipment
A117: Equipment East, LLC
A118: Frank LaBelle's Sales & Service
A119: Husqvarna Professional Products, Inc.
A120: James R. Rosencrantz & Sons, Inc
A121: Maestranzi Bros.
A122: Mayer Power Products Inc
A123: Summa Humma Enterprises, LLC dba MB Tractor and Equipment
A124: Morrison's Power Equipment Inc
A125: MTE, Inc
A126: Norfolk Power Equipment
A127: Regal Turf Innovations, LLC
A128: Richey & Clapper, Inc
A129: Stewards Power Equipment, Inc
A130: Suzuki of Western Mass, Inc dba AllPower
A131: The Toro Company
A132: Toni's State Line Power Products, LLC
A133: Tri County Contractors Supply, Inc
A134: Turf Products
A135: Ultra Automotive Inc dba Orlando's Garage
A136: United Ag & Turf NE, LLC
A140: BPLE Prices
A141: Product | B141: Manufacturer | C141: Name | D141: SKU/model number | E141: Blade size (mowers) | F141: Included batteries | G141: Cost | H141: Extra battery cost | I141: Battery Voltage | J141: battery Ah | K141: Battery kWh | L141: Source | M141: Notes/additional sources
A142: Zero-Turn Mower | B142: Mean Green | C142: EVO | D142: EVO74R350 | E142: 74" | F142: 1 | G142: 50000 | K142: 35 | L142: https://www.gardenland.com/product/mean-green-evo-battery-powered-zero-turn-mower/ | M142: https://meangreenproducts.com/evo-74-ztr/ | N142: Comparable to 40HP diesel mower
A143: Zero-Turn Mower | B143: Mean Green | C143: Rival | D143: RVL60S220 | E143: 60" | F143: 1 | G143: 35000 | K143: 22 | L143: https://meangreenproducts.com/rival/ | M143: https://www.russopower.com/mean-green-rival-60-commercial-electric-zero-turn-mower-with-side-discharge | N143: 36HP equivalent
A144: Zero-Turn Mower | B144: Mean Green | C144: Demo | D144: CXR-52-130209 | E144: 52" | F144: 1 | G144: 24000 | L144: https://www.gardenland.com/product/mean-green-2019-cxr-52-industrial-demo-unit-for-sale/
A145: Zero-Turn Mower | B145: Mean Green | C145: Nemesis | E145: 48" | F145: 1 | G145: 13600 | K145: 7.2 | L145: https://meangreenproducts.com/nemesis/ | M145: https://lawnmowerhosp.com/product/mean-green-mowers-nxr-4852-nemesis-1772 | N145: 28HP
A146: Zero-Turn Mower | B146: Gravely | C146: Pro-Turn EV | D146: 997008 | E146: 48" | F146: 1 | G146: 32340 | K146: 16 | L146: https://www.gravely.com/en-us/power-equipment/electric/pro-turn-ev?gclid=Cj0KCQjw-fmZBhDtARIsAH6H8qguQSfK-ZsqXKW4UXS_-wM0gwl0DhSEXOvYGklTFives5Ydpmwp04oaApQqEALw_wcB | M146: https://dirtydeedspowersports.com/Lawn-Mowers-Riding-Gravely-USA-Pro-Turn-EV-48-in-RD-16-kWh-Li-ion-2022-Longview-TX-6c4f27fb-fe32-47ac-85f4-addb004fb6b3#:~:text=RD%2016%20kWh%20Li%2Dion%20%E2%80%A2%20%2432%2C340
A147: Zero-Turn Mower | B147: Gravely | C147: Pro-Turn EV | D147: 997007 | E147: 60" | F147: 1 | G147: 32600 | K147: 16 | L147: https://www.gravely.com/en-us/power-equipment/electric/pro-turn-ev?gclid=Cj0KCQjw-fmZBhDtARIsAH6H8qguQSfK-ZsqXKW4UXS_-wM0gwl0DhSEXOvYGklTFives5Ydpmwp04oaApQqEALw_wcB | M147: https://performancepowerequipment.org/Lawn-Mowers-Riding-Gravely-USA-Pro-Turn-EV-60-in-SD-16-kWh-Li-ion-2022-Columbia-City-IN-e61e35e9-2f8f-47bd-901a-addb0069b676
A148: Zero-Turn Mower | B148: Greenworks | C148: CZ60R 82-volt ride on zero turn mower | D148: 2522302 | E148: 60" | F148: 1 | G148: 19000 | K148: 16 | L148: https://commercial.greenworkstools.com/products/cz60r-82-volt-60-ride-on-zero-turn-mower
A149: Stand-on Mower | B149: Mean Green | C149: Vanquish | E149: 60" | F149: 1 | G149: 29400 | K149: 22 | L149: https://lawnmowerhosp.com/product/mean-green-mowers-5260-vanquish-2102 | M149: https://meangreenproducts.com/vanquish/ | N149: 36HP equivalent
A150: Stand-on Mower | B150: Toro | C150: Grandstand Revolution | E150: 48" | F150: 1 | G150: 34000 | K150: 18.7 | L150: https://revolution.toro.com/grandstand/
A151: Push-Mower | B151: Toro | C151: HD21 Revolution | E151: 21" | F151: 2 | G151: 1800 | I151: 60 | J151: 12 | K151: =(I151*J151)/1000 -> 0.72 | L151: https://revolution.toro.com/hd-21/ | M151: Assumping 12.5 ah battery - https://www.thedailygardener.com/lawn-mower-battery-amps
A152: Push-Mower | B152: Greenworks | C152: Self propelled mower with 8Ah Battery | D152: 2542602 | E152: 25" | F152: 1 | G152: 900 | H152: 500 | I152: 82 | J152: 8 | K152: =(I152*J152)/1000 -> 0.656 | L152: https://www.greenworkscommercial.com/82lm25s-8dp-82-volt-25-self-propelled-mower-with-8ah-battery-and-8a-dual-port-charger | M152: https://www.greenworkscommercial.com/82v-8-ah-21700-battery-w-bluetooth-and-digital-readout
A154: Walk-Behind Mower | B154: Mean Green | C154: WBX-33 walk behind | D154: WBX33R072 | E154: 33" | F154: 1 | G154: 12129 | K154: 7 | L154: https://lawnmowerhosp.com/product/mean-green-mowers-33-walk-behind-1773
A155: Handheld Leaf Blower | B155: Greenworks | C155: 82BH22-4DP 82V HANDHELD BRUSHLESS AXIAL BLOWER WITH 4AH BATTERY AND 8A DUAL PORT CHARGER | D155: 2426702VT | F155: 1 | G155: 500 | H155: 330 | I155: 82 | J155: 4 | K155: =(I155*J155)/1000 -> 0.328 | L155: https://commercial.greenworkstools.com/products/82bh22-82v-handheld-brushless-axial-blower-with-4ah-battery-and-8a-dual-port-charger
A156: Backpack Leaf Blower | B156: Greenworks | C156: 82BA26-52DP 82V Dual Port Backpack Blower with Two 5Ah Batteries and One 8A Charger | D156: 2424602 | F156: 2 | G156: 800 | H156: 330 | I156: 82 | J156: 5 | K156: =(I156*J156)/1000 -> 0.41 | L156: https://commercial.greenworkstools.com/products/82ba26-52dp-82-volt-dual-port-backpack-blower-with-two-5ah-batteries-and-one-8a-charger | M156: Comes with two batteries and one charger
A158: String Trimmer | B158: Greenworks | C158: 82ST15-4DP 82-Volt Gen II 1.5kW FM String Trimmer with 4Ah Battery and 8A Charger | D158: 2129602 | F158: 1 | G158: 600 | H158: 330 | I158: 82 | J158: 4 | K158: =(I158*J158)/1000 -> 0.328 | L158: https://commercial.greenworkstools.com/products/82st15-4dp-82-volt-gen-ii-1-5kw-fm-string-trimmer-with-4ah-battery-and-8a-charger-coming-soon
A159: Chainsaw | B159: Greenworks | C159: 82CS27-4DP 82V 18" 2.7kW Chainsaw with 4Ah Battery and 8A Charge | D159: 2025202 | E159: 18" | F159: 1 | G159: 550 | H159: 330 | I159: 82 | J159: 4 | K159: =(I159*J159)/1000 -> 0.328 | L159: https://commercial.greenworkstools.com/products/82cs27-4dp-82-volt-18-2-7kw-chainsaw-with-4ah-battery-and-8a-charger-coming-soon | M159: Note that larger batteries are available
A160: Chainsaw | B160: EGO | C160: EGO POWER+ Commercial 56-volt 12-in Brushless Cordless Electric Chainsaw 5 Ah (Battery & Charger Included) | D160: CSX3003 | E160: 12" | F160: 1 | G160: 700 | I160: 56 | J160: 5 | K160: =(I160*J160)/1000 -> 0.28 | L160: https://www.lowes.com/pd/EGO-POWER-Commercial-Series-Top-Handle-Chainsaw-Kit/5002134691
A163: Backpack Battery | B163: EGO | C163: EGO 28 Ah Lithium Ion | D163: BAX1501 | F163: 1 | G163: 1399 | I163: 56 | J163: 28 | K163: =(I163*J163)/1000 -> 1.568 | L163: https://www.lowes.com/pd/EGO-POWER-Commercial-Backpack-Battery/5000528371?irclickid=2rHXCG2Cazj1TXTycr3UOQJMUkDQ-t3Jo0zb3Y0&irgwc=1&cm_mmc=aff-_-c-_-prd-_-mdv-_-gdy-_-all-_-0-_-2481278-_-0 | M163: Can be used with any commercial EGO products

Sheet Appendix - Electric DF Values (hidden)
A1: Product | B1: Manufacturer | C1: Name | D1: SKU/model number | E1: Blade size (mowers) | F1: Zero Turn? | G1: Air Volume (cfm) (blowers) | H1: Bar Length (in) (chain saws) | I1: Blade Length (in) (trimmers) | J1: Cutting Path (in) (string trimmers and edgers) | K1: Engine Capacity (cc) | L1: Included batteries | M1: Built In or Swappable Batteries | N1: Cost | O1: Extra battery cost | P1: Battery Voltage | Q1: Battery Ah | R1: Total Machine Battery kWh | S1: Commercial (Mass Save Rebate) | T1: Source | U1: Price Source: | V1: Battery Price Source: | W1: Notes/additional sources
A2: Ride-On Mower | B2: Gravely | C2: Pro-Turn EV | D2: 997005 / 997008 | E2: 48" | F2: Yes | L2: 4 | M2: Swappable Batteries | N2: 32667 | R2: 16 | S2: Yes | T2: https://www.gravely.com/en-us/power-equipment/electric/pro-turn-ev/pro-turn-ev48-rd-w-4-batteries | W2: Side / Rear Discharge
A3: Ride-On Mower | B3: Gravely | C3: Pro-Turn EV | D3: 997006 / 997009 | E3: 52" | F3: Yes | L3: 4 | M3: Swappable Batteries | N3: 32893 | R3: 16 | S3: Yes | T3: https://www.gravely.com/en-us/power-equipment/electric/pro-turn-ev/pro-turn-ev52-sd-w-4-batteries | W3: Side / Rear Discharge
A4: Ride-On Mower | B4: Gravely | C4: Pro-Turn EV | D4: 997007 / 997010 | E4: 60" | F4: Yes | L4: 4 | M4: Swappable Batteries | N4: 32959 | R4: 16 | S4: Yes | T4: https://www.gravely.com/en-us/power-equipment/electric/pro-turn-ev/pro-turn-ev60-rd-w-4-batteries | W4: Side / Rear Discharge
A5: Ride-On Mower | B5: Toro | C5: Z Master Revolution | D5: 18748 | E5: 48" | F5: Yes | L5: 10 | N5: $38,999 *dependent on dealer | R5: 23.4 | S5: Yes | T5: https://www.toro.com/en/product/18748#specifications | U5: https://www.arcolawn.com/products/revolution-series-48-18748#:~:text=Toro%20SKU%3A,TOR-18748%20Price%3A%20%2438%2C999.00
A6: Ride-On Mower | B6: Toro | C6: Z Master Revolution | D6: 18752 | E6: 52" | F6: Yes | L6: 10 | N6: $39,499 *dependent on dealer | R6: 23.4 | S6: Yes | T6: https://www.toro.com/en/product/18752#specifications | U6: https://www.arcolawn.com/products/revolution-series-52-18752
A7: Ride-On Mower | B7: Toro | C7: Z Master Revolution | D7: 18760 | E7: 60" | F7: Yes | L7: 10 | N7: $41,239 *dependent on dealer | R7: 23.4 | S7: Yes | T7: https://www.toro.com/en/product/18760#specifications | U7: https://www.arcolawn.com/products/revolution-series-60-18760
A8: Ride-On Mower | B8: Toro | C8: Z Master Revolution MyRide | D8: 18765 | E8: 60" | F8: Yes | L8: 10 | N8: *requires call for price, multiple vendors | R8: 23.4 | S8: Yes | T8: https://www.toro.com/en/product/18765#specifications
A9: Ride-On Mower | B9: Greenworks | C9: OptimusZ Ride-On Zero-Turn | D9: 7414602 (CZ48R24X) | E9: 48" | F9: Yes | L9: 1 | M9: Built in battery | N9: 26999.99 | R9: 24 | S9: Yes | T9: https://commercial.greenworkstools.com/collections/optimus/products/cz48r24x-optimusz-48-24kwh-ride-on-zero-turn-mower
A10: Ride-On Mower | B10: Greenworks | C10: OptimusZ Ride-On Zero-Turn | D10: 7411502 (CZ52R24X) | E10: 52" | F10: Yes | L10: 1 | M10: Built in battery | N10: 26999.99 | R10: 24 | S10: Yes | T10: https://commercial.greenworkstools.com/collections/optimus/products/cz52r24x-optimusz-52-24kwh-ride-on-zero-turn-mower
A11: Ride-On Mower | B11: Greenworks | C11: OptimusZ Ride-On Zero-Turn | D11: 7411702 (CZ60R24X) | E11: 60" | F11: Yes | L11: 1 | M11: Built in battery | N11: 26999.99 | R11: 24 | S11: Yes | T11: https://commercial.greenworkstools.com/collections/optimus/products/cz60r24x-optimusz-60-24kwh-ride-on-zero-turn-mower
A12: Ride-On Mower | B12: Greenworks | C12: OptimusZ Ride-On Zero-Turn | D12: 7414802 (CZ48R18X) | E12: 48" | F12: Yes | L12: 1 | M12: Built in battery | N12: 22999.99 | R12: 18 | S12: Yes | T12: https://commercial.greenworkstools.com/collections/optimus/products/cz48r18x-optimus-draft
A13: Ride-On Mower | B13: Greenworks | C13: OptimusZ Ride-On Zero-Turn | D13: 7415002 (CZ52R18X) | E13: 52" | F13: Yes | L13: 1 | M13: Built in battery | N13: 22999.99 | R13: 18 | S13: Yes | T13: https://commercial.greenworkstools.com/collections/optimus/products/cz52r18x-optimus-draft
A14: Ride-On Mower | B14: Greenworks | C14: OptimusZ Ride-On Zero-Turn | D14: 7415202 (CZ60R18X) | E14: 60" | F14: Yes | L14: 1 | M14: Built in battery | N14: 22999.99 | R14: 18 | S14: Yes | T14: https://commercial.greenworkstools.com/collections/optimus/products/cz60r18x-optimus-draft-1
A15: Ride-On Mower | B15: Mean Green | C15: EVO Zero Turn | E15: 74" | F15: Yes | L15: 1 | M15: Built in battery | N15: $49,940 *dependent on dealer and maybe battery size | R15: 14.5 | S15: Yes | T15: https://meangreenproducts.com/evo-74-ztr/ | U15: https://www.gardenland.com/product/mean-green-evo-battery-powered-zero-turn-mower/
A16: Ride-On Mower | B16: Mean Green | C16: EVO Zero Turn | E16: 74" | F16: Yes | L16: 1 | M16: Built in battery | N16: $49,940 *dependent on dealer and maybe battery size | R16: 22 | S16: Yes | T16: https://meangreenproducts.com/evo-74-ztr/ | U16: https://www.gardenland.com/product/mean-green-evo-battery-powered-zero-turn-mower/
A17: Ride-On Mower | B17: Mean Green | C17: EVO Zero Turn | E17: 74" | F17: Yes | L17: 1 | M17: Built in battery | N17: $49,940 *dependent on dealer and maybe battery size | R17: 35 | S17: Yes | T17: https://meangreenproducts.com/evo-74-ztr/ | U17: https://www.gardenland.com/product/mean-green-evo-battery-powered-zero-turn-mower/
A18: Ride-On Mower | B18: Mean Green | C18: RIVAL Zero Turn | D18: RVL52S220 / RVL52R220 | E18: 52" | F18: Yes | L18: 1 | M18: Built in battery | N18: $34,649 / $36,299 (for 22kWh) *dependent on dealer | R18: 14.5 or 22 | S18: Yes | T18: https://meangreenproducts.com/rival/ | U18: https://lawnmowerhosp.com/product/mean-green-mowers-5260-rival-1898 | W18: Side/Rear Discharge
A19: Ride-On Mower | B19: Mean Green | C19: RIVAL Zero Turn | D19: RVL60S220 / RVL60R220 | E19: 60" | F19: Yes | L19: 1 | M19: Built in battery | N19: $34,649 / $36,299 (for 22kWh) *dependent on dealer | R19: 14.5 or 22 | S19: Yes | T19: https://meangreenproducts.com/rival/ | U19: https://lawnmowerhosp.com/product/mean-green-mowers-5260-rival-1898 | W19: Side/Rear Discharge
A20: Ride-On Mower | B20: Mean Green | C20: VANQUISH Zero Turn | E20: 52" | F20: Yes | L20: 1 | M20: Built in battery | N20: 34650 | R20: 14.5 or 22 | S20: Yes | T20: https://meangreenproducts.com/vanquish/
A21: Ride-On Mower | B21: Mean Green | C21: VANQUISH Zero Turn | E21: 60" | F21: Yes | L21: 1 | M21: Built in battery | N21: 34650 | R21: 14.5 or 22 | S21: Yes | T21: https://meangreenproducts.com/vanquish/
A22: Ride-On Mower | B22: Mean Green | C22: NEMESIS Zero Turn | E22: 48" | F22: Yes | L22: 1 | M22: Built in battery | N22: 16499 | R22: 7.2 | S22: Yes | T22: https://meangreenproducts.com/nemesis/ | U22: https://opereviews.com/mean-green-nemesis-electric-zero-turn-mower/#:~:text=Mean%20Green%20Nemesis%20Price,the%20smaller%2048%2Dinch%20deck.
A23: Ride-On Mower | B23: Mean Green | C23: NEMESIS Zero Turn | E23: 60" | F23: Yes | L23: 1 | M23: Built in battery | N23: 16999 | R23: 7.2 | S23: Yes | T23: https://meangreenproducts.com/nemesis/ | U23: https://opereviews.com/mean-green-nemesis-electric-zero-turn-mower/#:~:text=Mean%20Green%20Nemesis%20Price,the%20smaller%2048%2Dinch%20deck.
A24: Ride-On Mower | B24: Cub Cadet | C24: ZT1 42E | D24: ZT1 42E | E24: 42" | F24: Yes | L24: 2 | N24: 5899 | P24: 56 | Q24: 60 | R24: =((P24*Q24)/1000) -> 3.36 | S24: No | T24: https://www.cubcadet.com/en_US/electric-riding-mowers/zt1-42e/34CBA2CS710.html
A25: Stand-On Mower | B25: Mean Green | C25: FURY Compact Zero Turn | E25: 32" | F25: Yes | L25: 1 | M25: Built in battery | N25: 26179 | R25: 11 | S25: Yes | T25: https://meangreenproducts.com/fury/
A26: Stand-On Mower | B26: Mean Green | C26: FURY Compact Zero Turn | E26: 36" | F26: Yes | L26: 1 | M26: Built in battery | N26: 26399 | R26: 11 | S26: Yes | T26: https://meangreenproducts.com/fury/
A27: Stand-On Mower | B27: Greenworks | C27: OptimusZ Stand-On Zero-Turn | D27: 7411402 (CZ48S24X) | E27: 48" | F27: Yes | L27: 1 | M27: Built in battery | N27: 25999.99 | R27: 24 | S27: Yes | T27: https://commercial.greenworkstools.com/collections/optimus/products/optimusz-48-24kwh-stand-on-zero-turn-mower-cz48s24x
A28: Stand-On Mower | B28: Greenworks | C28: OptimusZ Stand-On Zero-Turn | D28: 7411602 (CZ52S24X) | E28: 52" | F28: Yes | L28: 1 | M28: Built in battery | N28: 25999.99 | R28: 24 | S28: Yes | T28: https://commercial.greenworkstools.com/collections/optimus/products/cz52s24x-optimusz-52-24kwh-stand-on-zero-turn-mower
A29: Stand-On Mower | B29: Greenworks | C29: OptimusZ Stand-On Zero-Turn | D29: 7414502 (CZ60S24X) | E29: 60" | F29: Yes | L29: 1 | M29: Built in battery | N29: 25999.99 | R29: 24 | S29: Yes | T29: https://commercial.greenworkstools.com/collections/optimus/products/cz60s24x-optimusz-60-24kwh-stand-on-zero-turn-mower
A30: Stand-On Mower | B30: Greenworks | C30: OptimusZ Stand-On Zero-Turn | D30: 7414702 (CZ48S18X) | E30: 48" | F30: Yes | L30: 1 | M30: Built in battery | N30: 21999.99 | R30: 18 | S30: Yes | T30: https://commercial.greenworkstools.com/collections/optimus/products/cz48s18x-optimus-draft
A31: Stand-On Mower | B31: Greenworks | C31: OptimusZ Stand-On Zero-Turn | D31: 7414902 (CZ52S18X) | E31: 52" | F31: Yes | L31: 1 | M31: Built in battery | N31: 21999.99 | R31: 18 | S31: Yes | T31: https://commercial.greenworkstools.com/collections/optimus/products/cz52s18x-optimus-draft
A32: Stand-On Mower | B32: Greenworks | C32: OptimusZ Stand-On Zero-Turn | D32: 7415102 (CZ60S18X) | E32: 60" | F32: Yes | L32: 1 | M32: Built in battery | N32: 21999.99 | R32: 18 | S32: Yes | T32: https://commercial.greenworkstools.com/collections/optimus/products/cz60s18x-optimus-draft
A33: Stand-On Mower | B33: Greenworks | C33: OptimusZ Stand-On Zero-Turn | D33: 7409902 (CZ32S8) | E33: 32" | F33: Yes | L33: 1 | M33: Built in battery | N33: 12999.99 | R33: 8 | S33: Yes | T33: https://commercial.greenworkstools.com/collections/optimus/products/cz32s8-optimusz-32-8kwh-stand-on-zero-turn-mower
A34: Stand-On Mower | B34: Greenworks | C34: OptimusZ Stand-On Zero-Turn | D34: 7415502 (CZ36S8X) | E34: 36" | F34: Yes | L34: 1 | M34: Built in battery | N34: 12999.99 | R34: 8 | S34: Yes | T34: https://commercial.greenworkstools.com/collections/optimus/products/cz36s8-optimusz-36-8kwh-stand-on-zero-turn-mower
A35: Stand-On Mower | B35: Toro | C35: GrandStand Revolution | D35: 18562 | E35: 48" | L35: 8 | N35: $40,090 *dependent on dealer | R35: 18.4 | S35: Yes | T35: https://www.toro.com/en/product/18562 | U35: https://www.ssacehardware.com/new-models/toro-grandstand-revolution-48-122-cm-18562-29009557b
A36: Stand-On Mower | B36: Toro | C36: GrandStand Revolution | D36: 18560 | E36: 52" | L36: 8 | N36: $34,999 *dependent on dealer | R36: 18.4 | S36: Yes | T36: https://www.toro.com/en/product/18560#specifications | U36: https://www.arcolawn.com/products/revolution-grandstand%C2%AE-52-18560?pr_prod_strat=use_description&pr_rec_id=4fcabc1de&pr_rec_pid=6796828213318&pr_ref_pid=6796828180550&pr_seq=uniform
A37: Stand-On Mower | B37: Toro | C37: GrandStand Revolution | D37: 18564 | E37: 60" | L37: 8 | N37: $35,499 *dependent on dealer | R37: 18.4 | S37: Yes | T37: https://www.toro.com/en/product/18564 | U37: https://www.arcolawn.com/products/revolution-grandstand%C2%AE-60-18564
A38: Stand-On Mower | B38: Gravely | C38: Pro-Stance EV | D38: 998001 / 998004 | E38: 48" | L38: 4 | M38: Swappable Batteries | N38: 32667 | R38: 16 | S38: Yes | T38: https://www.gravely.com/en-us/power-equipment/electric/pro-stance-ev/prostance-ev-48sd-w-4batteries | W38: Side / Rear Discharge
A39: Stand-On Mower | B39: Gravely | C39: Pro-Stance EV | D39: 998002 / 998005 | E39: 52" | L39: 4 | M39: Swappable Batteries | N39: 32893 | R39: 16 | S39: Yes | T39: https://www.gravely.com/en-us/power-equipment/electric/pro-stance-ev/prostance-ev-52sd-w-4batteries | W39: Side / Rear Discharge
A40: Stand-On Mower | B40: Gravely | C40: Pro-Stance EV | D40: 998003 / 998006 | E40: 60" | L40: 4 | M40: Swappable Batteries | N40: 32959 | R40: 16 | S40: Yes | T40: https://www.gravely.com/en-us/power-equipment/electric/pro-stance-ev/prostance-ev-60rd-w-4batteries | W40: Side / Rear Discharge
A41: Stand-On Mower | B41: exMark | C41: Vertex V-Series | D41: VXV060B1852A00 | E41: 52" | L41: 1 | N41: 39999 | R41: 18.4 | S41: Yes | T41: https://www.exmark.com/products/mowers/stand-on/vertex/vertex-v-series#features
A42: Ride-On Mower | B42: EGO | C42: Power+ Zero Turn Mower with E-Steer Technology | D42: ZT4205S | E42: 42" | F42: Yes | L42: 4 | N42: 5999 | O42: 576.2814286 | P42: 56 | Q42: 12 | R42: =((P42*Q42)/1000) -> 0.672 | S42: No | T42: https://egopowerplus.com/42-inch-zero-turn-mower-e-steer-zt4205s/ | U42: https://egopowerplus.com/battery-12-amp-ba6720t/ | W42: Charger included
A43: Ride-On Mower | B43: EGO | C43: Power+ 52” Z6 Zero Turn Riding Mower | D43: ZT5207L | E43: 52" | F43: Yes | L43: 6 | N43: 6570.57 | O43: 576.2814286 | P43: 56 | Q43: 12 | R43: =((P43*Q43)/1000)*L43 -> 4.032 | S43: No | T43: https://egopowerplus.com/52inch-zero-turn-riding-mower-zt5200l/ | W43: Charger included
A44: Ride-On Mower | B44: EGO | C44: Power+ 42” Z6 Zero Turn Riding Mower | D44: ZT4204L | E44: 42" | F44: Yes | L44: 4 | N44: 4693.222857 | P44: 56 | Q44: 10 | R44: =((P44*Q44)/1000)*L44 -> 2.24 | S44: No | T44: https://egopowerplus.com/zero-turn-riding-mower-zt4204l/
A45: Push Mower | B45: Greenworks | C45: 82V 30" Self-propelled Lawn Mower | D45: 2544702 (82LM30S-83DP) | E45: 30" | L45: 3 | N45: 2999 | O45: 494 | P45: 56 | Q45: 24 | R45: =(P45*Q45)/1000 -> 1.344 | S45: No | T45: https://commercial.greenworkstools.com/products/82v-30-self-propelled-lawn-mower-with-3-8ah-batteries-and-dual-port-charger-82lm30s-83dp_ | V45: https://commercial.greenworkstools.com/products/82v-8-ah-21700-battery-w-bluetooth-and-digital-readout-coming-in-2022?_pos=7&_sid=2ae20554c&_ss=r | W45: Dual Port Charger Included
A46: Push Mower | B46: Greenworks | C46: 82V 25" Self-propelled Lawn Mower | D46: 2542602 (82LM25S-8DP) | E46: 25" | L46: 1 | N46: 899 | O46: 494 | P46: 56 | Q46: 8 | R46: =(P46*Q46)/1000 -> 0.448 | S46: No | T46: https://commercial.greenworkstools.com/products/82lms25-8dp-82-volt-25-self-propelled-mower-with-8ah-battery-and-8a-dual-port-charger Extra Battery: https://commercial.greenworkstools.com/products/82v-8-ah-21700-battery-w-bluetooth-and-digital-readout-coming-in-2022?_pos=7&_sid=2ae20554c&_ss=r | W46: Dual Port Charger Included
A47: Push Mower | B47: Greenworks | C47: 82V 21" Brushless Self-Propelled Mower | D47: 2542802 (82LM21S-8DP) | E47: 21" | L47: 1 | N47: 899 | O47: 494 | P47: 56 | Q47: 8 | R47: 0.448 | S47: No | T47: https://commercial.greenworkstools.com/collections/lawn-mowers/products/82lms21-8dp-82-volt-21-self-propelled-mower-with-8ah-battery-and-8a-dual-port-charger Extra Battery: https://commercial.greenworkstools.com/products/82v-8-ah-21700-battery-w-bluetooth-and-digital-readout-coming-in-2022?_pos=7&_sid=2ae20554c&_ss=r | W47: Dual Port Charger Included
A48: Push Mower | B48: Greenworks | C48: 82V 21" Brushless Push Mower | D48: 2541502 (82LM21-5DP) | E48: 21" | L48: 1 | N48: 749 | O48: 329 | P48: 56 | Q48: 5 | R48: 0.28 | S48: No | T48: https://commercial.greenworkstools.com/collections/lawn-mowers/products/gm-210-5dp-82-volt-21-brushless-push-mower-with-5ah-battery-and-8a-charger-coming-soon Extra Battery Cost: https://commercial.greenworkstools.com/products/82v-5-ah-battery-w-bluetooth-and-digital-readout-new-for-2022-replaces-gl500?_pos=10&_sid=2ae20554c&_ss=r | W48: Dual Port Charger Included
A49: Push Mower | B49: Greenworks | C49: 82V 21” Self-Propelled Mower | D49: 2544602 (MO82410) | E49: 21" | L49: 1 | N49: 499 | O49: 299 | P49: 56 | Q49: 4 | R49: 0.224 | S49: No | T49: https://commercial.greenworkstools.com/collections/lawn-mowers/products/82v-21-self-propelled-mower-with-4ah-battery-and-single-port-charger-mo82410 Extra Battery: https://commercial.greenworkstools.com/products/gl400bt-82-volt-4ah-bluetooth-capable-battery?_pos=6&_sid=2ae20554c&_ss=r | W49: Single Port Charger Included
A50: Push Mower | B50: Greenworks | C50: 48V/24V 21" Dual-Volt Lawn Mower | D50: 2527002 | E50: 21" | N50: 399 | P50: 48/24 | S50: No | T50: https://commercial.greenworkstools.com/collections/lawn-mowers/products/48pm21-48v-24v-21-dual-volt-lawn-mower-with-battery-and-charger | W50: Charger included
A51: Push Mower | B51: EGO | C51: Power+ Select Cut XP Mower - Touchdrive | D51: LM2156SP-2 | E51: 21" | L51: 2 | N51: 1099 | O51: 499 | P51: 56 | Q51: 10 | R51: =(P51*Q51)/1000*L51 -> 1.12 | S51: No | T51: https://egopowerplus.com/21-inch-self-propelled-mower-select-cut-xp-lm2156sp/ | V51: https://egopowerplus.com/battery-10-amp/ | W51: Charger included
A52: Push Mower | B52: EGO | C52: Power+ Select Cut XP Mower - Touchdrive | D52: LM2156SP | E52: 21" | L52: 1 | N52: 799.33 | O52: 499 | P52: 56 | Q52: 10 | R52: =(P52*Q52)/1000*L52 -> 0.56 | S52: No | T52: https://egopowerplus.com/21-inch-self-propelled-mower-select-cut-xp-lm2156sp/ | V52: https://egopowerplus.com/battery-10-amp/ | W52: Charger included
A53: Push Mower | B53: EGO | C53: Power+ Select Cut Mower - Touchdrive | D53: LM2135SP | E53: 21" | L53: 1 | N53: 773.5875 | O53: 399 | P53: 56 | Q53: 7.5 | R53: 0.42 | S53: No | T53: https://egopowerplus.com/21-inch-self-propelled-mower-select-cut/ | U53: https://egopowerplus.com/battery-7-5amp-fuel-gauge/ | W53: Charger included
A54: Push Mower | B54: EGO | C54: Power+ Select Cut Mower | D54: LM2135 | E54: 21" | L54: 1 | N54: 649 | O54: 299 | P54: 56 | Q54: 7.5 | R54: 0.42 | S54: No | T54: https://egopowerplus.com/21-inch-mower-select-cut/ | U54: https://egopowerplus.com/battery-5-0-amp-fuel-gauge/ | W54: Charger included
A55: Push Mower | B55: EGO | C55: Power+ Select Cut Mower | D55: LM2133 | E55: 21" | L55: 1 | N55: 737.72 | O55: 293.6222222 | P55: 56 | Q55: 5 | R55: 0.28 | S55: No | T55: https://egopowerplus.com/21-inch-mower-select-cut/ | V55: https://egopowerplus.com/battery-5-0-amp-fuel-gauge/ | W55: Charger included
A56: Push Mower | B56: EGO | C56: Power+ Select Cut XP Mower - SpeedIQ | D56: LM2167SP | E56: 21" | L56: 1 | N56: 999.33 | O56: 599 | P56: 56 | Q56: 12 | R56: 0.672 | S56: No | T56: https://egopowerplus.com/select-cut-xp-sp-speed-iq-lm2160sp/ | U56: https://egopowerplus.com/battery-12-amp-ba6720t/ | W56: Charger included
A57: Push Mower | B57: EGO | C57: Power+ Mower - Touchdrive | D57: LM2125SP | E57: 21" | L57: 1 | N57: 527.8316667 | O57: 399 | P57: 56 | Q57: 7.5 | R57: 0.42 | S57: No | T57: https://egopowerplus.com/21-inch-self-propelled-mower-touch-drive-lm2120sp/ | W57: Charger included
A58: Push Mower | B58: EGO | C58: Power+ Self-Propelled Mower | D58: LM2114SP | E58: 21" | L58: 1 | N58: 545 | O58: 339 | P58: 56 | Q58: 6 | R58: 0.336 | S58: No | T58: https://egopowerplus.com/21-inch-self-propelled-mower-lm2110sp/ | U58: https://egopowerplus.com/battery-6-amp-ba3360t/ | W58: Charger included
A59: Push Mower | B59: EGO | C59: Power+ Mower | D59: LM2114 | E59: 21" | L59: 1 | N59: 436.5 | O59: 339 | P59: 56 | Q59: 6 | R59: 0.336 | S59: No | T59: https://egopowerplus.com/21-inch-mower-lm2110/ | U59: https://egopowerplus.com/battery-6-amp-ba3360t/ | W59: Charger included
A60: Push Mower | B60: EGO | C60: Power+ Self-Propelled Mower | D60: LM2102SP | E60: 21" | L60: 1 | N60: 651.4925 | O60: 399 | P60: 56 | Q60: 7.5 | R60: 0.42 | S60: No | T60: https://egopowerplus.com/21-inch-self-propelled-mower/ | U60: https://egopowerplus.com/battery-7-5amp-fuel-gauge/ | W60: Rapid Charger included
A61: Push Mower | B61: EGO | C61: Power+ Self-Propelled Mower | D61: LM2102SP-A | E61: 21" | L61: 2 | N61: 639 | O61: 219.71 | P61: 56 | Q61: 4 | R61: =((P61*Q61)/1000)*L61 -> 0.448 | S61: No | T61: https://egopowerplus.com/21-inch-self-propelled-mower/ | V61: https://egopowerplus.com/battery-4amp-ba2242t/ | W61: Rapid Charger included
A62: Push Mower | B62: EGO | C62: Power+ Mower | D62: LM2101 | E62: 21" | L62: 1 | N62: 447.37 | O62: 293.6222222 | P62: 56 | Q62: 5 | R62: =(P62*Q62)/1000 -> 0.28 | S62: No | T62: https://egopowerplus.com/mower-21-inch/ | U62: https://egopowerplus.com/battery-5-0-amp-fuel-gauge/ | W62: Rapid Charger included
A63: Push Mower | B63: EGO | C63: Power+ 21" Self-Propelled Mower with Peak Power | D63: LM2142SP | E63: 21" | L63: 2 | N63: 817.71875 | O63: 293.6222222 | P63: 56 | Q63: 5 | R63: 0.28 | S63: No | T63: https://egopowerplus.com/mower-21-inch-self-propelled-dual-battery/ | U63: https://egopowerplus.com/battery-5-0-amp-fuel-gauge/ | W63: Rapid Charger included
A64: Push Mower | B64: EGO | C64: Power+ 20" Self-Propelled Mower with Steel Deck | D64: LM2022SP | E64: 20" | L64: 1 | N64: 699 | O64: 399 | P64: 56 | Q64: 7.5 | R64: 0.42 | S64: No | T64: https://egopowerplus.com/20-inch-self-propelled-mower-with-steel-deck/ | U64: https://egopowerplus.com/battery-7-5amp-fuel-gauge/ | W64: Rapid Charger included
A65: Push Mower | B65: Echo | C65: Echo eForce | D65: DLM-2100SP | E65: 21" | L65: 1 | N65: 549.99 | O65: *Dependent on dealer | P65: 56 | Q65: 5 | R65: 0.28 | S65: No | T65: https://www.echo-usa.com/mowers/dlm-2100sp | W65: includes charger
A66: Push Mower | B66: Echo | C66: Echo eForce | D66: DLM-2100 | E66: 21" | L66: 1 | N66: 449.99 | O66: *Dependent on dealer | P66: 56 | Q66: 5 | R66: 0.28 | S66: No | T66: https://www.echo-usa.com/mowers/dlm-2100 | W66: includes standard charger
A67: Backpack Blower | B67: Greenworks | C67: 82V Backpack Blower | D67: 2424602 (82BA26-52DP) | G67: 690 | L67: 2 | N67: 899.99 | O67: 329.99 | P67: 82 | Q67: 5 | R67: =((P67*Q67)/1000)*L67 -> 0.82 | S67: Yes | T67: https://commercial.greenworkstools.com/collections/leaf-blowers/products/82ba26-52dp-82-volt-dual-port-backpack-blower-with-two-5ah-batteries-and-one-8a-charger | V67: https://commercial.greenworkstools.com/products/82v-5-ah-battery-w-bluetooth-and-digital-readout-new-for-2022-replaces-gl500?_pos=1&_sid=e525e33f1&_ss=r | W67: Includes one dual port charger
A68: Backpack Blower | B68: EGO | C68: Commercial 800 CFM Backpack Blower with Peak Power | D68: LBPX8006-2 | G68: 800 | L68: 2 | N68: 1299.396 | O68: 499.44 | P68: 56 | Q68: 10 | R68: =((P68*Q68)/1000)*L68 -> 1.12 | S68: Yes | T68: https://egopowerplus.com/commercial-800cfm-backpack-blower-lbpx8000/ | V68: https://egopowerplus.com/battery-10-amp/ | W68: Includes Dual port charger
A69: Backpack Blower | B69: EGO | C69: Commercial 800 CFM Backpack Blower with Peak Power | D69: LBPX8004-2 | G69: 800 | L69: 2 | N69: 699.33 | O69: 339 | P69: 56 | Q69: 6 | R69: 0.672 | S69: Yes | T69: https://egopowerplus.com/commercial-800cfm-backpack-blower-lbpx8000/ | V69: https://egopowerplus.com/battery-6-amp-ba3360t/ | W69: Includes Dual port charger
A70: Handheld Blower | B70: EGO | C70: Power+ 765 CFM Blower | D70: LB7654-2 | G70: 765 | L70: 2 | N70: 499.2475 | O70: 286.1166667 | P70: 56 | Q70: 5 | R70: 0.56 | S70: Yes | T70: https://egopowerplus.com/blower-765cfm/ | V70: https://egopowerplus.com/battery-5-0-amp-fuel-gauge/ | W70: Includes rapid charger
A71: Handheld Blower | B71: EGO | C71: Power+ 765 CFM Blower | D71: LB7654 | G71: 765 | L71: 1 | N71: 499.2475 | O71: 286.1166667 | P71: 56 | Q71: 5 | R71: =((P71*Q71)/1000)*L71 -> 0.28 | S71: No | T71: https://egopowerplus.com/blower-765cfm/ | V71: https://egopowerplus.com/battery-5-0-amp-fuel-gauge/ | W71: Includes rapid charger
A72: Backpack Blower | B72: EGO | C72: Power+ 600 CFM Backpack Blower | D72: LB6003 | G72: 600 | L72: 1 | N72: 461.5411111 | O72: 403.374 | P72: 56 | Q72: 7.5 | R72: =((P72*Q72)/1000)*L72 -> 0.42 | S72: No | T72: https://egopowerplus.com/blower-600cfm/ | V72: https://egopowerplus.com/battery-7-5amp-fuel-gauge/ | W72: Includes standard charger and battery with fuel gauge
A73: Backpack Blower | B73: EGO | C73: Power+ 600 CFM Backpack Blower | D73: LB6002 | G73: 600 | L73: 1 | N73: 299.475 | P73: 56 | Q73: 5 | R73: =((P73*Q73)/1000)*L73 -> 0.28 | S73: No | T73: https://egopowerplus.com/blower-600cfm/ | V73: https://egopowerplus.com/battery-5amp/ | W73: Includes standard charger; 5Ah is not sold separately
A74: Backpack Blower | B74: Husqvarna | C74: 550iBTX | D74: 967 68 11‑04 | G74: 452.03 | L74: 0 | N74: 499.99 | P74: 40 | R74: =((P74*Q74)/1000)*L74 -> 0 | S74: No | T74: https://www.husqvarna.com/us/leaf-blowers/550ibtx/
A75: Backpack Blower | B75: Husqvarna | C75: 340iBT | D75: 967 68 12‑04 | G75: 483.81 | L75: 0 | N75: 499.99 | P75: 40 | R75: =((P75*Q75)/1000)*L75 -> 0 | S75: No | T75: https://www.husqvarna.com/us/leaf-blowers/340ibt/
A76: Handheld Blower | B76: Greenworks | C76: 82V Handheld Brushless Axial Blower | D76: 2426702VT (82BH22-4DP) | G76: 760 | L76: 1 | N76: 499.99 | P76: 82 | Q76: 4 | R76: =((P76*Q76)/1000)*L76 -> 0.328 | S76: No | T76: https://commercial.greenworkstools.com/collections/leaf-blowers/products/82bh22-82v-handheld-brushless-axial-blower-with-4ah-battery-and-8a-dual-port-charger | W76: Includes one dual port charger
A77: Handheld Blower | B77: Greenworks | C77: Dual-Volt Axial Blower | D77: 2417202 (48B500) | G77: 500 | L77: 1 | N77: 299.99 | P77: 48/24 | Q77: 2 | S77: No | T77: https://commercial.greenworkstools.com/collections/leaf-blowers/products/48b500-48v-24v-500-cfm-dual-volt-axial-blower-with-battery-and-charger | W77: Can use 4Ah battery too
A78: Handheld Blower | B78: Greenworks | C78: Dual-Volt Axial Blower | D78: 2417102 (48B450) | G78: 450 | L78: 1 | N78: 179.99 | P78: 48/24 | Q78: 2 | S78: No | T78: https://commercial.greenworkstools.com/collections/leaf-blowers/products/48b450-48v-24v-450-cfm-dual-volt-axial-blower-with-battery-and-charger | W78: Can use 4Ah battery too
A79: Handheld Blower | B79: Greenworks | C79: Axial Blower | D79: 2413802 (24B315) | G79: 315 | L79: 1 | N79: 119.99 | P79: 24 | Q79: 2 | R79: 0.048 | S79: No | T79: https://commercial.greenworkstools.com/collections/leaf-blowers/products/24b315-24-volt-315-cfm-axial-blower-with-battery-and-charger
A80: Handheld Blower | B80: Greenworks | C80: 82V Handheld Blower | D80: 2428002 (BL82210) | G80: 660 | L80: 1 | N80: 249.99 | P80: 82 | Q80: 2 | R80: 0.164 | S80: No | T80: https://commercial.greenworkstools.com/collections/leaf-blowers/products/82v-handheld-blower-with-2ah-battery-and-single-port-charger-bl82210 | W80: Includes one single port charger
A81: Handheld Blower | B81: EGO | C81: Power+ 670 CFM Blower | D81: LB6703 | G81: 670 | L81: 1 | N81: 267 | P81: 56 | Q81: 4 | R81: 0.224 | S81: No | T81: https://egopowerplus.com/blower-670cfm-lb6700/ | W81: Includes one charger
A82: Handheld Blower | B82: EGO | C82: Power+ 650 CFM Blower | D82: LB6504 | G82: 650 | L82: 1 | N82: 294.221 | P82: 56 | Q82: 5 | R82: 0.28 | S82: No | T82: https://egopowerplus.com/blower-650cfm/ | W82: Includes standard charger
A83: Handheld Blower | B83: EGO | C83: Power+ 650 CFM Blower | D83: LB6503 | G83: 650 | L83: 1 | N83: 259.14 | O83: 219.711667 | P83: 56 | Q83: 4 | R83: 0.224 | S83: No | T83: https://egopowerplus.com/blower-650cfm/ | V83: https://egopowerplus.com/battery-4amp-ba2242t/ | W83: Includes standard charger
A84: Handheld Blower | B84: EGO | C84: Power+ 615 CFM Blower | D84: LB6153 | G84: 615 | L84: 1 | N84: 183 | P84: 56 | Q84: 4 | R84: 0.224 | S84: No | T84: https://egopowerplus.com/blower-615cfm-lb6151/ | W84: standard charger included; battery comes with fuel gauge
A85: Handheld Blower | B85: EGO | C85: Power+ 615 CFM Blower | D85: LB6151 | G85: 615 | L85: 1 | N85: 215.9966667 | O85: 176.6857143 | P85: 56 | Q85: 2.5 | R85: 0.14 | T85: https://egopowerplus.com/blower-615cfm-lb6151/ | V85: https://egopowerplus.com/battery-2-5amp-fuel-gauge/ | W85: standard charger included; battery comes with fuel gauge
A86: Handheld Blower | B86: EGO | C86: Power+ 580 CFM Blower | D86: LB5804 | G86: 580 | L86: 1 | N86: 315.1725 | P86: 56 | Q86: 5 | R86: 0.28 | S86: No | T86: https://egopowerplus.com/blower-580cfm/ | W86: includes standard charger
A87: Handheld Blower | B87: EGO | C87: Power+ 530 CFM Blower | D87: LB5302 | G87: 530 | L87: 1 | N87: 203.485 | P87: 56 | Q87: 2.5 | R87: 0.14 | S87: No | T87: https://egopowerplus.com/blower-530cfm/ | W87: includes standard charger
A88: Handheld Blower | B88: EGO | C88: Power+ 480 CFM Blower | D88: LB4803 | G88: 480 | L88: 1 | N88: 171.1633333 | P88: 56 | Q88: 2.5 | R88: 0.14 | S88: No | T88: https://egopowerplus.com/blower-480cfm/ | W88: includes standard charger
A89: Handheld Blower | B89: Echo | C89: ECHO eFORCE | D89: DPB-2500 | G89: 549 | L89: 1 | N89: 249.99 | P89: 56 | Q89: 5 | R89: 0.28 | S89: No | T89: https://www.echo-usa.com/blowers/dpb-2500#specs | W89: includes rapid charger
A90: Handheld Blower | B90: Echo | C90: ECHO eFORCE | D90: DPB-2501 | G90: 549 | L90: 1 | N90: 199.99 | P90: 56 | Q90: 2.5 | R90: 0.14 | S90: No | T90: https://www.echo-usa.com/blowers/dpb-2500#specs | W90: includes rapid charger
A91: Handheld Blower | B91: Stihl | C91: BGA 60 | D91: BGA 60 | L91: 1 | N91: 299.99 | P91: 36 | Q91: 5.2 | R91: 0.1872 | S91: No | T91: https://rockyseastlongmeadow.stihldealer.net/products/blowers-and-shredder-vacs/battery-blowers/bga60/#specifications_tab | V91: https://www.stihlusa.com/products/batteries-chargers/batteries/ak30/ | W91: includes charger
A92: Handheld Blower | B92: Stihl | C92: BGA 45 | D92: BGA 46 | G92: 247 | L92: Integrated battery | N92: 139.99 | O92: 159.99 | S92: No | T92: https://rockyseastlongmeadow.stihldealer.net/products/blowers-and-shredder-vacs/battery-blowers/bga45/
A93: Handheld Blower | B93: Stihl | C93: BGA 57 | D93: BGA 58 | G93: 365 | L93: 1 | N93: 199.99 | O93: 139.99 | P93: 36 | Q93: 4 | R93: 0.144 | S93: No | T93: https://rockyseastlongmeadow.stihldealer.net/products/blowers-and-shredder-vacs/battery-blowers/bga57/ | V93: https://www.stihlusa.com/products/batteries-chargers/batteries/ak20/
A94: Handheld Blower | B94: Stihl | C94: BGA 86 | D94: BGA 86 | G94: 459 | L94: 1 | N94: 769.97 | O94: *Dependent on dealer | P94: 36 | Q94: 9.4 | R94: 0.3384 | S94: No | T94: https://rockyseastlongmeadow.stihldealer.net/products/blowers-and-shredder-vacs/battery-blowers/bga86/ | V94: https://www.stihlusa.com/products/batteries-chargers/batteries/ap500s/
A95: Chainsaw | B95: Stihl | C95: MSA 120 C-B | D95: MSA 120 C-B | H95: 12 | L95: 0 | N95: 279.99 | O95: 139.99 | P95: 36 | Q95: 4 | R95: =((P95*Q95)/1000) -> 0.144 | S95: No | T95: https://www.stihlusa.com/products/chain-saws/battery-saws/msa120cbq/#specifications | V95: https://www.stihlusa.com/products/batteries-chargers/batteries/ak20/#specifications | W95: could purchase with battery and charger included but would need to find the right dealer
A96: Chainsaw | B96: Stihl | C96: MSA 220 C-B | D96: MSA 220 C-B | H96: 16 | L96: 1 | N96: 979.97 | O96: AP 500 S only sold separately at select dealers | P96: 36 | Q96: 9.4 | R96: 0.3384 | S96: No | T96: https://www.stihlusa.com/products/chain-saws/battery-saws/msa220cb/ | W96: includes charger; other battery capacity and charger options
A97: Chainsaw | B97: Stihl | C97: MSA 300 C-O | D97: MSA 300 C-O | H97: 20 | L97: 1 | N97: 1379.97 | O97: AP 500 S only sold separately at select dealers | P97: 36 | Q97: 9.4 | R97: 0.3384 | S97: No | T97: https://www.stihlusa.com/products/chain-saws/battery-saws/msa300co/
A98: Chainsaw | B98: Stihl | C98: MSA 200 C-B | D98: MSA 200 C-B | H98: 14 | L98: 1 | N98: 939.97 | O98: AP 500 S only sold separately at select dealers | P98: 36 | Q98: 9.4 | R98: 0.3384 | S98: No | T98: https://www.stihlusa.com/products/chain-saws/battery-saws/msa200cbq/ | W98: includes charger; comes in different bar lengths; other battery capacity and charger options
A99: Chainsaw | B99: Stihl | C99: MSA 160 C-B | D99: MSA 160 C-B | H99: 14 | L99: 1 | N99: 689.93 | O99: 239.99 | P99: 36 | Q99: 6 | R99: 0.216 | S99: No | T99: https://www.stihlusa.com/products/chain-saws/battery-saws/msa160cbq/ | V99: https://www.stihlusa.com/products/batteries-chargers/batteries/ap300redesign/ | W99: includes charger; comes in different bar lengths
A100: Chainsaw | B100: Stihl | C100: MSA 161 T | D100: MSA 161 T | H100: 12 | L100: 1 | N100: 859.97 | O100: 299.99 | P100: 36 | Q100: 7.2 | R100: 0.2592 | S100: No | T100: https://www.stihlusa.com/products/chain-saws/battery-saws/msa161t/ | V100: https://www.stihlusa.com/products/batteries-chargers/batteries/ap300s/ | W100: includes charger
A101: Chainsaw | B101: Stihl | C101: MSA 220 TC-O | D101: MSA 220 TC-O | H101: 14 | L101: 1 | N101: 1169.97 | O101: AP 500 S only sold separately at select dealers | P101: 36 | Q101: 9.4 | R101: 0.3384 | S101: No | T101: https://www.stihlusa.com/products/chain-saws/battery-saws/msa220tco/ | W101: includes charger; comes in different battery sizes
A102: Chainsaw | B102: Stihl | C102: MSA 140 C-B | D102: MSA 140 C-B | H102: 12 | L102: 0 | N102: 319.99 | O102: 159.99 | P102: 36 | Q102: 5.2 | R102: 0.1872 | S102: No | T102: https://www.stihlusa.com/products/chain-saws/battery-saws/msa140cbq/ | V102: https://www.stihlusa.com/products/batteries-chargers/batteries/ak30/ | W102: could purchase with battery and charger included but would need to find the right dealer
A103: Chainsaw | B103: Greenworks | C103: 20" 3.4kW Chainsaw | D103: 2025802 (82CS34-4DP) | H103: 20 | K103: 65 | L103: 1 | N103: 599.99 | O103: 299.99 | P103: 82 | Q103: 4 | R103: =((P103*Q103)/1000)*L103 -> 0.328 | S103: No | T103: https://commercial.greenworkstools.com/collections/chainsaws/products/82cs34-4dp-82v-20-3-4kw-chainsaw-with-1-4-ah-battery-dp-charger | V103: https://commercial.greenworkstools.com/products/gl400bt-82-volt-4ah-bluetooth-capable-battery?_pos=1&_psq=82V+4&_ss=e&_v=1.0 | W103: Includes one dual port charger
A104: Chainsaw | B104: Greenworks | C104: 18" 2.7kW Chainsaw | D104: 2025202 (82CS27-4DP) | H104: 18 | K104: 55 | L104: 1 | N104: 549.99 | O104: 299.99 | P104: 82 | Q104: 4 | R104: =((P104*Q104)/1000)*L104 -> 0.328 | S104: No | T104: https://commercial.greenworkstools.com/collections/chainsaws/products/82cs27-4dp-82-volt-18-2-7kw-chainsaw-with-4ah-battery-and-8a-charger-coming-soon | V104: https://commercial.greenworkstools.com/products/gl400bt-82-volt-4ah-bluetooth-capable-battery?_pos=1&_psq=82V+4&_ss=e&_v=1.0 | W104: Includes one dual port charger
A105: Chainsaw | B105: Greenworks | C105: 12" Top-Handle Chainsaw | D105: 2013702 (48TH12) | H105: 12 | K105: 31 | L105: 1 | N105: 549.99 | O105: Not sold separately | P105: 48 | Q105: 4 | R105: 0.192 | S105: No | T105: https://commercial.greenworkstools.com/collections/chainsaws/products/48th12-48-volt-12-top-handle-chainsaw-with-battery-and-charger | W105: Includes one single port charger
A106: Chainsaw | B106: Greenworks | C106: 16" 2.4kW Chainsaw | D106: 2026002 (82CS24-4DP) | H106: 16 | K106: 45 | L106: 1 | N106: 499.99 | O106: 299.99 | P106: 82 | Q106: 4 | R106: 0.328 | S106: No | T106: https://commercial.greenworkstools.com/collections/chainsaws/products/82cs24-4dp-82v-16-2-4kw-chainsaw-with-4ah-battery-and-8a-dual-port-charger | V106: https://commercial.greenworkstools.com/products/gl400bt-82-volt-4ah-bluetooth-capable-battery?_pos=1&_psq=82V+4&_ss=e&_v=1.0 | W106: Includes one dual port charger
A107: Chainsaw | B107: Greenworks | C107: 82V Chainsaw | D107: 2026902 (CS82410) | H107: 16 | L107: 1 | N107: 349.99 | O107: Not sold separately | P107: 82 | Q107: 2 | R107: 0.164 | S107: No | T107: https://commercial.greenworkstools.com/collections/chainsaws/products/82v-chainsaw-with-4ah-battery-and-single-port-charger-cs82410 | W107: Includes one single port charger
A108: Chainsaw | B108: EGO | C108: Power+ Commercial Series Top-Handle Chainsaw | D108: CSX3003 | H108: 12 | K108: 40 | L108: 1 | N108: 743.12 | O108: 286.2266667 | P108: 56 | Q108: 5 | R108: 0.28 | S108: No | T108: https://egopowerplus.com/commercial-top-handle-chainsaw-csx3000/ | V108: https://egopowerplus.com/battery-4amp-ba2242t/ | W108: Rapid Charger included; compatible with 14 and 16 inch bar and chain too
A109: Chainsaw | B109: EGO | C109: Power+ 16" Chain Saw (40CC) | D109: CS1613 | H109: 16 | K109: 30 | L109: 1 | N109: 254.165 | O109: 212.4983333 | P109: 56 | Q109: 4 | R109: 0.224 | S109: No | T109: https://egopowerplus.com/16-inch-chain-saw-40cc/ | V109: https://egopowerplus.com/battery-2-5amp-fuel-gauge/ | W109: Standard charger included; battery w/fuel gauge; CS1611 comes with 2.5Ah for average $285
A110: Chainsaw | B110: EGO | C110: Power+ 16" Chain Saw (40CC) | D110: CS1611 | H110: 16 | K110: 30 | L110: 1 | N110: 259.165 | P110: 56 | Q110: 2.5 | R110: 0.14 | S110: No | T110: https://egopowerplus.com/16-inch-chain-saw-40cc/ | V110: https://egopowerplus.com/battery-2-5amp-fuel-gauge/
A111: Chainsaw | B111: EGO | C111: Power+ 18" Chain Saw | D111: CS1804 | H111: 18 | K111: 45 | L111: 1 | N111: 401.6622222 | O111: 286.2266667 | P111: 56 | Q111: 5 | R111: 0.28 | S111: No | T111: https://egopowerplus.com/18-inch-chain-saw/ | V111: https://egopowerplus.com/battery-5-0-amp-fuel-gauge/ | W111: Standard charger included; battery w/fuel gauge
A112: Chainsaw | B112: EGO | C112: Power+ 16" Chain Saw | D112: CS1604 | H112: 16 | L112: 1 | N112: 342.1411111 | O112: 286.2266667 | P112: 56 | Q112: 5 | R112: 0.28 | S112: No | T112: https://egopowerplus.com/16-inch-chain-saw/ | V112: https://egopowerplus.com/battery-5-0-amp-fuel-gauge/ | W112: Standard charger included
A113: Chainsaw | B113: EGO | C113: Power+ 14" Chain Saw | D113: CS1401 | H113: 14 | K113: 30 | L113: 1 | N113: 284.61625 | O113: 172.8857143 | P113: 56 | Q113: 2.5 | R113: 0.14 | S113: No | T113: https://egopowerplus.com/14-inch-chain-saw/ | V113: https://egopowerplus.com/battery-2-5amp-fuel-gauge/ | W113: Standard charger included; battery w/fuel gauge
A114: Chainsaw | B114: Husqvarna | C114: T540i XP | D114: 12": 967 86 37‑12 14": 967 86 37‑14 16": 967 86 37‑16 | H114: 12, 14, or 16 | L114: 0 | N114: 629.99 | O114: Dependent on battery size | P114: 40 | R114: 0 | S114: No | T114: https://www.husqvarna.com/us/chainsaws/t540i-xp-without-battery-and-charger/
A115: Chainsaw | B115: Husqvarna | C115: 350i | D115: 970 60 12‑02 | H115: 18 | L115: 1 | N115: 499.99 | O115: Dependent on battery size | P115: 36 | Q115: 7.7 | R115: 0.2772 | S115: No | T115: https://www.husqvarna.com/us/chainsaws/power-axe-350i-with-battery-and-charger/ | W115: Charger included
A116: Chainsaw | B116: Husqvarna | C116: 535i XP | D116: 967 89 38‑74 | H116: 14 | L116: 0 | N116: 489.99 | O116: Dependent on battery size | P116: 40 | R116: 0 | S116: No | T116: https://www.husqvarna.com/us/chainsaws/535i-xp/
A117: Chainsaw | B117: Husqvarna | C117: T535i XP | D117: 967 89 39‑72 | H117: 12 | L117: 0 | N117: 489.99 | O117: Dependent on battery size | P117: 40 | R117: 0 | S117: No | T117: https://www.husqvarna.com/us/chainsaws/t535i-xp/
A118: Chainsaw | B118: Husqvarna | C118: 120i | D118: 967 09 81‑04 | H118: 14 | L118: 1 | N118: 259.99 | O118: 189.99 | P118: 36 | Q118: 4 | R118: 0.144 | S118: No | T118: https://www.husqvarna.com/us/chainsaws/120i-with-battery-and-charger/ | V118: https://www.husqvarna.com/us/battery-series-accessories/battery-bli22/ | W118: Charger included
A119: Chainsaw | B119: Husqvarna | C119: 540i XP | D119: 967 86 40‑02 | H119: 14 | L119: 1 | N119: 999.99 | O119: 319.99 | P119: 36 | Q119: 9.4 | R119: =((P119*Q119)/1000)*L119 -> 0.3384 | S119: No | T119: https://www.husqvarna.com/us/chainsaws/540i-xp-with-battery-and-charger/
A120: Chainsaw | B120: Husqvarna | C120: 540i XP | D120: 967 86 40‑03 | H120: 16 | L120: 1 | N120: 999.99 | O120: 319.99 | P120: 36 | Q120: 9.4 | R120: 0.3384 | S120: No | T120: https://www.husqvarna.com/us/chainsaws/540i-xp-with-battery-and-charger/ | V120: https://www.husqvarna.com/us/battery-series-accessories/battery-bli300/ | W120: Charger included
A121: Chainsaw | B121: Husqvarna | C121: T540i XP | D121: 967 86 37‑02 | H121: 12 | L121: 1 | N121: 1049.99 | O121: 286.4 | P121: 36 | Q121: 5 | R121: =((P121*Q121)/1000)*L121 -> 0.18 | S121: No | T121: https://www.husqvarna.com/us/chainsaws/t540i-xp-with-battery-and-charger/
A122: Chainsaw | B122: Husqvarna | C122: T540i XP | D122: 967 86 37‑03 | H122: 14 | L122: 1 | N122: 1049.99 | O122: 286.4 | P122: 36 | Q122: 5 | R122: 0.18 | S122: No | T122: https://www.husqvarna.com/us/chainsaws/t540i-xp-with-battery-and-charger/
A123: Chainsaw | B123: Husqvarna | C123: T540i XP | D123: 967 86 37‑04 | H123: 16 | L123: 1 | N123: 1049.99 | O123: 286.4 | P123: 36 | Q123: 5 | R123: 0.18 | S123: No | T123: https://www.husqvarna.com/us/chainsaws/t540i-xp-with-battery-and-charger/ | V123: https://www.husqvarna.com/us/battery-series-accessories/battery-bli200x/
A124: Chainsaw | B124: Echo | C124: ECHO eFORCE | D124: DCS-2500T | H124: 12 | L124: 1 | N124: 569.99 | O124: *Dependent on dealer | P124: 56 | Q124: 2.5 | R124: 0.14 | S124: No | T124: https://www.echo-usa.com/chainsaws/dcs-2500t | V124: https://www.echo-usa.com/56v-battery-accessories/2-5ah-lithium-ion-battery | W124: Includes rapid charger; standard charger included for lesser price
A125: Chainsaw | B125: Echo | C125: ECHO eFORCE | D125: DCS-5000 | H125: 18 | L125: 1 | N125: 299.99 | O125: *Dependent on dealer | P125: 56 | Q125: 5 | R125: 0.28 | S125: No | T125: https://www.echo-usa.com/chainsaws/dcs-5000 | V125: https://www.echo-usa.com/56v-battery-accessories/5-0ah-lithium-ion-battery | W125: includes charger
A126: Polesaw | B126: Greenworks | C126: 82V Polesaw | D126: 1408002 -(PS82210) | H126: 16 | L126: 1 | N126: 299.99 | O126: Not sold separately | P126: 82 | Q126: 2 | R126: 0.164 | S126: No | T126: https://commercial.greenworkstools.com/collections/chainsaws/products/82v-polesaw-with-2ah-battery-and-single-port-charger-ps82210 | W126: Includes one single port charger
A127: Polesaw | B127: Greenworks | C127: 8V/24V Dual-Volt 8" Pole Saw | D127: 1404902 (48PS8) | H127: 8 | L127: 1 | N127: 249.99 | O127: Not sold separately | P127: 48/24 | Q127: 2 | S127: No | T127: https://commercial.greenworkstools.com/collections/chainsaws/products/48ps8-48v-24v-dual-volt-8-pole-saw-with-battery-and-charger | W127: Charger included
A128: Polesaw | B128: Husqvarna | C128: 530iP4 | D128: 967 88 46‑11 | H128: 10 | L128: 0 | N128: 449.99 | O128: Dependent on battery size | P128: 36 | R128: 0 | S128: No | T128: https://www.husqvarna.com/us/pole-saws/530ip4/
A129: Polesaw | B129: Husqvarna | C129: 530iPT5 | D129: 967 88 50‑11 | H129: 10 | L129: 0 | N129: 549.99 | O129: Dependent on battery size | P129: 36 | R129: 0 | S129: No | T129: https://www.husqvarna.com/us/pole-saws/530ipt5/
A130: Polesaw | B130: Husqvarna | C130: 120iTK4-P | D130: 970 51 60‑04 | H130: 10 | L130: 1 | N130: 319.99 | O130: 189.99 | P130: 36 | Q130: 4 | R130: 0.144 | S130: No | T130: https://www.husqvarna.com/us/pole-saws/120itk4-p-with-battery-and-charger/ | V130: https://www.husqvarna.com/us/battery-series-accessories/battery-bli22/
A131: Polesaw | B131: Stihl | C131: HTA 50 | D131: HTA 50 | H131: 10 | L131: 1 | N131: 499.99 | O131: 139.99 | P131: 36 | Q131: 4 | R131: 0.144 | S131: No | T131: https://www.stihlusa.com/products/pole-pruners/battery-pole-pruners/hta50/ | V131: https://www.stihlusa.com/products/batteries-chargers/batteries/ak20/ | W131: Charger included
A132: Polesaw | B132: Stihl | C132: HTA 135 | D132: HTA 135 | H132: 10 | L132: 1 | N132: 1049.97 | O132: 299.99 | P132: 36 | Q132: 7.2 | R132: 0.2592 | S132: No | T132: https://www.stihlusa.com/products/pole-pruners/battery-pole-pruners/hta135/ | V132: https://www.stihlusa.com/products/batteries-chargers/batteries/ap300s/ | W132: Charger included
A133: Polesaw | B133: Stihl | C133: HTA 135 | D133: HTA 135 | H133: 10 | L133: 1 | N133: 1199.97 | P133: 36 | Q133: 9.4 | R133: 0.3384 | S133: No | T133: https://www.stihlusa.com/products/pole-pruners/battery-pole-pruners/hta135/ | V133: https://www.stihlusa.com/products/batteries-chargers/batteries/ap500s/ | W133: Charger included
A134: Polesaw | B134: Stihl | C134: HTA 86 | D134: HTA 86 | H134: 10 | L134: 1 | N134: 979.97 | O134: 299.99 | P134: 36 | Q134: 7.2 | R134: =((P134*Q134)/1000)*L134 -> 0.2592 | S134: No | T134: https://www.stihlusa.com/products/pole-pruners/battery-pole-pruners/hta86/ | V134: https://www.stihlusa.com/products/batteries-chargers/batteries/ap300s/ | W134: Charger included
A135: Polesaw | B135: Stihl | C135: HTA 86 | D135: HTA 86 | L135: 1 | N135: 869.97 | O135: 189.99 | P135: 36 | Q135: 4.8 | R135: 0.1728 | S135: No | T135: https://www.stihlusa.com/products/pole-pruners/battery-pole-pruners/hta86/ | V135: https://www.stihlusa.com/products/batteries-chargers/batteries/ap200/
A136: Polesaw | B136: Stihl | C136: HTA 66 | D136: HTA 66 | H136: 10 | L136: 1 | N136: 879.97 | O136: 299.99 | P136: 36 | Q136: 7.2 | R136: =((P136*Q136)/1000)*L136 -> 0.2592 | S136: No | T136: https://www.stihlusa.com/products/pole-pruners/battery-pole-pruners/hta66/ | V136: https://www.stihlusa.com/products/batteries-chargers/batteries/ap300s/ | W136: Charger included; could also purchase AP 200 battery for lesser price
A137: Polesaw | B137: Stihl | C137: HTA 66 | D137: HTA 66 | L137: 1 | N137: 769.97 | O137: 189.99 | P137: 36 | Q137: 4.8 | R137: 0.1728 | S137: No | T137: https://www.stihlusa.com/products/pole-pruners/battery-pole-pruners/hta66/ | V137: https://www.stihlusa.com/products/batteries-chargers/batteries/ap200/
A138: Hedge Trimmer | B138: Stihl | C138: HSA 94 T | D138: HSA 94 T | I138: 24" | L138: 1 | N138: 1629.99 | O138: 1149.99 | P138: 36 | Q138: 27.4 | R138: =(P138*Q138)/1000 -> 0.9864 | S138: Yes | T138: https://www.stihlusa.com/products/hedge-trimmers/battery-hedge-trimmers/hsa94t/ | V138: https://www.stihlusa.com/products/batteries-chargers/batteries/ar2000l/ | W138: This is the backpack battery version; also includes nonbackpack version
A139: Hedge Trimmer | B139: Stihl | C139: HSA 94 R | D139: HSA 94 R | I139: 24" | L139: 1 | N139: 1629.99 | O139: 1149.99 | P139: 36 | Q139: 27.4 | R139: 0.9864 | S139: Yes | T139: https://www.stihlusa.com/products/hedge-trimmers/battery-hedge-trimmers/hsa94r/ | V139: https://www.stihlusa.com/products/batteries-chargers/batteries/ar2000l/ | W139: This is the backpack battery version; also includes nonbackpack version
A140: String Trimmer | B140: Stihl | C140: FSA 90 R | D140: FSA 90 R | J140: 15" | L140: 1 | N140: 939.97 | P140: 36 | Q140: 9.4 | R140: 0.3384 | S140: No | T140: https://www.stihlusa.com/products/trimmers-and-brushcutters/battery-trimmers/fsa90r/ | W140: comes with different battery and charger capacities
A141: String Trimmer | B141: Stihl | C141: FSA 135 R | D141: FSA 135 R | J141: 16.5" | L141: 1 | N141: 969.97 | P141: 36 | Q141: 9.4 | R141: 0.3384 | S141: No | T141: https://www.stihlusa.com/products/trimmers-and-brushcutters/battery-trimmers/fsa135r/ | W141: comes with different battery and charger capacities
A142: String Trimmer | B142: Stihl | C142: FSA 135 | D142: FSA 136 | J142: 16.5" | L142: 1 | N142: 1059.97 | P142: 36 | Q142: 9.4 | R142: 0.3384 | S142: No | T142: https://www.stihlusa.com/products/trimmers-and-brushcutters/battery-trimmers/fsa135/ | W142: comes with different battery and charger capacities
A143: String Trimmer | B143: Stihl | C143: FSA 86 R | D143: FSA 86 R | J143: 13.8" | L143: 1 | N143: 819.97 | P143: 36 | Q143: 9.4 | R143: 0.3384 | S143: No | T143: https://www.stihlusa.com/products/trimmers-and-brushcutters/battery-trimmers/fsa86r/ | W143: comes with different battery and charger capacities
A144: String Trimmer | B144: Greenworks | C144: 1.5kW String Trimmer | D144: 2129602 (82ST15-4DP) | J144: 16" | L144: 1 | N144: 599.99 | P144: 82 | Q144: 4 | R144: 0.328 | S144: No | T144: https://commercial.greenworkstools.com/collections/trimmers-edgers/products/82st15-4dp-82-volt-gen-ii-1-5kw-fm-string-trimmer-with-4ah-battery-and-8a-charger | W144: Includes one dual port charger
A145: String Trimmer | B145: Greenworks | C145: 24-Volt 12" String Trimmer | D145: 2115902 (24T12) | J145: 12" | L145: 1 | N145: 119.99 | P145: 24 | S145: No | T145: https://commercial.greenworkstools.com/collections/trimmers-edgers/products/24t12-24-volt-12-string-trimmer-with-battery-and-charger
A146: String Trimmer | B146: Greenworks | C146: 48V/24V Dual-Volt 16" String Trimmer | D146: 2119702 (48T16) | J146: 16" | L146: 1 | N146: 199.99 | P146: 48/24 | Q146: 2 | S146: No | T146: https://commercial.greenworkstools.com/collections/trimmers-edgers/products/48t16-48v-24v-dual-volt-16-string-trimmer-with-battery-and-charger
A147: String Trimmer | B147: Greenworks | C147: 48V/24V Dual-Volt 15" String Trimmer | D147: 2119602 (48T15) | J147: 15" | L147: 1 | N147: 159.99 | P147: 48/24 | Q147: 2 | S147: No | T147: https://commercial.greenworkstools.com/collections/trimmers-edgers/products/48t15-48v-24v-dual-volt-15-string-trimmer-with-battery-and-charger
A148: String Trimmer | B148: Greenworks | C148: 1.2kW String Trimmer | D148: 2131802 (82ST12-4DP) | J148: 16" | L148: 1 | N148: 569.99 | P148: 82 | Q148: 4 | R148: =(P148*Q148)/1000 -> 0.328 | S148: No | T148: https://commercial.greenworkstools.com/collections/trimmers-edgers/products/82st12-82v-gen-ii-1-2kw-string-trimmer-tool-only | W148: Includes one dual port charger
A149: String Trimmer | B149: Greenworks | C149: 16" String Trimmer | D149: 2132302 (ST82210) | J149: 16" | L149: 1 | N149: 249.99 | P149: 82 | Q149: 2 | R149: =(P149*Q149)/1000 -> 0.164 | S149: No | T149: https://commercial.greenworkstools.com/collections/trimmers-edgers/products/82v-16-string-trimmer-with-2ah-battery-and-single-port-charger-st82210 | W149: Includes one single port charger
A150: String Trimmer | B150: EGO | C150: Power+ Powerload String Trimmer with Line IQ | D150: ST1623T | J150: 16" | L150: 1 | N150: 312.6433333 | P150: 56 | Q150: 4 | R150: =(P150*Q150)/1000 -> 0.224 | S150: No | T150: https://egopowerplus.com/string-trimmer-powerload-line-iq/ | W150: Includes charger
A151: String Trimmer | B151: EGO | C151: Power+ 15" Powerload String Timmer with Telescopic Aluminum Shaft | D151: ST1511T | J151: 15" | L151: 1 | N151: 232.4225 | P151: 56 | Q151: 2.5 | R151: =(P151*Q151)/1000 -> 0.14 | S151: No | T151: https://egopowerplus.com/15-inch-string-trimmer-powerload-aluminum-st1511t/ | W151: Includes standard charger
A152: String Trimmer | B152: EGO | C152: Power+ 15" String Trimmer with Powerload | D152: ST1524 | J152: 15" | L152: 1 | N152: 355.11 | P152: 56 | Q152: 5 | R152: =(P152*Q152)/1000 -> 0.28 | S152: No | T152: https://egopowerplus.com/15-inch-string-trimmer-powerload/ | W152: Includes standard charger; selected purchase comes with carbon fiber straight shaft but other options include different shafts, materials, and battery sizes
A153: String Trimmer | B153: EGO | C153: Commercial Backpack Series String Trimmer | D153: STX3800 | J153: 15" | L153: 1 | N153: 450.8614286 | S153: No | T153: https://egopowerplus.com/commercial-string-trimmer/
A154: String Trimmer | B154: EGO | C154: Power+ 15" String Trimmer with Rapid Reload | D154: ST1502SA | J154: 15" | L154: 0 | N154: 425.0483333 | P154: 56 | Q154: 2.5 | R154: =(P154*Q154)/1000 -> 0.14 | S154: No | T154: https://egopowerplus.com/15-inch-string-trimmer-rapid-reload/ | W154: Includes standard charger; other battery and shaft orientations available
A155: String Trimmer | B155: EGO | C155: Power+ 15” Rear Motor String Trimmer Kit | D155: ST1534 | J155: 15" | L155: 1 | N155: 424.7966667 | O155: 199.95 | P155: 36 | Q155: 4 | R155: 0.144 | S155: No | T155: https://egopowerplus.com/power-15-rear-motor-string-trimmer-with-rapid-reload/ | W155: Includes standard charger
A156: String Trimmer | B156: Husqvarna | C156: 525iLST | D156: 970 55 19‑01 | J156: 18.1" | L156: 0 | N156: 399.99 | O156: 319.99 | P156: 36 | Q156: 9.4 | R156: 0.3384 | S156: No | T156: https://www.husqvarna.com/us/string-trimmers/525ilst/ | V156: https://www.husqvarna.com/us/battery-series-accessories/battery-bli300/ | W156: compatible with BLi 200, BLi 300, and BLi 950x; Bli 300 used for extra battery and total machine battery
A157: String Trimmer | B157: Husqvarna | C157: 520iLX | D157: 967 91 61‑12 | J157: 16" | L157: 0 | N157: 299.99 | O157: 319.99 | P157: 36 | Q157: 9.4 | R157: 0.3384 | S157: No | T157: https://www.husqvarna.com/us/string-trimmers/520ilx/ | V157: https://www.husqvarna.com/us/battery-series-accessories/battery-bli300/ | W157: Bli 300 used for extra battery and total machine battery
A158: String Trimmer | B158: Echo | C158: ECHO eFORCE | D158: DSRM-2600 | J158: 17" | L158: 1 | N158: 499.99 | P158: 56 | Q158: 5 | R158: 0.28 | S158: No | T158: https://www.echo-usa.com/trimmers-brushcutters/dsrm-2600 | W158: includes rapid charger; includes standard charger for lesser price
A159: String Trimmer | B159: Echo | C159: ECHO eFORCE | D159: DSRM-2600U | J159: 17" | L159: 1 | N159: 549.99 | P159: 56 | Q159: 5 | R159: 0.28 | S159: No | T159: https://www.echo-usa.com/trimmers-brushcutters/dsrm-2600u | W159: includes rapid charger; includes standard charger for lesser price
A160: String Trimmer | B160: Echo | C160: ECHO eFORCE | D160: DSRM-2100 | J160: 14" or 16" | L160: 1 | N160: 199.99 | P160: 56 | Q160: 2.5 | R160: 0.14 | S160: No | T160: https://www.echo-usa.com/trimmers-brushcutters/dsrm-2100 | W160: includes charger
A161: Lawn Edger | B161: Husqvarna | C161: 525iES | D161: 970 55 20‑01 | L161: 0 | N161: 499.99 | R161: =(P161*Q161)/1000 -> 0 | S161: No | T161: https://www.husqvarna.com/us/lawn-edgers/525ies/ | W161: Compatible with all BLi 36V batteries and chargers
A162: Lawn Edger | B162: Husqvarna | C162: 525iECS | D162: 970 55 21-01 | L162: 0 | N162: 429.99 | S162: No | T162: https://www.husqvarna.com/us/lawn-edgers/525iecs/
A163: Lawn Edger | B163: EGO | C163: Power+ 8" Edger & Power Head | D163: ME0801 | L163: 1 | N163: 334 | P163: 56 | Q163: 2.5 | S163: No | T163: https://egopowerplus.com/multi-head-edger-combo/ | W163: Includes standard charger, compatible with any EGO 56V battery
A164: Lawn Edger | B164: Greenworks | C164: 82V Edger | D164: 2702702 (82ES15-4DP) | J164: 22" | L164: 1 | N164: 599.99 | P164: 82 | Q164: 4 | R164: =(P164*Q164)/1000 -> 0.328 | S164: No | T164: https://commercial.greenworkstools.com/collections/trimmers-edgers/products/82es15-4dp-82-volt-gen-ii-edger-with-4ah-battery-and-8a-charger-coming-soon | W164: Includes one dual port charger
A165: Lawn Edger | B165: Stihl | C165: FCA 135 | D165: FCA 135 | L165: 1 | N165: 929.97 | P165: 36 | Q165: 9.4 | R165: =(P165*Q165)/1000 -> 0.3384 | S165: No | T165: https://www.stihlusa.com/products/edgers/battery-edgers/fca135/ | W165: comes with different battery and charger capacities
A166: Lawn Edger | B166: Stihl | C166: FCA 140 | D166: FCA 141 | L166: 1 | N166: 1009.97 | P166: 36 | Q166: 9.4 | R166: =(P166*Q166)/1000 -> 0.3384 | S166: No | T166: https://www.stihlusa.com/products/edgers/battery-edgers/fca140/#specifications | W166: comes with different battery and charger capacities
A167: Hedge Trimmer | B167: Stihl | C167: HLA 66 | D167: HLA 66 | I167: 20" | L167: 1 | N167: 759.97 | O167: 299.99 | P167: 36 | Q167: 7.2 | R167: =(P167*Q167)/1000 -> 0.2592 | T167: https://www.stihlusa.com/products/hedge-trimmers/battery-hedge-trimmers/hla66/ | V167: https://www.stihlusa.com/products/batteries-chargers/batteries/ap300s/ | W167: includes charger
A168: Hedge Trimmer | B168: Stihl | C168: HLA 135 (145°) | D168: HLA 135 (145°) | I168: 24" | L168: 1 | N168: 889.97 | O168: 299.99 | P168: 36 | Q168: 7.2 | R168: 0.2592 | S168: No | T168: https://www.stihlusa.com/products/hedge-trimmers/battery-hedge-trimmers/hla135/ | W168: includes charger
A169: Hedge Trimmer | B169: Stihl | C169: HLA 135 K (145°) | D169: HLA 135 K (145°) | I169: 24" | L169: 1 | N169: 859.97 | O169: 299.99 | P169: 36 | Q169: 7.2 | R169: 0.2592 | S169: No | T169: https://www.stihlusa.com/products/hedge-trimmers/battery-hedge-trimmers/hla135k/ | V169: https://www.stihlusa.com/products/batteries-chargers/batteries/ap300s/ | W169: includes other battery options
A170: Hedge Trimmer | B170: Stihl | C170: HLA 135 K (0°) | D170: HLA 135 K (0°) | I170: 24" | L170: 1 | N170: 839.97 | O170: 299.99 | P170: 36 | Q170: 7.2 | R170: 0.2592 | S170: No | T170: https://www.stihlusa.com/products/hedge-trimmers/battery-hedge-trimmers/hla135k0/ | V170: https://www.stihlusa.com/products/batteries-chargers/batteries/ap300s/ | W170: includes other battery options
A171: Hedge Trimmer | B171: Stihl | C171: HSA 100 | D171: HSA 100 | I171: 23.6" | L171: 0 | N171: 339.99 | O171: 189.99 | P171: 36 | Q171: 4.8 | R171: 0.1728 | S171: No | T171: https://www.stihlusa.com/products/hedge-trimmers/battery-hedge-trimmers/hsa100/ | V171: https://www.stihlusa.com/products/batteries-chargers/batteries/ap200/ | W171: no included battery option
A172: Hedge Trimmer | B172: Stihl | C172: HLA 86 | D172: HLA 86 | I172: 20" | L172: 1 | N172: 889.97 | O172: 299.99 | P172: 36 | Q172: 7.2 | R172: 0.2592 | S172: No | T172: https://www.stihlusa.com/products/hedge-trimmers/battery-hedge-trimmers/hla86/ | V172: https://www.stihlusa.com/products/batteries-chargers/batteries/ap300s/ | W172: includes other battery options
A173: Hedge Trimmer | B173: Stihl | C173: HSA 130 T | D173: HSA 130 T | I173: 24" | L173: 0 | N173: 549.99 | S173: No | T173: https://www.stihlusa.com/products/hedge-trimmers/battery-hedge-trimmers/hsa130t/ | W173: no included battery option
A174: Hedge Trimmer | B174: Stihl | C174: HSA 130 R | D174: HSA 130 R | I174: 24" | L174: 0 | N174: 549.99 | S174: No | T174: https://www.stihlusa.com/products/hedge-trimmers/battery-hedge-trimmers/hsa130r/ | W174: no included battery option
A175: Hedge Trimmer | B175: Greenworks | C175: 82V Short Pole Hedge Trimmer | D175: 2306902 (82PH30F-25DP) | I175: 24" | L175: 1 | N175: 599.99 | P175: 82 | Q175: 2.5 | R175: =(P175*Q175)/1000 -> 0.205 | S175: No | T175: https://commercial.greenworkstools.com/collections/hedge-trimmers/products/82ph30f-25dp-82-volt-gen-ii-short-pole-hedge-trimmer-with-2-5ah-battery-and-8a-charger-coming-soon | W175: Includes one dual port charger
A176: Hedge Trimmer | B176: Greenworks | C176: 26" Hedge Trimmer | D176: 2209402 (48HT26) | I176: 26" | L176: 1 | N176: 399.99 | P176: 48 | Q176: 4 | R176: =(P176*Q176)/1000 -> 0.192 | S176: No | T176: https://commercial.greenworkstools.com/collections/hedge-trimmers/products/48ht26-48-volt-26-hedge-trimmer-with-battery-and-charger | W176: Includes one single port charger
A177: Hedge Trimmer | B177: Greenworks | C177: 22" Hedge Trimmer | D177: 2208902 (24H20) | I177: 22" | L177: 1 | N177: 119.99 | P177: 24 | Q177: 2 | R177: =(P177*Q177)/1000 -> 0.048 | S177: No | T177: https://commercial.greenworkstools.com/collections/hedge-trimmers/products/24h20-24-volt-22-hedge-trimmer-with-battery-and-charger | W177: Includes one single port charger
A178: Hedge Trimmer | B178: Greenworks | C178: 24" Dual-Volt Hedge Trimmer | D178: 2210902 (48HT24) | I178: 24" | L178: 1 | N178: 199.99 | P178: 48/24 | Q178: 2 | S178: No | T178: https://commercial.greenworkstools.com/collections/hedge-trimmers/products/48ht24-48v-24v-24-dual-volt-hedge-trimmer
A179: Hedge Trimmer | B179: Greenworks | C179: Dual-Volt Pole Hedge Trimmer | D179: 2304502 (48PH18) | I179: 20" | L179: 1 | N179: 249.99 | P179: 48/25 | Q179: 3 | S179: No | T179: https://commercial.greenworkstools.com/collections/hedge-trimmers/products/48ph18-48v-24v-20-dual-volt-pole-hedge-trimmer
A180: Hedge Trimmer | B180: Greenworks | C180: 24" Hedge Trimmer | D180: 2215402 (HT82210) | I180: 24" | L180: 1 | N180: 249.99 | P180: 82 | Q180: 2 | R180: =(P180*Q180)/1000 -> 0.164 | S180: No | T180: https://commercial.greenworkstools.com/collections/hedge-trimmers/products/82v-24-hedge-trimmer-with-2ah-battery-and-single-port-charger-ht82210 | W180: Includes one single port charger
A181: Hedge Trimmer | B181: EGO | C181: Power+ 26” Hedge Trimmer | D181: HT2601 | I181: 26" | L181: 1 | N181: 249.198 | P181: 56 | Q181: 2.5 | R181: =(P181*Q181)/1000 -> 0.14 | S181: No | T181: https://egopowerplus.com/26-inch-hedge-trimmer-ht2601/ | W181: Includes charger
A182: Hedge Trimmer | B182: EGO | C182: Power+ 25" Hedge Trimmer | D182: HT2501 | I182: 25" | L182: 1 | N182: 345.1385714 | P182: 56 | Q182: 2.5 | R182: =(P182*Q182)/1000 -> 0.14 | S182: No | T182: https://egopowerplus.com/25inch-hedge-trimmer-ht2501/ | W182: Includes standard charger; battery with fuel gauge
A183: Hedge Trimmer | B183: EGO | C183: Power+ Brushless Hedge Trimmer | D183: HT2411 | I183: 24" | L183: 1 | N183: 218.6075 | P183: 56 | Q183: 2.5 | R183: =(P183*Q183)/1000 -> 0.14 | S183: No | T183: https://egopowerplus.com/brushless-hedge-trimmer/ | W183: Includes standard charger
A184: Hedge Trimmer | B184: EGO | C184: Power+ Hedge Trimmer | D184: HT2400 | I184: 24" | L184: 0 | N184: 127.04 | S184: No | T184: https://egopowerplus.com/hedge-trimmer/
A185: Hedge Trimmer | B185: EGO | C185: Commerical Backpack Series Hedge Trimmer | D185: HTX6500 | I185: 25" | L185: 0 | N185: 448.8642857 | S185: No | T185: https://egopowerplus.com/commercial-hedge-trimmer-htx6500/
A186: Hedge Trimmer | B186: EGO | C186: Power+ Commercial Pole Hedge Attachment | D186: PTX5100 | I186: 22" | L186: 0 | N186: 331.99375 | S186: No | T186: https://egopowerplus.com/power-commercial-pole-hedge-attachment-ptx5100/
A187: Hedge Trimmer | B187: Husqvarna | C187: 520iHT4 | D187: 967 97 12‑04 | I187: 22" | L187: 0 | N187: 499.99 | S187: No | T187: https://www.husqvarna.com/us/hedge-trimmers/520iht4/ | W187: Compatible with all BLi batteries and chargers
A188: Hedge Trimmer | B188: Husqvarna | C188: 520iHE3 | D188: 967 91 58‑14 | I188: 22" | L188: 0 | N188: 469.99 | S188: No | T188: https://www.husqvarna.com/us/hedge-trimmers/520ihe3/ | W188: Compatible with all BLi batteries and chargers

Sheet Results Graphs (hidden)
A1: Economic and Environmental Calculator
A2: This tool is provided to generate estimates only, the Commonwealth makes no guarantees about equipment savings or years of equipment performance
A3: User Input Data: Red Text Below | L3: User Input Data: Red Text Below
A4: Commercial Battery-Powered | C4: ENVIRONMENTAL RESULTS | L4: Commercial Gasoline
A5: Equipment Costs | L5: Equipment Costs
A6: Price of equipment | B6: 15000 | L6: Price of equipment | M6: 750
A7: (If applicable) Additional battery cost | B7: 0 | L7: (If applicable) Additional gas can cost | M7: 0
A8: Number of additional batteries | B8: 0 | L8: Number of additional gas cans | M8: 0
A9: Optional add-ons & extra costs | B9: 0 | L9: Optional add-ons & extra costs | M9: 0
A10: Prompt pay discount (PPD) | B10: 0.01 | L10: Prompt pay discount (PPD) | M10: 0.01
A11: Equipment Specifications | L11: Equipment Specifications
A12: Battery size (kWh) | B12: 1 | F12: See More Information Here | L12: Equipment Type (select from list) | M12: Zero-Turn Mower
A13: Number of batteries | B13: 1 | D13: Estimated Annual GHG (CO2) Reduction % | J13: =(M25-B25)/M25 -> 0.9975447754 | L13: Horsepower | M13: 10
A14: Efficiency/charging loss | B14: 0.1 | D14: Estimated Annual GHG Emissions (CO2) Reduction (Metric Tonnes) | J14: =M25-B25 -> 17.38637418 | L14: Gallons of gasoline per hour | M14: 1
A15: Electricity Information | L15: Fuel Information
A16: Electricity cost ($/per kWh) | B16: 0.14 | D16: Equivalent Numbers of Cars Removed from the Road (comparing CO2 emissions) | J16: =J14/'Appendix - Economic Model Data'!B77 -> 3.6602893 | L16: Price per gallon of gas | M16: 3
A17: Portion of facility electricity from renewable generation | B17: 0.2 | L17: Hours of Operation
A18: Hours of Operation | C18: ECONOMIC RESULTS
A19: Hours per day | B19: 8 | F19: See More Information Here | L19: Hours per day | M19: 8
A20: Days per month | B20: 4 | L20: Days per month | M20: 4
A21: Months per year | B21: 6 | L21: Months per year | M21: 6
A22: Warranty | L22: Warranty
A23: Length of warranty (years) | B23: 2 | L23: Length of warranty (years) | M23: 2
A24: ENVIRONMENTAL RESULTS | L24: ENVIRONMENTAL RESULTS
A25: Annual Carbon Dioxide (CO2) Emissions (Metric Tonnes) | B25: =(1-B17)*(((B29*B33))*'Appendix - Economic Model Data'!E73) -> 0.04279251869 | L25: Annual Carbon Dioxide (CO2) Emissions (Metric Tonnes) | M25: ='Appendix - Economic Model Data'!F124 -> 17.42916669
A26: ECONOMIC RESULTS | L26: ECONOMIC RESULTS
A27: Prompt pay discount (PPD) | B27: =((+B6+(B7*B8)+B9)*B10) -> 150 | L27: Prompt pay discount (PPD) | M27: =((+M6+(M7*M8)+M9)*M10) -> 7.5
A28: Total initial cost | B28: =((+B6+(B7*B8)+B9)-B27) -> 14850 | L28: Total initial cost | M28: =((+M6+(M7*M8)+M9)-M27) -> 742.5
A29: kWh used per hour | B29: =((B12*B13)+((B12*B13)*B14)) -> 1.1
A30: Total electricity cost per hour | B30: =(+B16*B29) -> 0.154 | L30: Cost of gasoline per hour | M30: =(+M16*M14) -> 3
A31: Cost of maintenance per hour (blade sharpening and replacement) | B31: =('Appendix - Economic Model Data'!B18) -> 0.6057692308 | L31: Cost of maintenance per hour (blade sharpening and replacement; oil changes; parts, filters, belts, labor) | M31: =('Appendix - Economic Model Data'!I18) -> 1.737089161
A32: Total operating cost per hour | B32: =(+B30+B31) -> 0.7597692308 | L32: Total operating cost per hour | M32: =+M30+M31 -> 4.737089161
A33: Hours per year | B33: =((B19*B20)*B21) -> 192 | L33: Hours per year | M33: =((M19*M20)*M21) -> 192
A34: Annual operating costs | B34: =+B32*B33 -> 145.8756923 | L34: Annual operating costs | M34: =+M32*M33 -> 909.5211189
A35: Amortized cost per year over warranty period | B35: =((B28+B34)/B23) -> 7497.937846 | L35: Amortized cost per year over warranty period | M35: =(M28+M34)/M23 -> 826.0105594
G59: Estimated Battery-Powered Electric Equipment Cost Benefit
G63: ='Appendix - Economic Model Data'!B43 -> Year 1 | H63: ='Appendix - Economic Model Data'!C43 -> 3331.172814
G64: ='Appendix - Economic Model Data'!B44 -> Year 2 | H64: ='Appendix - Economic Model Data'!C44 -> 8586.345627
G65: ='Appendix - Economic Model Data'!B45 -> Year 3 | H65: ='Appendix - Economic Model Data'!C45 -> 13841.51844
G66: ='Appendix - Economic Model Data'!B46 -> Year 4 | H66: ='Appendix - Economic Model Data'!C46 -> 19096.69125
G67: ='Appendix - Economic Model Data'!B47 -> Year 5 | H67: ='Appendix - Economic Model Data'!C47 -> 24351.86407
G68: ='Appendix - Economic Model Data'!B48 -> Year 6 | H68: ='Appendix - Economic Model Data'!C48 -> 29607.03688
G69: ='Appendix - Economic Model Data'!B49 -> Year 7 | H69: ='Appendix - Economic Model Data'!C49 -> 34862.2097
G70: ='Appendix - Economic Model Data'!B50 -> Year 8 | H70: ='Appendix - Economic Model Data'!C50 -> 40117.38251
G71: ='Appendix - Economic Model Data'!B51 -> Year 9 | H71: ='Appendix - Economic Model Data'!C51 -> 45372.55532
G72: ='Appendix - Economic Model Data'!B52 -> Year 10 | H72: ='Appendix - Economic Model Data'!C52 -> 50627.72814
F95: Battery-Powered Warranty Period: | I95: Gasoline Warranty Period:
F97: =B23 -> 2 | G97: Year(s) | I97: =M23 -> 2 | J97: Year(s)
A99: More Information & Links
A100: • FAC88 Contract User Guide | F100: https://www.mass.gov/doc/fac88/download
A101: • Environmentally Preferable Products Program Website | F101: https://www.mass.gov/environmentally-preferable-products-epp-procurement-programs
A102: • Leading by Example Program Website | F102: https://www.mass.gov/leading-by-example-program
A103: • US EPA: Exhaust Emission Factors for Nonroad Engine Modeling - Spark Ignition | F103: https://nepis.epa.gov/Exe/ZyPDF.cgi/P10081YF.PDF?Dockey=P10081YF.PDF

Sheet Original Calculator (hidden)
A1: Economic and Environmental Calculator
A2: This tool is provided to generate estimates only, the Commonwealth makes no guarantees about equipment savings or years of equipment performance
A3: User Input Data: Red Text Below | L3: User Input Data: Red Text Below
A4: Commercial Battery-Powered | C4: ENVIRONMENTAL RESULTS | L4: Commercial Gasoline
A5: Equipment Costs | L5: Equipment Costs
A6: Price of equipment | B6: 5000 | L6: Price of equipment | M6: 750
A7: (If applicable) Additional battery cost | B7: 0 | L7: (If applicable) Additional gas can cost | M7: 0
A8: Number of additional batteries | B8: 0 | L8: Number of additional gas cans | M8: 0
A9: Optional add-ons & extra costs | B9: 0 | L9: Optional add-ons & extra costs | M9: 0
A10: Prompt pay discount (PPD) | B10: 0.01 | L10: Prompt pay discount (PPD) | M10: 0.01
A11: Equipment Specifications | L11: Equipment Specifications
A12: Battery size (kWh) | B12: 1 | F12: See More Information Here | L12: Equipment Type (select from list) | M12: Zero-Turn Mower
A13: Number of batteries | B13: 1 | D13: Estimated Annual GHG (CO2) Reduction % | J13: =(M25-B25)/M25 -> 0.9975447754 | L13: Horsepower | M13: 25
A14: Efficiency/charging loss | B14: 0.1 | D14: Estimated Annual GHG Emissions (CO2) Reduction (Metric Tonnes) | J14: =M25-B25 -> 17.38637418 | L14: Gallons of gasoline per hour | M14: 1
A15: Electricity Information | L15: Fuel Information
A16: Electricity cost ($/per kWh) | B16: 0.14 | D16: Equivalent Numbers of Cars Removed from the Road (comparing CO2 emissions) | J16: =J14/'Appendix - Economic Model Data'!B77 -> 3.6602893 | L16: Price per gallon of gas | M16: 3
A17: Portion of facility electricity from renewable generation | B17: 0.2 | L17: Hours of Operation
A18: Hours of Operation | C18: ECONOMIC RESULTS
A19: Hours per day | B19: 8 | F19: See More Information Here | L19: Hours per day | M19: 8
A20: Days per month | B20: 4 | L20: Days per month | M20: 4
A21: Months per year | B21: 6 | L21: Months per year | M21: 6
A22: Warranty | L22: Warranty
A23: Length of warranty (years) | B23: 2 | L23: Length of warranty (years) | M23: 2
A24: ENVIRONMENTAL RESULTS | L24: ENVIRONMENTAL RESULTS
A25: Annual Carbon Dioxide (CO2) Emissions (Metric Tonnes) | B25: =(1-B17)*(((B29*B33))*'Appendix - Economic Model Data'!E73) -> 0.04279251869 | L25: Annual Carbon Dioxide (CO2) Emissions (Metric Tonnes) | M25: ='Appendix - Economic Model Data'!F124 -> 17.42916669
A26: ECONOMIC RESULTS | L26: ECONOMIC RESULTS
A27: Prompt pay discount (PPD) | B27: =((+B6+(B7*B8)+B9)*B10) -> 50 | L27: Prompt pay discount (PPD) | M27: =((+M6+(M7*M8)+M9)*M10) -> 7.5
A28: Total initial cost | B28: =((+B6+(B7*B8)+B9)-B27) -> 4950 | L28: Total initial cost | M28: =((+M6+(M7*M8)+M9)-M27) -> 742.5
A29: kWh used per hour | B29: =((B12*B13)+((B12*B13)*B14)) -> 1.1
A30: Total electricity cost per hour | B30: =(+B16*B29) -> 0.154 | L30: Cost of gasoline per hour | M30: =(+M16*M14) -> 3
A31: Cost of maintenance per hour (blade sharpening and replacement) | B31: =('Appendix - Economic Model Data'!B18) -> 0.6057692308 | L31: Cost of maintenance per hour (blade sharpening and replacement; oil changes; parts, filters, belts, labor) | M31: =('Appendix - Economic Model Data'!I18) -> 1.737089161
A32: Total operating cost per hour | B32: =(+B30+B31) -> 0.7597692308 | L32: Total operating cost per hour | M32: =+M30+M31 -> 4.737089161
A33: Hours per year | B33: =((B19*B20)*B21) -> 192 | L33: Hours per year | M33: =((M19*M20)*M21) -> 192
A34: Annual operating costs | B34: =+B32*B33 -> 145.8756923 | L34: Annual operating costs | M34: =+M32*M33 -> 909.5211189
A35: Amortized cost per year over warranty period | B35: =((B28+B34)/B23) -> 2547.937846 | L35: Amortized cost per year over warranty period | M35: =(M28+M34)/M23 -> 826.0105594
G59: Estimated Battery-Powered Electric Equipment Cost Benefit
G63: ='Appendix - Economic Model Data'!B43 -> Year 1 | H63: ='Appendix - Economic Model Data'!C43 -> 3331.172814
G64: ='Appendix - Economic Model Data'!B44 -> Year 2 | H64: ='Appendix - Economic Model Data'!C44 -> 8586.345627
G65: ='Appendix - Economic Model Data'!B45 -> Year 3 | H65: ='Appendix - Economic Model Data'!C45 -> 13841.51844
G66: ='Appendix - Economic Model Data'!B46 -> Year 4 | H66: ='Appendix - Economic Model Data'!C46 -> 19096.69125
G67: ='Appendix - Economic Model Data'!B47 -> Year 5 | H67: ='Appendix - Economic Model Data'!C47 -> 24351.86407
G68: ='Appendix - Economic Model Data'!B48 -> Year 6 | H68: ='Appendix - Economic Model Data'!C48 -> 29607.03688
G69: ='Appendix - Economic Model Data'!B49 -> Year 7 | H69: ='Appendix - Economic Model Data'!C49 -> 34862.2097
G70: ='Appendix - Economic Model Data'!B50 -> Year 8 | H70: ='Appendix - Economic Model Data'!C50 -> 40117.38251
G71: ='Appendix - Economic Model Data'!B51 -> Year 9 | H71: ='Appendix - Economic Model Data'!C51 -> 45372.55532
G72: ='Appendix - Economic Model Data'!B52 -> Year 10 | H72: ='Appendix - Economic Model Data'!C52 -> 50627.72814
F95: Battery-Powered Warranty Period: | I95: Gasoline Warranty Period:
F97: =B23 -> 2 | G97: Year(s) | I97: =M23 -> 2 | J97: Year(s)
A99: More Information & Links
A100: • FAC88 Contract User Guide | F100: https://www.mass.gov/doc/fac88/download
A101: • Environmentally Preferable Products Program Website | F101: https://www.mass.gov/environmentally-preferable-products-epp-procurement-programs
A102: • Leading by Example Program Website | F102: https://www.mass.gov/leading-by-example-program
A103: • US EPA: Exhaust Emission Factors for Nonroad Engine Modeling - Spark Ignition | F103: https://nepis.epa.gov/Exe/ZyPDF.cgi/P10081YF.PDF?Dockey=P10081YF.PDF

Sheet Appendix - Gas DF Values
A1: Product | B1: Manufacturer | C1: Name | D1: SKU/model number | E1: Blade size (mowers) | F1: Zero Turn? | G1: Air Volume (cubic ft/min) | H1: Bar Length (in) | I1: Cutting Width | J1: Blade Length | K1: Cost | L1: Horsepower | M1: Fuel Capacity (gal) | N1: Fuel Capacity (oz) | O1: MPH | P1: Displacement | Q1: Gallons of gas used per hour | R1: Source | S1: Price Source | T1: Additional Notes
A2: Riding Mower | B2: Stihl | C2: RZ 152 | D2: RZ 152 | E2: 52 | F2: Yes | K2: 5649.99 | L2: 25 | M2: 3 | O2: 8 | P2: 724 | R2: https://www.stihlusa.com/products/lawn-mowers/zero-turn-mowers/rz152/
A3: Riding Mower | B3: Stihl | C3: RZ 142 | D3: RZ 142 | E3: 42 | F3: Yes | K3: 3899.99 | L3: 23 | M3: 3 | O3: 7 | P3: 724 | R3: https://www.stihlusa.com/products/lawn-mowers/zero-turn-mowers/rz142/
A4: Riding Mower | B4: Stihl | C4: RZ 552 | D4: RZ 552 | E4: 52 | F4: Yes | K4: 9949.99 | L4: 24 | M4: 5.5 | O4: 10 | R4: https://www.stihlusa.com/products/lawn-mowers/zero-turn-mowers/rz500series/#specifications
A5: Riding Mower | B5: Stihl | C5: RZ 552 K | D5: RZ 552 K | E5: 52 | F5: Yes | K5: 10449.99 | L5: 24 | M5: 5.5 | O5: 10 | R5: https://www.stihlusa.com/products/lawn-mowers/zero-turn-mowers/rz500series/#specifications
A6: Riding Mower | B6: Stihl | C6: RZ 560 | D6: RZ 561 | E6: 60 | F6: Yes | K6: 10499.99 | L6: 24 | M6: 5.5 | O6: 10 | R6: https://www.stihlusa.com/products/lawn-mowers/zero-turn-mowers/rz500series/#specifications
A7: Riding Mower | B7: Stihl | C7: RZ 560 K | D7: RZ 560 K | E7: 60 | F7: Yes | K7: 10999.99 | L7: 24 | M7: 5.5 | O7: 10 | R7: https://www.stihlusa.com/products/lawn-mowers/zero-turn-mowers/rz500series/#specifications
A8: Riding Mower | B8: Stihl | C8: RZ 960i | D8: RZ 960i | E8: 60 | F8: Yes | K8: 17899.99 | O8: 12 | R8: https://www.stihlusa.com/products/lawn-mowers/zero-turn-mowers/rz900series/
A9: Riding Mower | B9: Stihl | C9: RZ 960 K | D9: RZ 960 K | E9: 60 | F9: Yes | K9: 17899.99 | O9: 12 | R9: https://www.stihlusa.com/products/lawn-mowers/zero-turn-mowers/rz900series/
A10: Riding Mower | B10: Stihl | C10: RZ 960i K | D10: RZ 960i K | E10: 60 | F10: Yes | K10: 18199.99 | O10: 12 | R10: https://www.stihlusa.com/products/lawn-mowers/zero-turn-mowers/rz900series/
A11: Riding Mower | B11: Stihl | C11: RZ 972i | D11: RZ 972i | E11: 72 | F11: Yes | K11: 18399.99 | O11: 12 | R11: https://www.stihlusa.com/products/lawn-mowers/zero-turn-mowers/rz900series/
A12: Riding Mower | B12: Stihl | C12: RZ 972 K | D12: RZ 972 K | E12: 72 | F12: Yes | K12: 18399.99 | O12: 12 | R12: https://www.stihlusa.com/products/lawn-mowers/zero-turn-mowers/rz900series/
A13: Riding Mower | B13: Stihl | C13: RZ 972i K | D13: RZ 972i K | E13: 72 | F13: Yes | K13: 18699.99 | O13: 12 | R13: https://www.stihlusa.com/products/lawn-mowers/zero-turn-mowers/rz900series/
A14: Riding Mower | B14: Stihl | C14: RZ 261 | D14: RZ 261 | E14: 61 | F14: Yes | K14: 7449.99 | L14: 25 | M14: 3 | O14: 8.5 | P14: 724 | R14: https://www.stihlusa.com/products/lawn-mowers/zero-turn-mowers/rz261/
A15: Riding Mower | B15: Stihl | C15: RZ 752i | D15: RZ 752i | E15: 52 | F15: Yes | K15: 13149.99 | M15: 11 | O15: 10 | R15: https://www.stihlusa.com/products/lawn-mowers/zero-turn-mowers/rz700series/
A16: Riding Mower | B16: Stihl | C16: RZ 752 K | D16: RZ 752 K | E16: 52 | F16: Yes | K16: 11899.99 | M16: 11 | O16: 10 | R16: https://www.stihlusa.com/products/lawn-mowers/zero-turn-mowers/rz700series/
A17: Riding Mower | B17: Stihl | C17: RZ 752i K | D17: RZ 752i K | E17: 52 | F17: Yes | K17: 11849.99 | M17: 11 | O17: 10 | R17: https://www.stihlusa.com/products/lawn-mowers/zero-turn-mowers/rz700series/
A18: Riding Mower | B18: Stihl | C18: RZ 760i | D18: RZ 760i | E18: 60 | F18: Yes | K18: 13849.99 | M18: 11 | O18: 10 | R18: https://www.stihlusa.com/products/lawn-mowers/zero-turn-mowers/rz700series/
A19: Riding Mower | B19: Stihl | C19: RZ 760 K | D19: RZ 760 K | E19: 60 | F19: Yes | K19: 12499.99 | M19: 11 | O19: 10 | R19: https://www.stihlusa.com/products/lawn-mowers/zero-turn-mowers/rz700series/
A20: Riding Mower | B20: Stihl | C20: RZ 760i K | D20: RZ 760i K | E20: 60 | F20: Yes | K20: 12499.99 | M20: 11 | O20: 10 | R20: https://www.stihlusa.com/products/lawn-mowers/zero-turn-mowers/rz700series/
A21: Riding Mower | B21: Husqvarna | C21: Z560LS | D21: Z560LS | E21: 60 | F21: Yes | K21: 14799 | L21: 38.5 | M21: 12 | O21: 12 | R21: https://www.husqvarna.com/us/zero-turn-mowers/z560ls/
A22: Riding Mower | B22: Husqvarna | C22: Z448 | D22: Z448 | E22: 48 | F22: Yes | K22: 8399.99 | L22: 22 | M22: 6 | O22: 10 | R22: https://www.husqvarna.com/us/zero-turn-mowers/z448/
A23: Riding Mower | B23: Husqvarna | C23: Z454 | D23: Z455 | E23: 54 | F23: Yes | K23: 8699.99 | L23: 22 | M23: 6 | O23: 10 | R23: https://www.husqvarna.com/us/zero-turn-mowers/z454/
A24: Riding Mower | B24: Husqvarna | C24: Z460 | D24: Z460 | E24: 60 | F24: Yes | K24: 9199.99 | L24: 23 | M24: 6 | O24: 10 | R24: https://www.husqvarna.com/us/zero-turn-mowers/z460/
A25: Riding Mower | B25: Husqvarna | C25: Z454XS | D25: Z454XS | E25: 54 | F25: Yes | K25: 10599.99 | L25: 23.5 | M25: 12 | O25: 11 | R25: https://www.husqvarna.com/us/zero-turn-mowers/z454xs/
A26: Riding Mower | B26: Husqvarna | C26: Z460XS | D26: Z460XS | E26: 60 | F26: Yes | K26: 10899.99 | L26: 23.5 | M26: 12 | O26: 11 | R26: https://www.husqvarna.com/us/zero-turn-mowers/z460xs/
A27: Riding Mower | B27: Husqvarna | C27: Z554L | D27: Z554L | E27: 54 | F27: Yes | K27: 13099.99 | L27: 27 | M27: 12 | O27: 12 | R27: https://www.husqvarna.com/us/zero-turn-mowers/z554l/
A28: Riding Mower | B28: Husqvarna | C28: Z560L | D28: Z560L | E28: 60 | F28: Yes | K28: 13399.99 | L28: 27 | M28: 12 | O28: 12 | R28: https://www.husqvarna.com/us/zero-turn-mowers/z560l/
A29: Riding Mower | B29: Husqvarna | C29: Z554X | D29: Z554X | E29: 54 | F29: Yes | K29: 14499.99 | L29: 31 | M29: 12 | O29: 12 | R29: https://www.husqvarna.com/us/zero-turn-mowers/z554x/
A30: Riding Mower | B30: Husqvarna | C30: Z560X | D30: Z560X | E30: 60 | F30: Yes | K30: 14799.99 | L30: 31 | M30: 12 | O30: 12 | R30: https://www.husqvarna.com/us/zero-turn-mowers/z560x/
A31: Riding Mower | B31: Husqvarna | C31: Z572X | D31: Z572X | E31: 72 | F31: Yes | K31: 15399.99 | L31: 31 | M31: 12 | O31: 12 | R31: https://www.husqvarna.com/us/zero-turn-mowers/z572x/
A32: Riding Mower | B32: Toro | C32: Z Master Gas 2000 Series 52 in | D32: 77283 | E32: 52 | F32: Yes | K32: 9199 | L32: 24.5 | M32: 7 | O32: 10 | P32: 708 | R32: https://www.toro.com/en/product/77283
A33: Riding Mower | B33: Toro | C33: Z Master Gas 2000 Series 48 in | D33: 77281 | E33: 48 | F33: Yes | K33: 8999 | L33: 24.5 | M33: 7 | O33: 10 | P33: 708 | R33: https://www.toro.com/en/product/77281
A34: Riding Mower | B34: Toro | C34: Z Master Gas 2000 Series 60 in | D34: 77285 | E34: 60 | F34: Yes | K34: 9599 | L34: 24.5 | M34: 7 | O34: 10 | P34: 708 | R34: https://www.toro.com/en/product/77285
A35: Riding Mower | B35: Toro | C35: Z Master Gas 2000 Series HDX Pro 60 in | D35: 77288 | E35: 60 | F35: Yes | K35: $13,340 *Dependent on dealer | L35: 28 | M35: 7 | O35: 10 | P35: 810 | R35: https://www.toro.com/en/product/77288 | S35: https://www.weknowmow.com/new-models/toro-2000-series-hdx-pro-60-152-cm-28-hp-810cc-77288-29009567b
A36: Riding Mower | B36: Toro | C36: Z Master Gas 2000 Series MyRIDE® HDX 52 in | D36: 77291 | E36: 52 | F36: Yes | K36: 11099 | L36: 23.5 | M36: 7 | O36: 10 | P36: 747 | R36: https://www.toro.com/en/product/77291
A37: Riding Mower | B37: Toro | C37: Z Master Gas 2000 Series MyRIDE® HDX 60 in | D37: 77294 | E37: 60 | F37: Yes | K37: 11299 | L37: 23.5 | M37: 7 | O37: 10 | P37: 747 | R37: https://www.toro.com/en/product/77294
A38: Riding Mower | B38: Toro | C38: Z Master 2000 Series 48 in | D38: 77280 | E38: 48 | F38: Yes | K38: 8699 | L38: 24.5 | M38: 7 | O38: 10 | P38: 708 | R38: https://www.toro.com/en/product/77280
A39: Riding Mower | B39: Toro | C39: Z Master 2000 Series MyRIDE® HDX 52 in | D39: 77290 | E39: 52 | F39: Yes | K39: 10599 | L39: 23.5 | M39: 7 | O39: 11 | P39: 747 | R39: https://www.toro.com/en/product/77290
A40: Riding Mower | B40: Toro | C40: Z Master 2000 Series MyRIDE® HDX 60 in | D40: 77293 | E40: 60 | F40: Yes | K40: 10899 | L40: 23.5 | M40: 7 | O40: 11 | P40: 747 | R40: https://www.toro.com/en/product/77293
A41: Riding Mower | B41: Toro | C41: Z Master 4000 Pro Series 48 in | D41: 74000 | E41: 48 | F41: Yes | K41: 11699 | L41: 24.5 | M41: 10 | O41: 10 | P41: 852 | R41: https://www.toro.com/en/product/74000
A42: Riding Mower | B42: Toro | C42: Z Master 4000 Pro Series 52 in | D42: 74002 | E42: 52 | F42: Yes | K42: 11799 | L42: 25.5 | M42: 10.5 | O42: 10 | P42: 852 | R42: https://www.toro.com/en/product/74002
A43: Riding Mower | B43: Toro | C43: Z Master 4000 Pro Series 60 in | D43: 74004 | E43: 60 | F43: Yes | K43: 12399 | L43: 25.5 | M43: 10 | O43: 10 | P43: 852 | R43: https://www.toro.com/en/product/74004
A44: Riding Mower | B44: Toro | C44: Z Master 4000 Pro Series 60 in | D44: 74035 | E44: 60 | F44: Yes | K44: 12799 | L44: 26.5 | M44: 10 | O44: 10 | P44: 747 | R44: https://www.toro.com/en/product/74035
A45: Riding Mower | B45: Toro | C45: Z Master 4000 Series HDX Pro 52 in | D45: 74010 | E45: 52 | F45: Yes | K45: 13299 | L45: 31 | M45: 10.5 | O45: 12 | P45: 999 | R45: https://www.toro.com/en/product/74010
A46: Riding Mower | B46: Toro | C46: Z Master 4000 Series HDX Pro 60 in | D46: 74015 | E46: 60 | F46: Yes | K46: 13699 | L46: 31 | M46: 10 | O46: 12 | P46: 999 | R46: https://www.toro.com/en/product/74015
A47: Riding Mower | B47: Toro | C47: Z Master 4000 Series HDX Pro XL 72 in | D47: 74022 | E47: 72 | F47: Yes | K47: 14599 | L47: 35 | M47: 10 | O47: 12 | P47: 999 | R47: https://www.toro.com/en/product/74022
A48: Riding Mower | B48: Toro | C48: Z Master 4000 Series HDX Pro XL 60 in | D48: 74020 | E48: 60 | F48: Yes | K48: 13999 | L48: 35 | M48: 10 | O48: 12 | P48: 999 | R48: https://www.toro.com/en/product/74020
A49: Riding Mower | B49: Toro | C49: Z Master 4000 Series MyRIDE® HDX 52 in | D49: 74052 | E49: 52 | F49: Yes | K49: 13599 | L49: 31 | M49: 10 | O49: 12 | P49: 999 | R49: https://www.toro.com/en/product/74052
A50: Riding Mower | B50: Toro | C50: Z Master 4000 Series MyRIDE® HDX 60 in | D50: 74055 | E50: 60 | F50: Yes | K50: 13999 | L50: 31 | M50: 10 | O50: 12 | P50: 999 | R50: https://www.toro.com/en/product/74055
A51: Riding Mower | B51: Toro | C51: Z Master 4000 HD Series 52 in | D51: 74050 | E51: 52 | F51: Yes | K51: 11999 | L51: 25.5 | M51: 10.5 | O51: 12 | P51: 852 | R51: https://www.toro.com/en/product/74050
A52: Riding Mower | B52: Toro | C52: Z Master 4000 HD Series 60 in | D52: 74054 | E52: 60 | F52: Yes | K52: 12499 | L52: 25.5 | M52: 10 | O52: 12 | P52: 852 | R52: https://www.toro.com/en/product/74054
A53: Riding Mower | B53: Toro | C53: Z Master 5000 Series 52 in EFI | D53: 72906 | E53: 52 | F53: Yes | K53: $15,899 *Dependent on dealer | L53: 25 | M53: 12 | O53: 10 | P53: 747 | R53: https://www.toro.com/en/product/72906 | S53: https://sleequipment.com/toro-72906-zmaster-5000-mower.html
A54: Riding Mower | B54: Toro | C54: Z Master 5000 Series 60 in | D54: 72910 | E54: 60 | F54: Yes | K54: $14,999 *Dependent on dealer | L54: 25.5 | M54: 12 | O54: 10 | P54: 852 | R54: https://www.toro.com/en/product/72910 | S54: https://sleequipment.com/toro-72910-zmaster-5000-mower.html
A55: Riding Mower | B55: Toro | C55: Z Master 5000 Series 60 in | D55: 72911 | E55: 60 | F55: Yes | K55: $16,800 *Dependent on dealer | L55: 25 | M55: 12 | O55: 10 | P55: 747 | R55: https://www.toro.com/en/product/72911 | S55: https://www.midwestpowerparts.com/new-models/toro-5000-series-60-152-cm-25-hp-747cc-72911-28562588b
A56: Riding Mower | B56: Toro | C56: Z Master 5000 Series 72 in | D56: 72912 | E56: 72 | F56: Yes | K56: 17899 | L56: 26.5 | M56: 12 | O56: 10 | P56: 747 | R56: https://www.toro.com/en/product/72912
A57: Riding Mower | B57: Toro | C57: Z Master 5000 Series 72 in EFI | D57: 72918 | E57: 72 | F57: Yes | K57: $16,699 *Dependent on dealer | L57: 26.5 | M57: 12 | O57: 10 | P57: 747 | R57: https://www.toro.com/en/product/72918 | S57: https://catoespowerequipment.com/shop/toro/toro-5000-series-72-26-5-hp-efi-747cc-72918/
A58: Riding Mower | B58: Toro | C58: Z Master 5000 Series Rear Discharge 60 in EFI | D58: 72921 | E58: 60 | F58: Yes | K58: $16,900 *Dependent on dealer | L58: 25 | M58: 12 | O58: 10 | P58: 747 | R58: https://www.toro.com/en/product/72921 | S58: https://www.midwestpowerparts.com/new-models/toro-5000-series-rear-discharge-60-152-cm-265-hp-efi-747cc-72921-28562590b
A59: Riding Mower | B59: Toro | C59: Z Master 5000 Series Rear Discharge 72 in | D59: 72922 | E59: 72 | F59: Yes | K59: $17,999 *Dependent on dealer | L59: 26.5 | M59: 12 | O59: 10 | P59: 747 | R59: https://www.toro.com/en/product/72922 | S59: https://sleequipment.com/toro-72922-zmaster-5000-mower.html
A60: Riding Mower | B60: Toro | C60: Z Master 5000 Series 60 in EFI | D60: 72930 | E60: 60 | F60: Yes | K60: $15,500 *Dependent on dealer | L60: 25 | M60: 12 | O60: 10 | P60: 747 | R60: https://www.toro.com/en/product/72930 | S60: https://www.midwestpowerparts.com/new-models/toro-5000-series-60-152-cm-25-hp-efi-747cc-72930-28562596b
A61: Riding Mower | B61: Toro | C61: Z Master 5000 Series MyRIDE® 60 in EFI | D61: 72951 | E61: 60 | F61: Yes | K61: $16,800 *Dependent on dealer | L61: 25 | M61: 12 | O61: 10 | P61: 747 | R61: https://www.toro.com/en/product/72951 | S61: https://www.midwestpowerparts.com/new-models/toro-5000-series-myride-60-152-cm-25-hp-efi-747cc-72951-28562600b
A62: Riding Mower | B62: Toro | C62: Z Master 5000 Series MyRIDE® 52 in EFI | D62: 72955 | E62: 52 | F62: Yes | K62: $16,000 *Dependent on dealer | L62: 25 | M62: 12 | O62: 10 | P62: 747 | R62: https://www.toro.com/en/product/72955 | S62: https://www.midwestpowerparts.com/new-models/toro-5000-series-myride-52-132-cm-25-hp-efi-747cc-72955-28562601b
A63: Riding Mower | B63: Toro | C63: 6000 Series 60 in | D63: 72926 | E63: 60 | F63: Yes | K63: $18,099 *Dependent on dealer | L63: 26.5 | M63: 12 | O63: 11.5 | P63: 747 | R63: https://www.toro.com/en/product/72926 | S63: https://catoespowerequipment.com/shop/toro/toro-6000-series-60-26-5-hp-747cc-72926/
A64: Riding Mower | B64: Toro | C64: 6000 Series 72 in | D64: 72928 | E64: 72 | F64: Yes | K64: $21,419 *Dependent on dealer | L64: 26.5 | M64: 12 | O64: 11.5 | P64: 747 | R64: https://www.toro.com/en/product/72928 | S64: https://southernhardwareinc.com/shop/toro/toro-6000-series-72-26-5-hp-747cc-72928/
A65: Riding Mower | B65: Toro | C65: 6000 Series 60 in w/Horizon Technology | D65: 72946 | E65: 60 | F65: Yes | K65: $19,000 *Dependent on dealer | L65: 38 | M65: 12 | O65: 11.5 | P65: 999 | R65: https://www.toro.com/en/product/72946 | S65: https://www.midwestpowerparts.com/new-models/toro-6000-series-60-152-cm-38-hp-999cc-whorizon-technology-72946-28562612b
A66: Riding Mower | B66: Toro | C66: 6000 Series 72 in w/Horizon Technology | D66: 72947 | E66: 72 | F66: Yes | K66: $19,500 *Dependent on dealer | L66: 38 | M66: 12 | O66: 11.5 | P66: 999 | R66: https://www.toro.com/en/product/72947 | S66: https://www.midwestpowerparts.com/new-models/toro-6000-series-72-183-cm-38-hp-999cc-whorizon-technology-72947-28562613b
A67: Riding Mower | B67: Toro | C67: 6000 Series 60 in | D67: 72960 | E67: 60 | F67: Yes | K67: $21,534 *Dependent on dealer | L67: 31 | M67: 12 | O67: 11.5 | P67: 999 | R67: https://www.toro.com/en/product/72960 | S67: https://southernhardwareinc.com/shop/toro/toro-6000-series-60-31-hp-999cc-72960/
A68: Riding Mower | B68: Toro | C68: 6000 Series 72 in | D68: 72961 | E68: 72 | F68: Yes | K68: $19,399 *Dependent on dealer | L68: 31 | M68: 12 | O68: 11.5 | P68: 999 | R68: https://www.toro.com/en/product/72961 | S68: https://sleequipment.com/toro-72961-zero-turn-mower.html
A69: Riding Mower | B69: Toro | C69: 6000 Series 60 in | D69: 72965 | E69: 60 | F69: Yes | K69: $19,699 *Dependent on dealer | L69: 31 | M69: 12 | O69: 11.5 | P69: 999 | R69: https://www.toro.com/en/product/72965 | S69: https://sleequipment.com/toro-zmaster-72965.html
A70: Riding Mower | B70: Toro | C70: 6000 Series MyRIDE® 60 in | D70: 72967 | E70: 60 | F70: Yes | K70: $18,400 *Dependent on dealer | L70: 31 | M70: 12 | O70: 11.5 | P70: 921 | R70: https://www.toro.com/en/product/72967 | S70: https://www.midwestpowerparts.com/new-models/toro-6000-series-myride-60-152-cm-31-hp-999cc-72967-28562608b
A71: Riding Mower | B71: Toro | C71: 6000 Series MyRIDE® 72 in | D71: 72968 | E71: 72 | F71: Yes | K71: $18,900 *Dependent on dealer | L71: 31 | M71: 12 | O71: 11.5 | P71: 921 | R71: https://www.toro.com/en/product/72968 | S71: https://www.midwestpowerparts.com/new-models/toro-6000-series-myride-72-183-cm-31-hp-999cc-72968-28562610b
A72: Riding Mower | B72: Toro | C72: 6000 Series 60 in | D72: 72980 | E72: 60 | F72: Yes | K72: $19,499 *Dependent on dealer | L72: 37 | M72: 12 | O72: 12 | P72: 993 | R72: https://www.toro.com/en/product/72980 | S72: https://catoespowerequipment.com/shop/toro/toro-6000-series-60-37-hp-993cc-72980/
A73: Riding Mower | B73: Toro | C73: 6000 Series 72 in | D73: 72982 | E73: 72 | F73: Yes | K73: $19,000 *Dependent on dealer | L73: 37 | M73: 12 | O73: 12 | P73: 993 | R73: https://www.toro.com/en/product/72982 | S73: https://www.midwestpowerparts.com/new-models/toro-6000-series-72-183-cm-37-hp-993cc-72982-28562603b
A74: Riding Mower | B74: Toro | C74: 8000 Series 48 in | D74: 74312 | E74: 48 | F74: Yes | K74: $19,599 *Dependent on dealer | L74: 23 | M74: 7.5 | O74: 7 | P74: 747 | R74: https://www.toro.com/en/product/74312 | S74: https://sleequipment.com/toro-74312-zero-turn-mower.html
A75: Riding Mower | B75: Toro | C75: 8000 Series 42 in | D75: 74315 | E75: 42 | F75: Yes | K75: $18,499 *Dependent on dealer | L75: 25 | M75: 7.5 | O75: 7 | P75: 725 | R75: https://www.toro.com/en/product/74315 | S75: https://sleequipment.com/toro-74315-zero-turn-mower.html
A76: Riding Mower | B76: John Deere | C76: Z760R Ztrack | D76: 22A0TC | E76: 54 | F76: Yes | K76: 11479 | L76: 27 | M76: 8 | O76: 10 | P76: 852 | R76: https://www.deere.com/en/mowers/zero-turn-mowers/z700-series/z760r-ztrak-mower/
A77: Riding Mower | B77: John Deere | C77: Z760R Ztrack | D77: 22A0TC | E77: 60 | F77: Yes | K77: =11479+330 -> 11809 | L77: 27 | M77: 8 | O77: 10 | P77: 852 | R77: https://www.deere.com/en/mowers/zero-turn-mowers/z700-series/z760r-ztrak-mower/ | S77: https://e-marketing.deere.com/AddAccessories.do?lid=1875429536&newproduct=22A0TC&newproducts=22A0TC,1502_HCPRO_INBASE
A78: Riding Mower | B78: John Deere | C78: Z730M Ztrack | D78: 2261TC | E78: 54 | F78: Yes | K78: 9729 | L78: 24 | M78: 8 | O78: 9.5 | P78: 726 | R78: https://www.deere.com/en/mowers/zero-turn-mowers/z700-series/z730m-ztrak-mower/
A79: Riding Mower | B79: John Deere | C79: Z730M Ztrack | D79: 2261TC | E79: 60 | F79: Yes | K79: =K78+330 -> 10059 | L79: 24 | M79: 8 | O79: 9.5 | P79: 726 | R79: https://www.deere.com/en/mowers/zero-turn-mowers/z700-series/z730m-ztrak-mower/ | S79: https://e-marketing.deere.com/AddAccessories.do?lid=2119449465&newproduct=2261TC&newproducts=2261TC,PPPR_Z700M_NO,1502_HCPRO_INBASE
A80: Riding Mower | B80: John Deere | C80: Z740R Ztrack | D80: 2287TC | E80: 48 | F80: Yes | K80: 10719 | L80: 23.5 | M80: 8 | O80: 10 | P80: 726 | R80: https://www.deere.com/en/mowers/zero-turn-mowers/z700-series/z740r-ztrak-mower/
A81: Riding Mower | B81: John Deere | C81: Z740R Ztrack | D81: 2287TC | E81: 54 | F81: Yes | K81: =K80+330 -> 11049 | L81: 23.5 | M81: 8 | O81: 10 | P81: 726 | R81: https://www.deere.com/en/mowers/zero-turn-mowers/z700-series/z740r-ztrak-mower/ | S81: https://e-marketing.deere.com/AddAccessories.do?lid=643019982&newproduct=2287TC&newproducts=2287TC,PPPR_Z700R_NO,1500_HCPRO_INBASE
A82: Riding Mower | B82: John Deere | C82: Z740R Ztrack | D82: 2287TC | E82: 60 | F82: Yes | K82: =K80+660 -> 11379 | L82: 23.5 | M82: 8 | O82: 10 | P82: 726 | R82: https://www.deere.com/en/mowers/zero-turn-mowers/z700-series/z740r-ztrak-mower/ | S82: https://e-marketing.deere.com/AddAccessories.do?lid=643019982&newproduct=2287TC&newproducts=2287TC,PPPR_Z700R_NO,1500_HCPRO_INBASE
A83: Riding Mower | B83: John Deere | C83: Z720E Ztrack | D83: 2241TC | E83: 48 | F83: Yes | K83: 8079 | L83: 23 | M83: 8 | O83: 8 | P83: 726 | R83: https://www.deere.com/en/mowers/zero-turn-mowers/z700-series/z720e-ztrak-mower/
A84: Riding Mower | B84: John Deere | C84: Z720E Ztrack | D84: 2241TC | E84: 54 | F84: Yes | K84: =K83+330 -> 8409 | L84: 23 | M84: 8 | O84: 8 | P84: 726 | R84: https://www.deere.com/en/mowers/zero-turn-mowers/z700-series/z720e-ztrak-mower/ | S84: https://e-marketing.deere.com/AddAccessories.do?lid=2129068245&newproduct=2241TC&newproducts=2241TC,PPPR_Z700E_NO,1500_HCPRO_INBASE
A85: Riding Mower | B85: John Deere | C85: Z720E Ztrack | D85: 2241TC | E85: 60 | F85: Yes | K85: =K83+660 -> 8739 | L85: 23 | M85: 8 | O85: 8 | P85: 726 | R85: https://www.deere.com/en/mowers/zero-turn-mowers/z700-series/z720e-ztrak-mower/ | S85: https://e-marketing.deere.com/AddAccessories.do?lid=2129068245&newproduct=2241TC&newproducts=2241TC,PPPR_Z700E_NO,1500_HCPRO_INBASE
A86: Riding Mower | B86: John Deere | C86: Z735E ZTrak | D86: 2251TC | E86: 60 | F86: Yes | K86: 8919 | L86: 25 | M86: 8 | O86: 8 | P86: 810 | R86: https://www.deere.com/en/mowers/zero-turn-mowers/z700-series/z735e-ztrak-mower/
A87: Riding Mower | B87: John Deere | C87: Z735M ZTrack | D87: 2271TC | E87: 48 | F87: Yes | K87: 9209 | L87: 25 | M87: 8 | O87: 9.5 | P87: 810 | R87: https://www.deere.com/en/mowers/zero-turn-mowers/z700-series/z735m-ztrak-mower/
A88: Riding Mower | B88: John Deere | C88: Z735M ZTrack | D88: 2271TC | E88: 54 | F88: Yes | K88: =K87+330 -> 9539 | L88: 25 | M88: 8 | O88: 9.5 | P88: 810 | R88: https://www.deere.com/en/mowers/zero-turn-mowers/z700-series/z735m-ztrak-mower/ | S88: https://e-marketing.deere.com/AddAccessories.do?lid=966646221&newproduct=2271TC&newproducts=2271TC,1500_HCPRO_INBASE,PPPR_Z700M_NO
A89: Riding Mower | B89: John Deere | C89: Z735M ZTrack | D89: 2271TC | E89: 60 | F89: Yes | K89: =K87+660 -> 9869 | L89: 25 | M89: 8 | O89: 9.5 | P89: 810 | R89: https://www.deere.com/en/mowers/zero-turn-mowers/z700-series/z735m-ztrak-mower/ | S89: https://e-marketing.deere.com/AddAccessories.do?lid=966646221&newproduct=2271TC&newproducts=2271TC,1500_HCPRO_INBASE,PPPR_Z700M_NO
A90: Riding Mower | B90: John Deere | C90: Z930M Ztrack Side-Discharge | D90: 216CTC | E90: 54 | F90: Yes | K90: =14409-400 -> 14009 | L90: 25.5 | M90: 11.5 | O90: 10 | P90: 852 | R90: https://www.deere.com/en/mowers/commercial-mowers/commercial-zero-turn/z900-series/z930m-mower/ | S90: https://www.deere.com/en/mowers/commercial-mowers/commercial-zero-turn/z900-series/z930m-mower/
A91: Riding Mower | B91: John Deere | C91: Z930M Ztrack Side Discharge | D91: 216CTC | E91: 60 | F91: Yes | K91: 14409 | L91: 25.5 | M91: 11.5 | O91: 10 | P91: 852 | R91: https://www.deere.com/en/mowers/commercial-mowers/commercial-zero-turn/z900-series/z930m-mower/ | S91: https://www.deere.com/en/mowers/commercial-mowers/commercial-zero-turn/z900-series/z930m-mower/
A92: Riding Mower | B92: John Deere | C92: Z930M Ztrack Mulch-on-Demand | D92: 216CTC | E92: 60 | F92: Yes | K92: =14409+1100 -> 15509 | L92: 25.5 | M92: 11.5 | O92: 10 | P92: 852 | R92: https://www.deere.com/en/mowers/commercial-mowers/commercial-zero-turn/z900-series/z930m-mower/ | S92: https://www.deere.com/en/mowers/commercial-mowers/commercial-zero-turn/z900-series/z930m-mower/
A93: Riding Mower | B93: John Deere | C93: Z930M Ztrack Rear-Discharge | D93: 216CTC | E93: 60 | F93: Yes | K93: =14409+1050 -> 15459 | L93: 25.5 | M93: 11.5 | O93: 10 | P93: 852 | R93: https://www.deere.com/en/mowers/commercial-mowers/commercial-zero-turn/z900-series/z930m-mower/ | S93: https://www.deere.com/en/mowers/commercial-mowers/commercial-zero-turn/z900-series/z930m-mower/
A94: Riding Mower | B94: John Deere | C94: Z950M | D94: 0694TC | E94: 60 | F94: Yes | K94: 14899 | L94: 27 | M94: 11.5 | O94: 10 | P94: 852 | R94: https://www.deere.com/en/mowers/commercial-mowers/commercial-zero-turn/z900-series/z950m-mower/
A95: Riding Mower | B95: John Deere | C95: Z920M ZTrak | D95: 2147TC | E95: 48 | F95: Yes | K95: =13499-320 -> 13179 | L95: 23.5 | M95: 11.5 | O95: 10 | P95: 726 | R95: https://www.deere.com/en/mowers/commercial-mowers/commercial-zero-turn/z900-series/z920m-mower/ | S95: https://e-marketing.deere.com/AddAccessories.do?lid=1211089370&newproduct=2147TC&newproducts=2147TC,1500_48_SD,2091_INBASE_ZTRAK,NO_MCS,TIRES,PPPR_Z900_NO
A96: Riding Mower | B96: John Deere | C96: Z920M ZTrak | D96: 2147TC | E96: 54 | F96: Yes | K96: =13499 -> 13499 | L96: 23.5 | M96: 11.5 | O96: 10 | P96: 726 | R96: https://www.deere.com/en/mowers/commercial-mowers/commercial-zero-turn/z900-series/z920m-mower/ | S96: https://e-marketing.deere.com/AddAccessories.do?lid=1211089370&newproduct=2147TC&newproducts=2147TC,1500_48_SD,2091_INBASE_ZTRAK,NO_MCS,TIRES,PPPR_Z900_NO
A97: Riding Mower | B97: John Deere | C97: Z920M ZTrak | D97: 2147TC | E97: 60 | F97: Yes | K97: =13499+400 -> 13899 | L97: 23.5 | M97: 11.5 | O97: 10 | P97: 726 | R97: https://www.deere.com/en/mowers/commercial-mowers/commercial-zero-turn/z900-series/z920m-mower/ | S97: https://e-marketing.deere.com/AddAccessories.do?lid=1211089370&newproduct=2147TC&newproducts=2147TC,1500_48_SD,2091_INBASE_ZTRAK,NO_MCS,TIRES,PPPR_Z900_NO
A98: Riding Mower | B98: John Deere | C98: Z960M Ztrak Side Discharge | D98: 2233TC | E98: 60 | F98: Yes | K98: =15809 -> 15809 | L98: 31 | M98: 11.5 | O98: 10 | P98: 999 | R98: https://www.deere.com/en/mowers/commercial-mowers/commercial-zero-turn/z900-series/z960m-mower/ | S98: https://e-marketing.deere.com/AddAccessories.do?lid=982498130&newproduct=2233TC&newproducts=2233TC,2091_INBASE_ZTRAK,NO_MCS,TIRES,1504_60_SD_INBASE,PPPR_Z900_NO
A99: Riding Mower | B99: John Deere | C99: Z960M Ztrak Side Discharge | D99: 2233TC | E99: 72 | F99: Yes | K99: =15809+750 -> 16559 | L99: 31 | M99: 11.5 | O99: 10 | P99: 999 | R99: https://www.deere.com/en/mowers/commercial-mowers/commercial-zero-turn/z900-series/z960m-mower/ | S99: https://e-marketing.deere.com/AddAccessories.do?lid=982498130&newproduct=2233TC&newproducts=2233TC,2091_INBASE_ZTRAK,NO_MCS,TIRES,1504_60_SD_INBASE,PPPR_Z900_NO
A100: Riding Mower | B100: John Deere | C100: Z960M Ztrak Mulch-on-Demand | D100: 2233TC | E100: 60 | F100: Yes | K100: =15809+1100 -> 16909 | L100: 31 | M100: 11.5 | O100: 10 | P100: 999 | R100: https://www.deere.com/en/mowers/commercial-mowers/commercial-zero-turn/z900-series/z960m-mower/ | S100: https://e-marketing.deere.com/AddAccessories.do?lid=982498130&newproduct=2233TC&newproducts=2233TC,2091_INBASE_ZTRAK,NO_MCS,TIRES,1504_60_SD_INBASE,PPPR_Z900_NO
A101: Riding Mower | B101: John Deere | C101: Z960M Ztrak Rear Discharge | D101: 2233TC | E101: 60 | F101: Yes | K101: =15809+1050 -> 16859 | L101: 31 | M101: 11.5 | O101: 10 | P101: 999 | R101: https://www.deere.com/en/mowers/commercial-mowers/commercial-zero-turn/z900-series/z960m-mower/ | S101: https://e-marketing.deere.com/AddAccessories.do?lid=982498130&newproduct=2233TC&newproducts=2233TC,2091_INBASE_ZTRAK,NO_MCS,TIRES,1504_60_SD_INBASE,PPPR_Z900_NO
A102: Riding Mower | B102: John Deere | C102: Z960M Ztrak Rear Discharge | D102: 2233TC | E102: 72 | F102: Yes | K102: =15809+1600 -> 17409 | L102: 31 | M102: 11.5 | O102: 10 | P102: 999 | R102: https://www.deere.com/en/mowers/commercial-mowers/commercial-zero-turn/z900-series/z960m-mower/ | S102: https://e-marketing.deere.com/AddAccessories.do?lid=982498130&newproduct=2233TC&newproducts=2233TC,2091_INBASE_ZTRAK,NO_MCS,TIRES,1504_60_SD_INBASE,PPPR_Z900_NO
A103: Stand On Mower | B103: Toro | C103: GrandStand® 48 in (California Model) | D103: 71504 | E103: 48 | F103: No | K103: $12,199 *Dependent on dealer | L103: 22 | M103: 10.5 | O103: 10 | P103: 726 | R103: https://www.toro.com/en/product/71504 | S103: https://www.johnsonfleetandfarm.com/PrintInventory-Toro-Lawn-Mower-GrandStand-48-122-cm-22-HP-726cc-71504--id-9688443
A104: Stand On Mower | B104: Toro | C104: GrandStand® 52 in (California Model) | D104: 71505 | E104: 52 | F104: No | K104: $10,599 *Dependent on dealer | L104: 22 | M104: 10.5 | O104: 10 | P104: 726 | R104: https://www.toro.com/en/product/71505 | S104: https://www.hoffmanspowerequipment.com/new-models/toro-grandstand-52-132-cm-22-hp-726cc-california-model-71505-29009644b
A105: Stand On Mower | B105: Toro | C105: GrandStand® 48 in | D105: 72504 | E105: 48 | F105: No | K105: $11,899 *Dependent on dealer | L105: 22 | M105: 10.5 | O105: 10 | P105: 726 | R105: https://www.toro.com/en/product/72504 | S105: https://sleequipment.com/toro-72504-grandstand-mower.html
A106: Stand On Mower | B106: Toro | C106: GrandStand® 52 in | D106: 72505 | E106: 52 | F106: No | K106: $11,999 *Dependent on dealer | L106: 22 | M106: 10.5 | O106: 10 | P106: 726 | R106: https://www.toro.com/en/product/72505 | S106: https://sleequipment.com/toro-grandstand-72505-stand-on-mower.html
A107: Stand On Mower | B107: Toro | C107: GrandStand® 60 in | D107: 72509 | E107: 60 | F107: No | K107: $12,499 *Dependent on dealer | L107: 23.5 | M107: 10.5 | O107: 10 | P107: 726 | R107: https://www.toro.com/en/product/72509 | S107: https://sleequipment.com/toro-grandstand-72509-stand-on-mower.html
A108: Stand On Mower | B108: Toro | C108: GrandStand® 60 in EFI | D108: 72513 | E108: 60 | F108: No | K108: $13,199 *Dependent on dealer | L108: 25 | M108: 10.5 | O108: 10 | P108: 747 | R108: https://www.toro.com/en/product/72513 | S108: https://sleequipment.com/toro-grandstand-72513-stand-on-mower.html
A109: Stand On Mower | B109: Toro | C109: GrandStand® 48 in EFI (California Model) | D109: 72518 | E109: 48 | F109: No | K109: $ 12,599*Dependent on dealer | L109: 23 | M109: 10.5 | O109: 10 | P109: 747 | R109: https://www.toro.com/en/product/72518 | S109: https://sleequipment.com/toro-72518-48-grandstand-stand-on-mower-23-hp-kohler-efi.html
A110: Stand On Mower | B110: Toro | C110: GrandStand® 52 in EFI | D110: 72519 | E110: 52 | F110: No | K110: $12,799 *Dependent on dealer | L110: 25 | M110: 10.5 | O110: 10 | P110: 747 | R110: https://www.toro.com/en/product/72519 | S110: https://sleequipment.com/toro-grandstand-72519-stand-on-mower.html
A111: Stand On Mower | B111: Toro | C111: GrandStand® 36 in | D111: 74534 | E111: 36 | F111: No | K111: $9,699 *Dependent on dealer | L111: 15 | M111: 7.8 | O111: 8 | P111: 603 | R111: https://www.toro.com/en/product/74534 | S111: https://sleequipment.com/toro-grandstand-74534-stand-on-mower.html
A112: Stand On Mower | B112: Toro | C112: GrandStand® 40 in | D112: 74536 | E112: 40 | F112: No | K112: $9,999 *Dependent on dealer | L112: 15 | M112: 7.8 | O112: 8 | P112: 541 | R112: https://www.toro.com/en/product/74536 | S112: https://www.midwestpowerparts.com/new-models/toro-grandstand-40-102-cm-15-hp-541cc-74536-28562633b
A113: Stand On Mower | B113: Toro | C113: GrandStand® 36 in (California Model) | D113: 79534 | E113: 36 | F113: No | K113: $11,899 *Dependent on dealer | L113: 15 | M113: 7.8 | O113: 8 | P113: 603 | R113: https://www.toro.com/en/product/79534 | S113: https://www.balawn.com/search/inventory/type/Commercial%20Lawn%20Mowers/class/Stand-On%20Mowers/availability/In%20Stock/brand/Toro
A114: Stand On Mower | B114: Toro | C114: GrandStand® MULTI FORCE 60 in EFI | D114: 72523 | E114: 60 | F114: No | K114: $14,399 *Dependent on dealer | L114: 26.5 | M114: 10.5 | O114: 10 | P114: 747 | R114: https://www.toro.com/en/product/72523 | S114: https://www.arcolawn.com/products/multi-force-60-26-5hp-747cc-efi-72523
A115: Stand On Mower | B115: Toro | C115: GrandStand® MULTI FORCE 52 in EFI | D115: 72529 | E115: 52 | F115: No | K115: $13,900 *Dependent on dealer | L115: 26.5 | M115: 10.5 | O115: 10 | P115: 747 | R115: https://www.toro.com/en/product/72529 | S115: https://www.midwestpowerparts.com/new-models/toro-multi-force-52-265hp-747cc-efi-72529-28431239b
A116: Stand On Mower | B116: Toro | C116: GrandStand® MULTI FORCE 60 in EFI | D116: 72524 | E116: 60 | F116: No | K116: $16,199 *Dependent on dealer | L116: 26.5 | M116: 10.5 | O116: 10 | P116: 747 | R116: https://www.toro.com/en/product/72524 | S116: https://www.arcolawn.com/products/multi-force-60-26-5hp-747cc-efi-w-low-flow-hydraulics-72524
A117: Stand On Mower | B117: Toro | C117: GrandStand® MULTI FORCE 52 in EFI | D117: 72530 | E117: 52 | F117: No | K117: $15,599 *Dependent on dealer | L117: 26.5 | M117: 10.5 | O117: 10 | P117: 747 | R117: https://www.toro.com/en/product/72530 | S117: https://sleequipment.com/toro-72530-52-grandstand-multiforce-stand-on-mower-26-5hp-koh-efi.html
A118: Stand On Mower | B118: John Deere | C118: 652E QuikTrak | E118: 52 | F118: No | K118: 12044 | L118: 22 | M118: 5.6 | O118: 9.5 | P118: 726 | R118: https://www.deere.com/en/mowers/commercial-mowers/quiktrak-mowers/652e-mower/
A119: Stand On Mower | B119: John Deere | C119: 636M QuikTrak | E119: 36 | F119: No | K119: 11319 | L119: 19 | M119: 5.5 | O119: 8.2 | P119: 603 | R119: https://www.deere.com/en/mowers/commercial-mowers/quiktrak-mowers/636m-mower/
A120: Stand On Mower | B120: John Deere | C120: 648M QuikTrack | E120: 48 | F120: No | K120: 12134 | L120: 22 | M120: 5.5 | O120: 8.2 | P120: 726 | R120: https://www.deere.com/en/mowers/commercial-mowers/quiktrak-mowers/648m-mower/
A121: Stand On Mower | B121: John Deere | C121: 652M QuikTrack | E121: 52 | F121: No | K121: 12554 | L121: 22 | M121: 5.5 | O121: 8.2 | P121: 726 | R121: https://www.deere.com/en/mowers/commercial-mowers/quiktrak-mowers/652m-mower/
A122: Stand On Mower | B122: John Deere | C122: 648R QuikTrak | E122: 48 | F122: No | K122: 12669 | L122: 22 | M122: 5.6 | O122: 9.6 | P122: 726 | R122: https://www.deere.com/en/mowers/commercial-mowers/quiktrak-mowers/648r-mower/
A123: Stand On Mower | B123: John Deere | C123: 652R QuikTrak | E123: 52 | F123: No | K123: 12959 | L123: 23.5 | M123: 5.6 | O123: 9.6 | P123: 726 | R123: https://www.deere.com/en/mowers/commercial-mowers/quiktrak-mowers/652r-mower/?cid=PPC_MDS_00331_01373&gad=1&gclid=Cj0KCQjwzdOlBhCNARIsAPMwjbzFcobF_BobkqBqHZYWQdkmdcgyBgLfoN-lJYJdm5zS-AO15SGWiGcaApvLEALw_wcB&gclsrc=aw.ds
A124: Stand On Mower | B124: John Deere | C124: 652R EFI QuikTrak | E124: 52 | F124: No | K124: 14144 | L124: 20 | M124: 5.6 | O124: 9.5 | P124: 747 | R124: https://www.deere.com/en/mowers/commercial-mowers/quiktrak-mowers/652r-efi-mower/
A125: Stand On Mower | B125: John Deere | C125: 661R QuikTrak | E125: 61 | F125: No | K125: 13774 | L125: 23.5 | M125: 5.6 | O125: 9.6 | P125: 726 | R125: https://www.deere.com/en/mowers/commercial-mowers/quiktrak-mowers/661r-mower/
A126: Push Mower | B126: Husqvarna | C126: W520 | D126: W520 | E126: 20 | K126: 1299.99 | O126: 3.7 | R126: https://www.husqvarna.com/us/push-lawn-mowers/w520/
A127: Push Mower | B127: Toro | C127: PROLINE™ HDX 48 in | D127: 44448 | E127: 48 | K127: $9,599 *Dependent on dealer | L127: 22 | M127: 5 | O127: 7 | P127: 726 | R127: https://www.toro.com/en/product/44448 | S127: https://sleequipment.com/toro-44448-48-proline-walk-behind-mower-22hp-kawasaki.html
A128: Push Mower | B128: Toro | C128: PROLINE™ HDX 54 in (50-State Model) | D128: 44454 | E128: 54 | K128: $9,899 *Dependent on dealer | L128: 22 | M128: 5 | O128: 7 | P128: 726 | R128: https://www.toro.com/en/product/44454 | S128: https://sleequipment.com/toro-44454-54-proline-walk-behind-mower-20hp-kawasaki.html
A129: Push Mower | B129: Toro | C129: PROLINE™ HDX 60 in (50-State Model) | D129: 44460 | E129: 60 | K129: $10,099 *Dependent on dealer | L129: 22 | M129: 5 | O129: 7 | P129: 726 | R129: https://www.toro.com/en/product/44460 | S129: https://sleequipment.com/toro-44460-proline-walk-behind-mower.html
A130: Push Mower | B130: Toro | C130: PROLINE™ HDX 36 in (50-State Model) | D130: 44436 | E130: 36 | K130: $9,399 *Dependent on dealer | L130: 15.5 | M130: 5 | O130: 7 | P130: 726 | R130: https://www.toro.com/en/product/44436 | S130: https://sleequipment.com/toro-44436-proline-walk-behind-mower.html
A131: Push Mower | B131: Toro | C131: PROLINE™ 36 in (California Model) | D131: 44409 | E131: 36 | K131: $9,399 *Dependent on dealer | L131: 14.5 | M131: 5 | O131: 7 | P131: 603 | R131: https://www.toro.com/en/product/44409 | S131: https://sleequipment.com/toro-44436-proline-walk-behind-mower.html
A132: Push Mower | B132: Toro | C132: PROLINE™ 36 in | D132: 44410 | E132: 36 | K132: $6,949 *Dependent on dealer | L132: 14.5 | M132: 5 | O132: 7 | P132: 603 | R132: https://www.toro.com/en/product/44410 | S132: https://sleequipment.com/toro-44410-36-proline-walk-behind-mower-14-5hp-kawasaki.html
A133: Push Mower | B133: Toro | C133: PROLINE™ 48 in (California Model) | D133: 44423 | E133: 48 | K133: $7,555 *Dependent on dealer | L133: 15 | M133: 5 | O133: 7 | P133: 603 | R133: https://www.toro.com/en/product/44423 | S133: https://www.claysequipment.com/new-models/toro-proline-48-122-cm-mid-size-mower-california-model-44423-28562649b
A134: Push Mower | B134: Toro | C134: PROLINE™ 48 in | D134: 44424 | E134: 48 | K134: $7,599 *Dependent on dealer | L134: 15 | M134: 5 | O134: 7 | P134: 603 | R134: https://www.toro.com/en/product/44424 | S134: https://sleequipment.com/toro-44424-48-proline-walk-behind-mower-15hp-kawasaki.html
A135: Push Mower | B135: Toro | C135: PROLINE™ 54 in | D135: 44427 | E135: 54 | K135: $8,199 *Dependent on dealer | L135: 18.5 | M135: 5 | O135: 7 | P135: 603 | R135: https://www.toro.com/en/product/44427 | S135: https://sleequipment.com/toro-44427-54-proline-walk-behind-mower-18hp-kawasaki.html
A136: Push Mower | B136: Toro | C136: PROLINE™ 60 in | D136: 44430 | E136: 60 | K136: $8,399 *Dependent on dealer | L136: 22 | M136: 5 | O136: 7 | P136: 726 | R136: https://www.toro.com/en/product/44430 | S136: https://sleequipment.com/toro-44430-60-proline-walk-behind-mower-22hp-kawasaki.html
A137: Push Mower | B137: Toro | C137: 32" Fixed Deck Gear Drive Pistol Grip | D137: 30632 | E137: 32 | K137: 3599 | L137: 14.5 | M137: 5 | O137: 6.2 | P137: 603 | R137: https://www.toro.com/en/product/30632
A138: Push Mower | B138: Toro | C138: 32 in. Fixed Deck Gear Drive T-Bar | D138: 30672 | E138: 32 | K138: 3599 | L138: 14.5 | M138: 5 | O138: 6.2 | P138: 603 | R138: https://www.toro.com/en/product/30672
A139: Push Mower | B139: Toro | C139: 36 in. Fixed Deck Gear Drive Pistol Grip (50-State) | D139: 39634 | E139: 36 | K139: $5,399 *Dependent on dealer | L139: 14.5 | M139: 5 | O139: 6.2 | P139: 603 | R139: https://www.toro.com/en/product/39634 | S139: https://sleequipment.com/toro-39634-walk-behind-mower-pistol-grip-36.html
A140: Push Mower | B140: Toro | C140: 48 in. Fixed Deck Gear Drive Pistol Grip (50-State) | D140: 39638 | E140: 48 | K140: $6,474 *Dependent on dealer | L140: 14.5 | M140: 5 | O140: 6.2 | P140: 603 | R140: https://www.toro.com/en/product/39638 | S140: https://www.powerequipmentplus1.com/toro/toro-48-fixed-deck-gear-drive-pistol-grip-50-st-39638-inventory.htm?id=2683797&in-stock=1
A141: Push Mower | B141: Toro | C141: 36 in. Fixed Deck Gear Drive T-Bar (50-State) | D141: 39674 | E141: 36 | K141: $6,610 *Dependent on dealer | L141: 14.5 | M141: 5 | O141: 6.2 | P141: 603 | R141: https://www.toro.com/en/product/39674 | S141: https://www.richardsonsaw.com/toro-mid-size-walk-behind-36-fixed-deck-gear-drive-t-bar-39674
A142: Push Mower | B142: Toro | C142: 30 in TurfMaster® HDX | D142: 22215 | E142: 30 | K142: $2,799 *Dependent on dealer | M142: 1 | O142: 4 | P142: 179 | R142: https://www.toro.com/en/product/22215 | S142: https://www.arcolawn.com/products/30-turfmaster%C2%AE-hdx-kawasaki-engine-22215
A143: Push Mower | B143: Toro | C143: 30 in TurfMaster® HDX | D143: 22225 | E143: 30 | K143: $2,949 *Dependent on dealer | M143: 1 | O143: 4 | P143: 200 | R143: https://www.toro.com/en/product/22225 | S143: https://www.arcolawn.com/products/30-turfmaster%C2%AE-hdx-kohler-engine-22225
A144: Push Mower | B144: Toro | C144: 30 in. TurfMaster® HDX | D144: 22235 | E144: 30 | K144: $3,332 *Dependent on dealer | M144: 1 | O144: 4 | P144: 224 | R144: https://www.toro.com/en/product/22235 | S144: https://www.richardsonsaw.com/toro-30-turfmaster-r-hdx-lawnmower-22235
A145: Push Mower | B145: Toro | C145: 21 in. Heavy Duty Variable Speed Zone Start Kohler® 2-Bail | D145: 22287 | E145: 21 | K145: $2,006 *Dependent on dealer | M145: 0.5 | O145: 4.2 | R145: https://www.toro.com/en/product/22287 | S145: https://www.acmetools.com/toro-lawn-mower-self-propel-zone-start-kohler-21-22287/021038222875.html
A146: Push Mower | B146: Toro | C146: 21 in Heavy Duty Self-Propelled Zone Start Honda | D146: 22295 | E146: 21 | K146: $2,221 *Dependent on dealer | M146: 1 | O146: 4.2 | R146: https://www.toro.com/en/product/22295 | S146: https://www.acmetools.com/toro-lawn-mower-self-propelled-commercial-honda-21-22295/021038222950.html
A147: Push Mower | B147: Toro | C147: 21 in Heavy Duty Self-Propelled BBC Honda | D147: 22296 | E147: 21 | K147: $2,388 *Dependent on dealer | M147: 1 | O147: 4.2 | R147: https://www.toro.com/en/product/22296 | S147: https://www.acmetools.com/toro-lawn-mower-commercial-walk-behind-22296/021038222967.html
A148: Push Mower | B148: Toro | C148: 21 in Heavy Duty Self-Propelled Zone Start Kawasaki | D148: 22297 | E148: 21 | K148: $2,233 *Dependent on dealer | M148: 1 | O148: 4.2 | R148: https://www.toro.com/en/product/22297 | S148: https://www.acmetools.com/toro-lawn-mower-commercial-self-propelled-kawasaki-22297/021038222974.html
A149: Push Mower | B149: Toro | C149: 21 in Heavy Duty Self-Propelled BBC Kawasaki | D149: 22298 | E149: 21 | K149: $1,999 *Dependent on dealer | M149: 1 | O149: 4.2 | R149: https://www.toro.com/en/product/22298 | S149: https://catoespowerequipment.com/shop/toro/toro-21-heavy-duty-self-propelled-bbc-kawasaki-22298/
A150: Push Mower | B150: John Deere | C150: W36M | E150: 36 | K150: 6649 | L150: 14.5 | M150: 5.4 | O150: 6.5 | P150: 603 | R150: https://www.deere.com/en/mowers/commercial-mowers/commercial-walk-behind-mowers/w36m-mower/
A151: Push Mower | B151: John Deere | C151: W48M | E151: 48 | K151: 7009 | L151: 14.5 | M151: 5.4 | O151: 6.5 | P151: 603 | R151: https://www.deere.com/en/mowers/commercial-mowers/commercial-walk-behind-mowers/w48m-mower/
A152: Push Mower | B152: John Deere | C152: W36R | E152: 36 | K152: 8529 | L152: 15.5 | M152: 5.4 | O152: 7.5 | P152: 603 | R152: https://www.deere.com/en/mowers/commercial-mowers/commercial-walk-behind-mowers/w36r-mower/
A153: Push Mower | B153: John Deere | C153: W48R | E153: 48 | K153: 9519 | L153: 19 | M153: 5.4 | O153: 7.5 | P153: 603 | R153: https://www.deere.com/en/mowers/commercial-mowers/commercial-walk-behind-mowers/w48r-mower/
A154: Push Mower | B154: John Deere | C154: W52R | E154: 52 | K154: 10039 | L154: 19 | M154: 5.4 | O154: 7.5 | P154: 603 | R154: https://www.deere.com/en/mowers/commercial-mowers/commercial-walk-behind-mowers/w52r-mower/
A155: Push Mower | B155: John Deere | C155: W61R | E155: 61 | K155: 11689 | L155: 23.5 | M155: 5.4 | O155: 7.5 | P155: 726 | R155: https://www.deere.com/en/mowers/commercial-mowers/commercial-walk-behind-mowers/w61r-mower/
A156: Backpack Blower | B156: Stihl | C156: BR 600 | D156: BR 600 | G156: 677 | K156: 549.99 | L156: 3.8 | N156: 47.3 | P156: 64.8 | R156: https://www.stihlusa.com/products/blowers-and-shredder-vacs/professional-blowers/br600/
A157: Backpack Blower | B157: Stihl | C157: BR 800 C-E Magnum | D157: BR 800 C-E Magnum | G157: 912 | K157: 699.99 | L157: 4.4 | N157: 67.6 | P157: 79.9 | R157: https://www.stihlusa.com/products/blowers-and-shredder-vacs/professional-blowers/br800ce/
A158: Backpack Blower | B158: Stihl | C158: BR 700 | D158: BR 700 | G158: 912 | K158: 619.99 | L158: 3.8 | N158: 47.3 | P158: 64.8 | R158: https://www.stihlusa.com/products/blowers-and-shredder-vacs/professional-blowers/br700/
A159: Backpack Blower | B159: Stihl | C159: BR 450 | D159: BR 450 | G159: 642 | K159: 499.99 | L159: 3.9 | N159: 57.5 | P159: 63.3 | R159: https://www.stihlusa.com/products/blowers-and-shredder-vacs/professional-blowers/br450/
A160: Backpack Blower | B160: Stihl | C160: BR 800 X Magnum | D160: BR 800 X Magnum | G160: 912 | K160: 649.99 | L160: 4.4 | N160: 67.6 | P160: 79.9 | R160: https://www.stihlusa.com/products/blowers-and-shredder-vacs/professional-blowers/br800x/
A161: Backpack Blower | B161: Stihl | C161: BR 700 X | D161: BR 700 X | G161: 901 | K161: 619.99 | L161: 3.8 | N161: 47.3 | P161: 64.8 | R161: https://www.stihlusa.com/products/blowers-and-shredder-vacs/professional-blowers/br700x/
A162: Backpack Blower | B162: Stihl | C162: BR 500 | D162: BR 500 | G162: 544 | K162: 559.99 | L162: 2.7 | N162: 47.3 | P162: 64.8 | R162: https://www.stihlusa.com/products/blowers-and-shredder-vacs/professional-blowers/br500/
A163: Backpack Blower | B163: Husqvarna | C163: 570BFS | D163: 570BFS | G163: 768 | K163: 589.99 | L163: 4 | N163: 74.4 | P163: 65.6 | R163: https://www.husqvarna.com/us/leaf-blowers/570bfs/
A164: Backpack Blower | B164: Husqvarna | C164: 570BTS | D164: 570BTS | G164: 768 | K164: 589.99 | L164: 4 | N164: 74.4 | P164: 65.6 | R164: https://www.husqvarna.com/us/leaf-blowers/570bts/
A165: Backpack Blower | B165: Husqvarna | C165: 560BTS | D165: 560BTS | G165: 631 | K165: 499.99 | L165: 3.81 | N165: 74.4 | P165: 65.6 | R165: https://www.husqvarna.com/us/leaf-blowers/560bts/
A166: Backpack Blower | B166: Husqvarna | C166: 350BT | D166: 350BT | G166: 494.41 | K166: 379.99 | L166: 2.1 | N166: 42.27 | P166: 50 | R166: https://www.husqvarna.com/us/leaf-blowers/350bt/
A167: Backpack Blower | B167: Echo | C167: PB-770H | D167: PB-770H | G167: 756 | K167: 529.99 | N167: 68.3 | P167: 63.3 | R167: https://www.echo-usa.com/blowers/pb-770h#specs
A168: Backpack Blower | B168: Echo | C168: PB-770T | D168: PB-770T | G168: 756 | K168: 529.99 | N168: 68.3 | P168: 63.3 | R168: https://www.echo-usa.com/blowers/pb-770t#specs
A169: Backpack Blower | B169: Echo | C169: PB-9010H | D169: PB-9010H | G169: 1110 | K169: 629.99 | N169: 83.8 | P169: 79.9 | R169: https://www.echo-usa.com/blowers/pb-9010h#specs
A170: Backpack Blower | B170: Echo | C170: PB-9010T | D170: PB-9010T | G170: 1110 | K170: 629.99 | N170: 83.8 | P170: 79.9 | R170: https://www.echo-usa.com/blowers/pb-9010t#specs
A171: Backpack Blower | B171: Echo | C171: PB-265LN | D171: PB-265LN | G171: 375 | K171: 299.99 | N171: 22.3 | P171: 25.4 | R171: https://www.echo-usa.com/blowers/pb-265ln#specs
A172: Backpack Blower | B172: Echo | C172: PB-580H | D172: PB-580H | G172: 517 | K172: 349.99 | N172: 62 | P172: 58.2 | R172: https://www.echo-usa.com/blowers/pb-580h
A173: Backpack Blower | B173: Echo | C173: PB-580T | D173: PB-580T | G173: 517 | K173: 349.99 | N173: 62 | P173: 58.2 | R173: https://www.echo-usa.com/blowers/pb-580t#specs
A174: Backpack Blower | B174: Echo | C174: PB-755SH | D174: PB-755SH | G174: 651 | K174: 479.99 | N174: 62 | P174: 63.3 | R174: https://www.echo-usa.com/blowers/pb-755s#specs
A175: Backpack Blower | B175: Echo | C175: PB-755ST | D175: PB-755ST | G175: 651 | K175: 479.99 | N175: 62 | P175: 63.3 | R175: https://www.echo-usa.com/blowers/pb-755st#specs
A176: Backpack Blower | B176: Echo | C176: PB-760LNH | D176: PB-760LNH | G176: 535 | K176: 469.99 | N176: 68.3 | P176: 63.3 | R176: https://www.echo-usa.com/blowers/pb-760lnh#specs
A177: Backpack Blower | B177: Echo | C177: PB-760LNT | D177: PB-760LNT | G177: 535 | K177: 469.99 | N177: 68.3 | P177: 63.3 | R177: https://www.echo-usa.com/blowers/pb-760lnt#specs
A178: Handheld Blower | B178: Stihl | C178: BG 86 | D178: BG 86 | G178: 365 | K178: 289.99 | L178: 1.07 | N178: 14.9 | P178: 27.2 | R178: https://www.stihlusa.com/products/blowers-and-shredder-vacs/professional-blowers/bg86/#specifications
A179: Handheld Blower | B179: Stihl | C179: BG 86 C-E | D179: BG 86 C-E | G179: 365 | K179: 299.99 | L179: 1.07 | N179: 14.9 | P179: 27.2 | R179: https://www.stihlusa.com/products/blowers-and-shredder-vacs/professional-blowers/bg86ce/
A180: Handheld Blower | B180: Stihl | C180: SH 86 C-E | D180: SH 86 C-E | G180: 444 | K180: 339.99 | L180: 1.07 | N180: 14.9 | P180: 27.2 | R180: https://www.stihlusa.com/products/blowers-and-shredder-vacs/shredder-vacs/sh86ce/
A181: Handheld Blower | B181: Stihl | C181: BG 66 L | D181: BG 66 L | G181: 371 | K181: 249.99 | L181: 0.8 | N181: 18.3 | P181: 27.2 | R181: https://www.stihlusa.com/products/blowers-and-shredder-vacs/professional-blowers/bg66l/
A182: Handheld Blower | B182: Husqvarna | C182: 525BX | D182: 525BX | G182: 459 | K182: 299.99 | L182: 1.14 | N182: 15.22 | R182: https://www.husqvarna.com/us/leaf-blowers/525bx/
A183: Handheld Blower | B183: Echo | C183: PB-2620 | D183: PB-2620 | G183: 456 | K183: 249.99 | N183: 20.3 | P183: 25.4 | R183: https://www.echo-usa.com/blowers/pb-2620#fn-1
A184: Handheld Blower | B184: Echo | C184: PB-2520 | D184: PB-2520 | G184: 453 | K184: 169.99 | N184: 18.6 | P184: 25.4 | R184: https://www.echo-usa.com/blowers/pb-2520#specs
A185: Handheld Blower | B185: Echo | C185: PB-255LN | D185: PB-255LN | G185: 354 | K185: 249.99 | N185: 16.9 | P185: 25.4 | R185: https://www.echo-usa.com/blowers/pb-255ln#specs
A186: Handheld Blower | B186: Echo | C186: ES-250 | D186: ES-250 | G186: 392 | K186: 249.99 | N186: 16.9 | P186: 25.4 | R186: https://www.echo-usa.com/blowers/es-250#specs
A187: Chain Saw | B187: Stihl | C187: MS 261 C-M | D187: MS 261 C-M | H187: 20 | K187: 689.99 | L187: 4 | N187: 16.9 | P187: 50.2 | R187: https://www.stihlusa.com/products/chain-saws/professional-saws/ms261cm/
A188: Chain Saw | B188: Stihl | C188: MS 261 C-M | D188: MS 261 C-M | H188: 20 | K188: 699.99 | L188: 4 | N188: 16.9 | P188: 50.2 | R188: https://www.stihlusa.com/products/chain-saws/professional-saws/ms261cm/
A189: Chain Saw | B189: Stihl | C189: MS 362 C-M | D189: MS 362 C-M | H189: 18 | K189: 889.99 | L189: 4.69 | N189: 20.3 | P189: 59 | R189: https://www.stihlusa.com/products/chain-saws/professional-saws/ms362cm/ | T189: could also purchase with 25in bar for higher price
A190: Chain Saw | B190: Stihl | C190: MS 362 C-M | D190: MS 362 C-M | H190: 20 | K190: 899.99 | L190: 4.69 | N190: 20.3 | P190: 59 | R190: https://www.stihlusa.com/products/chain-saws/professional-saws/ms362cm/ | T190: could also purchase with 25in bar for higher price
A191: Chain Saw | B191: Stihl | C191: MS 261 | D191: MS 261 | H191: 18 | K191: 689.99 | L191: 4 | N191: 16.9 | P191: 50.2 | R191: https://www.stihlusa.com/products/chain-saws/professional-saws/ms261/
A192: Chain Saw | B192: Stihl | C192: MS 261 | D192: MS 261 | H192: 20 | K192: 699.99 | L192: 4 | N192: 16.9 | P192: 50.2 | R192: https://www.stihlusa.com/products/chain-saws/professional-saws/ms261/
A193: Chain Saw | B193: Stihl | C193: MS 194 T | D193: MS 194 T | H193: 12 | K193: 459.99 | L193: 1.88 | N193: 9.1 | P193: 31.8 | R193: https://www.stihlusa.com/products/chain-saws/in-tree-saws/ms194t/
A194: Chain Saw | B194: Stihl | C194: MS 194 T | D194: MS 194 T | H194: 14 | K194: 439.99 | L194: 1.88 | N194: 9.1 | P194: 31.8 | R194: https://www.stihlusa.com/products/chain-saws/in-tree-saws/ms194t/ | T194: with lightweight bar for $30 more
A195: Chain Saw | B195: Stihl | C195: MS 194 T | D195: MS 194 T | H195: 16 | K195: 449.99 | L195: 1.88 | N195: 9.1 | P195: 31.8 | R195: https://www.stihlusa.com/products/chain-saws/in-tree-saws/ms194t/ | T195: with lightweight bar for $30 more
A196: Chain Saw | B196: Stihl | C196: MS 362 | D196: MS 362 | H196: 18 | K196: 889.99 | L196: 4.6 | N196: 20.3 | P196: 59 | R196: https://www.stihlusa.com/products/chain-saws/professional-saws/ms362/ | T196: could also purchase with 25in bar for higher price
A197: Chain Saw | B197: Stihl | C197: MS 362 | D197: MS 362 | H197: 20 | K197: 899.99 | L197: 4.6 | N197: 20.3 | P197: 59 | R197: https://www.stihlusa.com/products/chain-saws/professional-saws/ms362/ | T197: could also purchase with 25in bar for higher price
A198: Chain Saw | B198: Stihl | C198: MS 661 C-M Magnum | D198: MS 661 C-M Magnum | H198: 20 | K198: 1529.99 | L198: 7.2 | N198: 28.7 | P198: 91.1 | R198: https://www.stihlusa.com/products/chain-saws/professional-saws/ms661cm/ | T198: could also purchase multiple larger bar lengths for higher price
A199: Chain Saw | B199: Stihl | C199: MS 500i | D199: MS 500i | H199: 20 | K199: 1549.99 | L199: 6.7 | N199: 26.5 | P199: 79.2 | R199: https://www.stihlusa.com/products/chain-saws/professional-saws/ms500i/ | T199: could also purchase multiple larger bar lengths for higher price
A200: Chain Saw | B200: Stihl | C200: MS 201 T C-M | D200: MS 201 T C-M | H200: 12 | K200: 799.99 | L200: 2.41 | N200: 10.5 | P200: 35.2 | R200: https://www.stihlusa.com/products/chain-saws/in-tree-saws/ms201tcm/ | T200: with lightweight bar for $30 more
... 128 more rows

Sheet Appendix - Economic Model Data
A1: APPENDIX: Reference Data
A2: Maintenance Costs Reference Calculations for Economic Model
A3: Commercial Electric | H3: Commercial Gasoline
I4: Frequency (per # hours) | J4: Hours of Mowing | K4: Times | L4: $ Per | M4: Cost per Year
A5: Electric | H5: Oil change and oil filter every 50 hrs | I5: 50 | J5: 880 | K5: =+J5/I5 -> 17.6 | L5: 20 | M5: =+K5*L5 -> 352
B6: Frequency (per # hours) | C6: Hours of Mowing | D6: Times | E6: $ Per | F6: Cost per Year | H6: Air filter change every 100 hrs | I6: 100 | J6: 880 | K6: =+J6/I6 -> 8.8 | L6: 40 | M6: =+K6*L6 -> 352
A7: Blade sharpening | B7: 78 | C7: 880 | D7: =+C7/B7 -> 11.28205128 | E7: 15 | F7: =+D7*E7 -> 169.2307692 | H7: Blade sharpening | I7: 78 | J7: 880 | K7: =+J7/I7 -> 11.28205128 | L7: 15 | M7: =+K7*L7 -> 169.2307692
A8: Blade replacement | B8: =78*3 -> 234 | C8: 880 | D8: =+C8/B8 -> 3.760683761 | E8: 90 | F8: =+D8*E8 -> 338.4615385 | H8: Blade replacement | I8: =78*3 -> 234 | J8: 880 | K8: =+J8/I8 -> 3.760683761 | L8: 90 | M8: =+K8*L8 -> 338.4615385
H9: Belts | I9: 200 | J9: 880 | K9: =+J9/I9 -> 4.4 | L9: 100 | M9: =+K9*L9 -> 440
L11: Total | M11: =SUM(M5:M9) -> 1651.692308
L12: Per hr | M12: =+M11/J9 -> 1.876923077
E13: Total | F13: =SUM(F7:F11) -> 507.6923077
E14: Per hr | F14: =+F13/C8 -> 0.5769230769 | H14: OR 7 tune-ups @ $175 each | I14: 7 | J14: 180
J15: Total | K15: =+I14*J14 -> 1260
J16: Per hour | K16: =+K15/J9 -> 1.431818182
A18: Maintenance Cost per hour | B18: =F14+(F14*0.05) -> 0.6057692308 | H18: Maintenance Cost per hour | I18: =AVERAGE(K16,M12)+(AVERAGE(K16,M12)*0.05) -> 1.737089161
A20: Sources:
A21: How To Cost Justify a Stand On Commercial Mower? May 18, 2009 Today's Mower.com. Accessed at http://todaysmower.com/cost-justify-commercial-mower/
A22: Equipment Cost Per Hour. Turf Magazine, Nov 1, 2011. Accessed at https://www.turfmagazine.com/maintenance/equipment-cost-per-hour/
A23: Price lists from service shops
A25: 3. The commercial mower (Toro 74568). Oil Change and oil filter every 50 hours. ($20) At 78 hours a year you will change these two times. (Always change oil at the end of the season) Cost per year $40. Air filters (Donaldson Type) are larger and will last 100 hours or more on the commercial machines. Changed once. Cost per year $40. Commercial blades are two to three times heavier than residential blades and you will need to sharpen them once a year and replace them every three years if you mow three hours a week. Sharpening $15, one-third cost of replacement blades is $30. Belts ($100) every 200 hours. Cost per year $50. Total Cost for maintenance $175. | O25: As these numbers were calculated in 2017, we have applied a 5% increase to reflect rising costs
A28: Economic Model Results Data Calculations
A30: Upfront and operating costs cumulative | B30: Battery | C30: Upfront and operating costs cumulative | D30: Gas
A31: Year 1 | B31: ='Results Table'!H5+'Results Table'!H9 -> 6686.731382 | C31: Year 1 | D31: ='Results Table'!D5+'Results Table'!D9 -> 10017.9042
A32: Year 2 | B32: =B31+'Results Table'!$H$9 -> 7549.462764 | C32: Year 2 | D32: =D31+'Results Table'!$D$9 -> 16135.80839
A33: Year 3 | B33: =B32+'Results Table'!$H$9 -> 8412.194146 | C33: Year 3 | D33: =D32+'Results Table'!$D$9 -> 22253.71259
A34: Year 4 | B34: =B33+'Results Table'!$H$9 -> 9274.925529 | C34: Year 4 | D34: =D33+'Results Table'!$D$9 -> 28371.61678
A35: Year 5 | B35: =B34+'Results Table'!$H$9 -> 10137.65691 | C35: Year 5 | D35: =D34+'Results Table'!$D$9 -> 34489.52098
A36: Year 6 | B36: =B35+'Results Table'!$H$9 -> 11000.38829 | C36: Year 6 | D36: =D35+'Results Table'!$D$9 -> 40607.42517
A37: Year 7 | B37: =B36+'Results Table'!$H$9 -> 11863.11968 | C37: Year 7 | D37: =D36+'Results Table'!$D$9 -> 46725.32937
A38: Year 8 | B38: =B37+'Results Table'!$H$9 -> 12725.85106 | C38: Year 8 | D38: =D37+'Results Table'!$D$9 -> 52843.23357
A39: Year 9 | B39: =B38+'Results Table'!$H$9 -> 13588.58244 | C39: Year 9 | D39: =D38+'Results Table'!$D$9 -> 58961.13776
A40: Year 10 | B40: =B39+'Results Table'!$H$9 -> 14451.31382 | C40: Year 10 | D40: =D39+'Results Table'!$D$9 -> 65079.04196
B42: Electric Savings
B43: Year 1 | C43: =D31-B31 -> 3331.172814
B44: Year 2 | C44: =D32-B32 -> 8586.345627
B45: Year 3 | C45: 13841.51844
B46: Year 4 | C46: 19096.69125
B47: Year 5 | C47: 24351.86407
B48: Year 6 | C48: 29607.03688
B49: Year 7 | C49: 34862.2097
B50: Year 8 | C50: 40117.38251
B51: Year 9 | C51: 45372.55532
B52: Year 10 | C52: 50627.72814
A54: Environmental Model Results Data Calculations
A55: Commercial Electric | C55: Commercial Gasoline
A56: Annual Emissions (Metric Tonnes CO2e) | C56: Annual Emissions (Metric Tonnes CO2e)
A57: Year 1 | B57: ='Results Table'!$H$14 -> 1493.341277 | C57: Year 1 | D57: ='Results Table'!$D$14 -> 38424.3409
A58: Year 2 | B58: ='Results Table'!$H$14 -> 1493.341277 | C58: Year 2 | D58: ='Results Table'!$D$14 -> 38424.3409
A59: Year 3 | B59: ='Results Table'!$H$14 -> 1493.341277 | C59: Year 3 | D59: ='Results Table'!$D$14 -> 38424.3409
A60: Year 4 | B60: ='Results Table'!$H$14 -> 1493.341277 | C60: Year 4 | D60: ='Results Table'!$D$14 -> 38424.3409
A61: Year 5 | B61: ='Results Table'!$H$14 -> 1493.341277 | C61: Year 5 | D61: ='Results Table'!$D$14 -> 38424.3409
A62: Year 6 | B62: ='Results Table'!$H$14 -> 1493.341277 | C62: Year 6 | D62: ='Results Table'!$D$14 -> 38424.3409
A63: Year 7 | B63: ='Results Table'!$H$14 -> 1493.341277 | C63: Year 7 | D63: ='Results Table'!$D$14 -> 38424.3409
A64: Year 8 | B64: ='Results Table'!$H$14 -> 1493.341277 | C64: Year 8 | D64: ='Results Table'!$D$14 -> 38424.3409
A65: Year 9 | B65: ='Results Table'!$H$14 -> 1493.341277 | C65: Year 9 | D65: ='Results Table'!$D$14 -> 38424.3409
A66: Year 10 | B66: ='Results Table'!$H$14 -> 1493.341277 | C66: Year 10 | D66: ='Results Table'!$D$14 -> 38424.3409
A67: Total | B67: =SUM(B57:B66) -> 14933.41277 | C67: Total | D67: =SUM(D57:D66) -> 384243.409
A71: Building Fuel Calculations | C71: GHG Emissions* | F71: Source
A72: Year | B72: Fuel | C72: GHG Emissions Factor (lbs CO2e/unit) | D72: GHG Emissions Factor (metric tonnes CO2e/unit) | E72: GHG Emissions Factor (metric tonnes CO2e/unit)
A73: FY22 | B73: Grid Electricity (kWh) | C73: 0.5611702128 | D73: 0.0002545428295 | E73: =D73*0.995 -> 0.0002532701153 | F73: MA-based combo from MassDEP based on GHG inventory
A76: Fuel | B76: Equivalency Factor (divide by factor) | C76: Reference to calculate equivalents
A77: U.S. Vehicle GHG emissions per year | B77: 4.75 | C77: http://www.epa.gov/cleanenergy/energy-resources/refs.html#vehicles
D79: Conversion Factors for cc to HP [1] | F79: HP Range | H79: HP Definition for Class
C80: CC | D80: Max | E80: Min | F80: Max | G80: Min | I80: Conversion Factors for CO2 [2]
I81: HC | J81: BFSC* | K81: CO2
A82: Class 1A | C82: <66 | D82: 14 | E82: 17 | F82: 4.714285714 | G82: 3.882352941 | H82: < 4.7 | I82: 3.8 | J82: 0.781 | K82: =+((J82*453.6)-I82)*0.87*(44/12) -> 1117.972504
A83: Class 1B | C83: 66 to <100 | D83: 14 | E83: 17 | F83: 7.142857143 | G83: 5.882352941 | H83: 4.7 to < 7.1 | I83: 3.8 | J83: 0.781 | K83: 1117.972504
A84: Class 1 | C84: 100 to <225 | D84: 14 | E84: 17 | F84: 16.07142857 | G84: 13.23529412 | H84: 7.1 to < 16.1 | I84: 3.8 | J84: 0.781 | K84: 1117.972504
A85: Class 2 | C85: ≥225 | D85: 14 | E85: 17 | F85: 16.07142857 | G85: 13.23529412 | H85: > 16.1 | I85: 3.17 | J85: 0.735 | K85: 1053.42094
A86: Class 3 | C86: <20 | D86: 14 | E86: 17 | F86: 1.428571429 | G86: 1.176470588 | H86: < 1.4 | I86: 26.87 | J86: 0.822 | K86: 1103.705548
A87: Class 4 | C87: 20 to <50 | D87: 14 | E87: 17 | F87: 3.571428571 | G87: 2.941176471 | H87: 1.4 to < 3.6 | I87: 26.87 | J87: 0.822 | K87: =+((J87*453.6)-I87)*0.87*(44/12) -> 1103.705548
A88: Class 5 | C88: ≥50 | D88: 14 | E88: 17 | F88: 3.571428571 | G88: 2.941176471 | H88: > 3.6 | I88: 47.98 | J88: 0.608 | K88: 726.710072
A90: *BFSC: Brake-specific fuel consumption
A91: *For Classes I and 2, conversion factors assumes Ph 3 overhead valve engines (most efficient).
A92: *For Classes 3 and 4, conversion factors assumes Ph 2 with catalyst (most efficient).
A94: [1] We used 14-17 cc per 1 hp per https://www.simetric.co.uk/si_cc2hp.htm
A95: [2] For CO2 emissions - this equation is on p 17 of Exhaust Emission Factors for Nonroad Engine Modeling (EPA 2010)
A98: Equipment Type | B98: CO2 Constant (g/hp-hr)
A99: Select Type | B99: -
A100: Push-Mower 30-32" | B100: 1117.972504
A101: Riding Zero-Turn Mower 42" | B101: 1053.42094
A102: Riding Zero-Turn Mower 48" | B102: 1053.42094
A103: Riding Zero-Turn Mower 52" | B103: 1053.42094
A104: Riding Zero-Turn Mower 60" | B104: 1053.42094
A105: Riding Zero-Turn Mower 72-74" | B105: 1053.42094
A106: Stand-On Mower 48" | B106: 1053.42094
A107: Stand-On Mower 52" | B107: 1053.42094
A108: Stand-On Mower 60" | B108: 1053.42094
A109: Handheld Blower 350-400 cfm | B109: 1103.71
A110: Backpack Blower 600-650 cfm | B110: 726.710072
A111: Backpack Blower 650-700 cfm | B111: 726.710072
A112: Backpack Blower 750-800 cfm | B112: 726.710072
A113: String Trimmer 16.5" | B113: 1103.71
A114: Hedge Trimmer 24" | B114: 1103.71
A115: Chainsaw 12" | B115: 1103.71
A116: Chainsaw 14" | B116: 1103.71
A117: Chainsaw 16" | B117: 1103.71
A118: Chainsaw 18" | B118: 726.71
A119: Chainsaw 20" | B119: 726.71
A120: Pole Saw 10" | B120: 1103.705548 | F120: Pounds to Metric Tonnes Conversion
F121: 2204.6
A123: ICE Equipment | B123: Constant Selected: | D123: Horsepower Hours/Year | E123: CO2 Pounds per Year | F123: Metric Tonnes CO2e
B124: =IFERROR(VLOOKUP(Inputs!J3,'Appendix - Economic Model Data'!A99:B120,2,FALSE),"Select Type") -> 1053.42094 | D124: ='Input Summary'!F10*'Input Summary'!F19 -> 16560 | E124: =+(B124*D124)/454 -> 38424.3409 | F124: =(E124/F121) -> 17.42916669
A126: BPLE Equipment | D126: kWh/Year | E126: CO2 Pounds per Year | F126: Metric Tonnes CO2e
D127: ='Input Summary'!C12*'Input Summary'!C19 -> 2661.12 | E127: =D127*C73 -> 1493.341277 | F127: =D127*D73 -> 0.6773690144
